Workbook

Sheet 1. Information Sheet
AA1: =IF(OR(F16="", F16="(if applicable)"), F14, F14 & " - " & F16) -> Niagara Peninsula Energy Inc. - Niagara Falls Service Area
M12: Version | N12: 2.3
E14: Utility Name | F14: Niagara Peninsula Energy Inc.
E16: Service Territory | F16: Niagara Falls Service Area
E18: Assigned EB Number | F18: EB-2013-0154
E20: Name of Contact and Title | F20: Suzanne Wilson, Vice-President Finance
E22: Phone Number | F22: 905-353-6004
E24: Email Address | F24: Suzanne.Wilson@npei.ca
E26: We are applying for rates effective | F26: 2014-05-01
E28: Rate-Setting Method | F28: IRM 4
A30: Please indicate in which Rate Year the Group 1 accounts were last cleared1 | F30: 2012
B32: Notes
C34: Pale green cells represent input cells.
C36: Pale blue cells represent drop-down lists. The applicant should select the appropriate item from the drop-down list.
C38: White cells contain fixed values, automatically generated values or formulae.
A41: Note: 1. Rate year of application

Sheet 2. Table of Contents
D14: 1. Information Sheet | H14: 8. Calculation of Def-Var RR
D15: 2. Table of Contents | H15: 9. Rev2Cost_GDPIPI
D16: 3. Rate Class Selection | H16: 10. Other Charges & LF
D17: 4. Current Tariff Schedule | H17: 11. Proposed Rates
D18: 5. 2014 Continuity Schedule | H18: 12. Summary Sheet
D19: 6. Billing Det. for Def-Var | H19: 13. Final Tariff Schedule
D20: 7. Cost Allocation for Def-Var | H20: 14. Bill Impacts

Sheet 3. Rate Class Selection
A12: Select the appropriate rate classes as they appear on your most recent Board-Approved Tariff of Rates and Charges, including the MicroFit Class.
A14: How many classes are listed on your most recent Board-Approved Tariff of Rates and Charges? | J14: 7
A16: Select Your Rate Classes from the Blue Cells below. Please ensure that a rate class is assigned to each shaded cell.
B18: Rate Class Classification | Q18: # of duplicates
A19: 1 | B19: RESIDENTIAL | P19: =COUNTIF($B$19:$J$40, B19) -> 1 | Q19: =COUNTIF(P19:P40, 2)/2 -> 0
A20: 2 | B20: GENERAL SERVICE LESS THAN 50 KW | P20: =COUNTIF($B$19:$J$40, B20) -> 1
A21: 3 | B21: GENERAL SERVICE 50 TO 4,999 KW | P21: 1
A22: 4 | B22: UNMETERED SCATTERED LOAD | P22: 1
A23: 5 | B23: SENTINEL LIGHTING | P23: 1
A24: 6 | B24: STREET LIGHTING | P24: 1
A25: 7 | B25: microFIT | P25: 1
P26: 0
P27: 0
P28: 0
P29: 0
P30: 0
P31: 0
P32: 0
P33: 0

Sheet 4. Current Tariff Schedule
Z1: 3 | AA1: January | AB1: ≥
AA2: February
AA3: March
AA4: April
AA5: May
AA6: June
AA7: July
AA8: August
AA9: September
AA10: October
AA11: November
B12: For each class, Applicants are required to copy and paste the class descriptions (located directly under the class name) and the description of the applicability of those rates (description is found under the class name and directly under the word "APPLICATION"). By using the drop-down lists located under the column labeled "Rate Description", please select the descriptions of the rates and charges that BEST MATCHES the descriptions on your most recent Board-Approved Tariff of Rates and Charges. If the description is not found in the drop-down list, please enter the description in the green cells under the correct class exactly as it appears on the tariff. Please do not enter more than one "Service Charge" for each class for which a base monthly fixed charge applies. | AA12: December
B21: =IF(ISBLANK('1. Information Sheet'!F14), "Please Choose Distributor Name on Sheet 1", '1. Information Sheet'!F14) -> Niagara Peninsula Energy Inc.
B22: TARIFF OF RATES AND CHARGES
A24: RESIDENTIAL | B24: RESIDENTIAL Service Classification
A25: RESIDENTIAL
A26: RESIDENTIAL | B26: This class pertains to customers residing in detached, semi-detached or duplex dwelling units, where energy is supplied single-phase, 3 wire, 60 hertz, having a nominal voltage of 120/240 volts. Large residential services will include all services from 201 amp. up to and including 400 amp., 120/240 volt, single phase, three wire. Further servicing details are available in the distributor's Conditions of Service.
A27: RESIDENTIAL
A28: RESIDENTIAL
A29: RESIDENTIAL
A30: RESIDENTIAL
A31: RESIDENTIAL
A32: RESIDENTIAL | B32: APPLICATION
A33: RESIDENTIAL
A34: RESIDENTIAL | B34: The application of these rates and charges shall be in accordance with the Licence of the Distributor and any Code or Order of the Board, and amendments thereto as approved by the Board, which may be applicable to the administration of this schedule.
A35: RESIDENTIAL
A36: RESIDENTIAL
A37: RESIDENTIAL | B37: No rates and charges for the distribution of electricity and charges to meet the costs of any work or service done or furnished for the purpose of the distribution of electricity shall be made except as permitted by this schedule, unless required by the Distributor's Licence or a Code or Order of the Board, and amendments thereto as approved by the Board, or as specified herein.
A38: RESIDENTIAL
A39: RESIDENTIAL
A40: RESIDENTIAL
A41: RESIDENTIAL | B41: Unless specifically noted, this schedule does not contain any charges for the electricity commodity, be it under the Regulated Price Plan, a contract with a retailer or the wholesale market price, as applicable. In addition, the charges in the MONTHLY RATES AND CHARGES - Regulatory component of this schedule do not apply to a customer that is an embedded wholesale market participant.
A42: RESIDENTIAL
A43: RESIDENTIAL
A44: RESIDENTIAL | B44: It should be noted that this schedule does not list any charges, assessments or credits that are required by law to be invoiced by a distributor and that are not subject to Board approval, such as the Debt Retirement Charge, the Global Adjustment, the Ontario Clean Energy Benefit and the HST.
A45: RESIDENTIAL
A46: RESIDENTIAL
A47: RESIDENTIAL
A48: RESIDENTIAL | B48: MONTHLY RATES AND CHARGES - Delivery Component (If applicable, Effective Date MUST be included in rate description)
A49: RESIDENTIAL | B49: Service Charge | H49: $ | I49: 15.84 | K49: 1_C_MSC
A50: RESIDENTIAL | B50: Rate Rider for Smart Metering Entity Charge - effective until October 31, 2018 | H50: $ | I50: 0.79 | K50: 1_C_SMEC | L50: 2018-10-31
A51: RESIDENTIAL | B51: Distribution Volumetric Rate | H51: $/kWh | I51: 0.0159 | K51: 1_C_VC
A52: RESIDENTIAL | B52: Low Voltage Service Rate | H52: $/kWh | I52: 0.0005 | K52: 1_C_LVrate
A53: RESIDENTIAL | B53: Rate Rider for Disposition of Deferral/Variance Accounts (2012) - effective until April 30, 2014 | H53: $/kWh | I53: -0.0011 | K53: 1_C_VC_DEFVAR_kWh_1 | L53: 2014-04-30
A54: RESIDENTIAL | B54: Rate Rider for Disposition of Global Adjustment Sub-Account (2012) - effective until April 30, 2014 Applicable only for Non-RPP Customers | H54: $/kWh | I54: -0.0005 | K54: 1_C_VC_GA_Rate_Rider_kWh_1 | L54: 2014-04-30
A55: RESIDENTIAL | B55: Rate Rider for Disposition of Deferred PILs Variance Account 1562 - effective until April 30, 2014 | H55: $/kWh | I55: -0.0034 | K55: 1_C_VC_DEFVAR_kWh_2 | L55: 2014-04-30
A56: RESIDENTIAL | B56: Rate Rider for Application of Tax Change - effective until April 30, 2014 | H56: $/kWh | I56: -0.0001 | K56: 1_C_VC_Rate_Rider_kWh_3 | L56: 2014-04-30
A57: RESIDENTIAL | B57: Retail Transmission Rate - Network Service Rate | H57: $/kWh | I57: 0.0068 | K57: 1_C_RTSR_Network
A58: RESIDENTIAL | B58: Retail Transmission Rate - Line and Transformation Connection Service Rate | H58: $/kWh | I58: 0.0045 | K58: 1_C_RTSR_Connection
A59: RESIDENTIAL
A60: RESIDENTIAL
A61: RESIDENTIAL
A62: RESIDENTIAL
A63: RESIDENTIAL
A64: RESIDENTIAL
A65: RESIDENTIAL
A66: RESIDENTIAL
A67: RESIDENTIAL
A68: RESIDENTIAL
A69: RESIDENTIAL
A70: RESIDENTIAL
A71: RESIDENTIAL
A72: RESIDENTIAL
A73: RESIDENTIAL
A74: RESIDENTIAL
A75: RESIDENTIAL
A76: RESIDENTIAL
A77: RESIDENTIAL
A78: RESIDENTIAL
A79: RESIDENTIAL | B79: MONTHLY RATES AND CHARGES - Regulatory Component
A80: RESIDENTIAL
A81: RESIDENTIAL | B81: Wholesale Market Service Rate | H81: $/kWh | I81: 0.0044 | K81: 1_C_WMSR
A82: RESIDENTIAL | B82: Rural Rate Protection Charge | H82: $/kWh | I82: 0.0012 | K82: 1_C_RRPC
A83: RESIDENTIAL | B83: Standard Supply Service - Administrative Charge (if applicable) | H83: $ | I83: 0.25 | K83: 1_C_SSS
A84: RESIDENTIAL
A87: GENERAL SERVICE LESS THAN 50 KW | B87: GENERAL SERVICE LESS THAN 50 KW Service Classification
A88: GENERAL SERVICE LESS THAN 50 KW
A89: GENERAL SERVICE LESS THAN 50 KW | B89: This class pertains to non-residential customers taking electricity at 750 volts or less whose monthly average peak demand is less than, or is forecast to be less than, 50 kW. Further servicing details are available in the distributor's Conditions of Service.
A90: GENERAL SERVICE LESS THAN 50 KW
A91: GENERAL SERVICE LESS THAN 50 KW
A92: GENERAL SERVICE LESS THAN 50 KW
A93: GENERAL SERVICE LESS THAN 50 KW
A94: GENERAL SERVICE LESS THAN 50 KW
A95: GENERAL SERVICE LESS THAN 50 KW | B95: APPLICATION
A96: GENERAL SERVICE LESS THAN 50 KW
A97: GENERAL SERVICE LESS THAN 50 KW | B97: The application of these rates and charges shall be in accordance with the Licence of the Distributor and any Code or Order of the Board, and amendments thereto as approved by the Board, which may be applicable to the administration of this schedule.
A98: GENERAL SERVICE LESS THAN 50 KW
A99: GENERAL SERVICE LESS THAN 50 KW
A100: GENERAL SERVICE LESS THAN 50 KW | B100: No rates and charges for the distribution of electricity and charges to meet the costs of any work or service done or furnished for the purpose of the distribution of electricity shall be made except as permitted by this schedule, unless required by the Distributor's Licence or a Code or Order of the Board, and amendments thereto as approved by the Board, or as specified herein.
A101: GENERAL SERVICE LESS THAN 50 KW
A102: GENERAL SERVICE LESS THAN 50 KW
A103: GENERAL SERVICE LESS THAN 50 KW
A104: GENERAL SERVICE LESS THAN 50 KW | B104: Unless specifically noted, this schedule does not contain any charges for the electricity commodity, be it under the Regulated Price Plan, a contract with a retailer or the wholesale market price, as applicable. In addition, the charges in the MONTHLY RATES AND CHARGES - Regulatory component of this schedule do not apply to a customer that is an embedded wholesale market participant.
A105: GENERAL SERVICE LESS THAN 50 KW
A106: GENERAL SERVICE LESS THAN 50 KW
A107: GENERAL SERVICE LESS THAN 50 KW | B107: It should be noted that this schedule does not list any charges, assessments or credits that are required by law to be invoiced by a distributor and that are not subject to Board approval, such as the Debt Retirement Charge, the Global Adjustment, the Ontario Clean Energy Benefit and the HST.
A108: GENERAL SERVICE LESS THAN 50 KW
A109: GENERAL SERVICE LESS THAN 50 KW
A110: GENERAL SERVICE LESS THAN 50 KW
A111: GENERAL SERVICE LESS THAN 50 KW | B111: MONTHLY RATES AND CHARGES - Delivery Component (If applicable, Effective Date MUST be included in rate description)
A112: GENERAL SERVICE LESS THAN 50 KW | B112: Service Charge | H112: $ | I112: 37.27 | K112: 2_C_MSC
A113: GENERAL SERVICE LESS THAN 50 KW | B113: Rate Rider for Smart Metering Entity Charge - effective until October 31, 2018 | H113: $ | I113: 0.79 | K113: 2_C_SMEC | L113: 2018-10-31
A114: GENERAL SERVICE LESS THAN 50 KW | B114: Distribution Volumetric Rate | H114: $/kWh | I114: 0.0136 | K114: 2_C_VC
A115: GENERAL SERVICE LESS THAN 50 KW | B115: Low Voltage Service Rate | H115: $/kWh | I115: 0.0004 | K115: 2_C_LVrate
A116: GENERAL SERVICE LESS THAN 50 KW | B116: Rate Rider for Disposition of Deferral/Variance Accounts (2012) - effective until April 30, 2014 | H116: $/kWh | I116: -0.0011 | K116: 2_C_VC_DEFVAR_kWh_1 | L116: 2014-04-30
A117: GENERAL SERVICE LESS THAN 50 KW | B117: Rate Rider for Disposition of Global Adjustment Sub-Account (2012) - effective until April 30, 2014 Applicable only for Non-RPP Customers | H117: $/kWh | I117: -0.0005 | K117: 2_C_VC_GA_Rate_Rider_kWh_1 | L117: 2014-04-30
A118: GENERAL SERVICE LESS THAN 50 KW | B118: Rate Rider for Disposition of Deferred PILs Variance Account 1562 - effective until April 30, 2014 | H118: $/kWh | I118: -0.003 | K118: 2_C_VC_DEFVAR_kWh_2 | L118: 2014-04-30
A119: GENERAL SERVICE LESS THAN 50 KW | B119: Rate Rider for Application of Tax Change - effective until April 30, 2014 | H119: $/kWh | I119: -0.0001 | K119: 2_C_VC_Rate_Rider_kWh_3 | L119: 2014-04-30
A120: GENERAL SERVICE LESS THAN 50 KW | B120: Retail Transmission Rate - Network Service Rate | H120: $/kWh | I120: 0.0062 | K120: 2_C_RTSR_Network
A121: GENERAL SERVICE LESS THAN 50 KW | B121: Retail Transmission Rate - Line and Transformation Connection Service Rate | H121: $/kWh | I121: 0.004 | K121: 2_C_RTSR_Connection
A122: GENERAL SERVICE LESS THAN 50 KW
A123: GENERAL SERVICE LESS THAN 50 KW
A124: GENERAL SERVICE LESS THAN 50 KW
A125: GENERAL SERVICE LESS THAN 50 KW
A126: GENERAL SERVICE LESS THAN 50 KW
A127: GENERAL SERVICE LESS THAN 50 KW
A128: GENERAL SERVICE LESS THAN 50 KW
A129: GENERAL SERVICE LESS THAN 50 KW
A130: GENERAL SERVICE LESS THAN 50 KW
A131: GENERAL SERVICE LESS THAN 50 KW
A132: GENERAL SERVICE LESS THAN 50 KW
A133: GENERAL SERVICE LESS THAN 50 KW
A134: GENERAL SERVICE LESS THAN 50 KW
A135: GENERAL SERVICE LESS THAN 50 KW
A136: GENERAL SERVICE LESS THAN 50 KW
A137: GENERAL SERVICE LESS THAN 50 KW
A138: GENERAL SERVICE LESS THAN 50 KW
A139: GENERAL SERVICE LESS THAN 50 KW
A140: GENERAL SERVICE LESS THAN 50 KW
A141: GENERAL SERVICE LESS THAN 50 KW
A142: GENERAL SERVICE LESS THAN 50 KW | B142: MONTHLY RATES AND CHARGES - Regulatory Component
A143: GENERAL SERVICE LESS THAN 50 KW
A144: GENERAL SERVICE LESS THAN 50 KW | B144: Wholesale Market Service Rate | H144: =H81 -> $/kWh | I144: 0.0044 | K144: 2_C_WMSR
A145: GENERAL SERVICE LESS THAN 50 KW | B145: Rural Rate Protection Charge | H145: $/kWh | I145: 0.0012 | K145: 2_C_RRPC
A146: GENERAL SERVICE LESS THAN 50 KW | B146: Standard Supply Service - Administrative Charge (if applicable) | H146: $ | I146: 0.25 | K146: 2_C_SSS
A147: GENERAL SERVICE LESS THAN 50 KW
A150: GENERAL SERVICE 50 TO 4,999 KW | B150: GENERAL SERVICE 50 TO 4,999 KW Service Classification
A151: GENERAL SERVICE 50 TO 4,999 KW
A152: GENERAL SERVICE 50 TO 4,999 KW | B152: This classification referes to a non residential account whose monthly average peak demand is equal to or greater than, or is forecast to be equal to or greater than 50 kW but less than 5,000 kW. Further servicing details are available in the distributor's Conditions of Service.
A153: GENERAL SERVICE 50 TO 4,999 KW
A154: GENERAL SERVICE 50 TO 4,999 KW
A155: GENERAL SERVICE 50 TO 4,999 KW
A156: GENERAL SERVICE 50 TO 4,999 KW
A157: GENERAL SERVICE 50 TO 4,999 KW
A158: GENERAL SERVICE 50 TO 4,999 KW | B158: APPLICATION
A159: GENERAL SERVICE 50 TO 4,999 KW
A160: GENERAL SERVICE 50 TO 4,999 KW | B160: The application of these rates and charges shall be in accordance with the Licence of the Distributor and any Code or Order of the Board, and amendments thereto as approved by the Board, which may be applicable to the administration of this schedule.
A161: GENERAL SERVICE 50 TO 4,999 KW
A162: GENERAL SERVICE 50 TO 4,999 KW
A163: GENERAL SERVICE 50 TO 4,999 KW | B163: No rates and charges for the distribution of electricity and charges to meet the costs of any work or service done or furnished for the purpose of the distribution of electricity shall be made except as permitted by this schedule, unless required by the Distributor's Licence or a Code or Order of the Board, and amendments thereto as approved by the Board, or as specified herein.
A164: GENERAL SERVICE 50 TO 4,999 KW
A165: GENERAL SERVICE 50 TO 4,999 KW
A166: GENERAL SERVICE 50 TO 4,999 KW
A167: GENERAL SERVICE 50 TO 4,999 KW | B167: Unless specifically noted, this schedule does not contain any charges for the electricity commodity, be it under the Regulated Price Plan, a contract with a retailer or the wholesale market price, as applicable. In addition, the charges in the MONTHLY RATES AND CHARGES - Regulatory component of this schedule do not apply to a customer that is an embedded wholesale market participant.
A168: GENERAL SERVICE 50 TO 4,999 KW
A169: GENERAL SERVICE 50 TO 4,999 KW
A170: GENERAL SERVICE 50 TO 4,999 KW | B170: It should be noted that this schedule does not list any charges, assessments or credits that are required by law to be invoiced by a distributor and that are not subject to Board approval, such as the Debt Retirement Charge, the Global Adjustment, the Ontario Clean Energy Benefit and the HST.
A171: GENERAL SERVICE 50 TO 4,999 KW
A172: GENERAL SERVICE 50 TO 4,999 KW
A173: GENERAL SERVICE 50 TO 4,999 KW
A174: GENERAL SERVICE 50 TO 4,999 KW | B174: MONTHLY RATES AND CHARGES - Delivery Component (If applicable, Effective Date MUST be included in rate description)
A175: GENERAL SERVICE 50 TO 4,999 KW | B175: Service Charge | H175: $ | I175: 177.1 | K175: 3_C_MSC
A176: GENERAL SERVICE 50 TO 4,999 KW | B176: Distribution Volumetric Rate | H176: $/kW | I176: 4.1815 | K176: 3_C_VC
A177: GENERAL SERVICE 50 TO 4,999 KW | B177: Low Voltage Service Rate | H177: $/kW | I177: 0.1592 | K177: 3_C_LVrate
A178: GENERAL SERVICE 50 TO 4,999 KW | B178: Rate Rider for Disposition of Deferral/Variance Accounts (2012) - effective until April 30, 2014 | H178: $/kW | I178: -0.3734 | K178: 3_C_VC_DEFVAR_kW_1 | L178: 2014-04-30
A179: GENERAL SERVICE 50 TO 4,999 KW | B179: Rate Rider for Disposition of Global Adjustment Sub-Account (2012) - effective until April 30, 2014 Applicable only for Non-RPP Customers | H179: $/kW | I179: -0.184 | K179: 3_C_VC_GA_Rate_Rider_kW_1 | L179: 2014-04-30
A180: GENERAL SERVICE 50 TO 4,999 KW | B180: Rate Rider for Disposition of Deferred PILs Variance Account 1562 - effective until April 30, 2014 | H180: $/kW | I180: -0.4497 | K180: 3_C_VC_DEFVAR_kW_2 | L180: 2014-04-30
A181: GENERAL SERVICE 50 TO 4,999 KW | B181: Rate Rider for Application of Tax Change - effective until April 30, 2014 | H181: $/kW | I181: -0.0124 | K181: 3_C_VC_Rate_Rider_kW_3 | L181: 2014-04-30
A182: GENERAL SERVICE 50 TO 4,999 KW | B182: Retail Transmission Rate - Network Service Rate | H182: $/kW | I182: 2.5508 | K182: 3_C_RTSR_Network
A183: GENERAL SERVICE 50 TO 4,999 KW | B183: Retail Transmission Rate - Line and Transformation Connection Service Rate | H183: $/kW | I183: 1.5766 | K183: 3_C_RTSR_Connection
A184: GENERAL SERVICE 50 TO 4,999 KW
A185: GENERAL SERVICE 50 TO 4,999 KW
A186: GENERAL SERVICE 50 TO 4,999 KW
A187: GENERAL SERVICE 50 TO 4,999 KW
A188: GENERAL SERVICE 50 TO 4,999 KW
A189: GENERAL SERVICE 50 TO 4,999 KW
A190: GENERAL SERVICE 50 TO 4,999 KW
A191: GENERAL SERVICE 50 TO 4,999 KW
A192: GENERAL SERVICE 50 TO 4,999 KW
A193: GENERAL SERVICE 50 TO 4,999 KW
A194: GENERAL SERVICE 50 TO 4,999 KW
A195: GENERAL SERVICE 50 TO 4,999 KW
A196: GENERAL SERVICE 50 TO 4,999 KW
A197: GENERAL SERVICE 50 TO 4,999 KW
A198: GENERAL SERVICE 50 TO 4,999 KW
A199: GENERAL SERVICE 50 TO 4,999 KW
A200: GENERAL SERVICE 50 TO 4,999 KW
A201: GENERAL SERVICE 50 TO 4,999 KW
A202: GENERAL SERVICE 50 TO 4,999 KW
A203: GENERAL SERVICE 50 TO 4,999 KW
A204: GENERAL SERVICE 50 TO 4,999 KW
A205: GENERAL SERVICE 50 TO 4,999 KW | B205: MONTHLY RATES AND CHARGES - Regulatory Component
A206: GENERAL SERVICE 50 TO 4,999 KW
A207: GENERAL SERVICE 50 TO 4,999 KW | B207: Wholesale Market Service Rate | H207: =H81 -> $/kWh | I207: 0.0044 | K207: 3_C_WMSR
A208: GENERAL SERVICE 50 TO 4,999 KW | B208: Rural Rate Protection Charge | H208: $/kWh | I208: 0.0012 | K208: 3_C_RRPC
A209: GENERAL SERVICE 50 TO 4,999 KW | B209: Standard Supply Service - Administrative Charge (if applicable) | H209: $ | I209: 0.25 | K209: 3_C_SSS
A210: GENERAL SERVICE 50 TO 4,999 KW
A213: UNMETERED SCATTERED LOAD | B213: UNMETERED SCATTERED LOAD Service Classification
A214: UNMETERED SCATTERED LOAD
A215: UNMETERED SCATTERED LOAD | B215: This classification refers to an account taking electricity at 750 volts or less whos monthly averge peak demand is less than, or forecast to be less than, 50 kW and the consumption is unmetered. Such connections include cable TV power pack, bus shelters, telephone booths, traffic lights, railway crossings etc. The customer will provide detailed manufacturer information/documentation with regard to electricity demand/consumption of the proposed unmetered load. Further servicing details are available in the distributor's Conditions of Service.
... 235 more rows

Sheet 4. Hidden (hidden)
M1: Current Rate Classes | N1: Changed to Rate Classes | O1: Values in A that are NOT in B | P1: Values in B that are Not in A | Q1: Count of A | R1: Count of B
M2: RESIDENTIAL | N2: RESIDENTIAL | Q2: 7 | R2: 7
M3: GENERAL SERVICE LESS THAN 50 KW | N3: GENERAL SERVICE LESS THAN 50 KW
M4: GENERAL SERVICE 50 TO 4,999 KW | N4: GENERAL SERVICE 50 TO 4,999 KW
M5: UNMETERED SCATTERED LOAD | N5: UNMETERED SCATTERED LOAD
M6: SENTINEL LIGHTING | N6: SENTINEL LIGHTING
M7: STREET LIGHTING | N7: STREET LIGHTING
M8: microFIT | N8: microFIT
A24: RESIDENTIAL URBAN | B24: RESIDENTIAL URBAN Service Classification
A25: RESIDENTIAL URBAN
A26: RESIDENTIAL URBAN
A27: RESIDENTIAL URBAN
A28: RESIDENTIAL URBAN
A29: RESIDENTIAL URBAN
A30: RESIDENTIAL URBAN
A31: RESIDENTIAL URBAN
A32: RESIDENTIAL URBAN | B32: APPLICATION
A33: RESIDENTIAL URBAN
A34: RESIDENTIAL URBAN
A35: RESIDENTIAL URBAN
A36: RESIDENTIAL URBAN
A37: RESIDENTIAL URBAN
A38: RESIDENTIAL URBAN
A39: RESIDENTIAL URBAN
A40: RESIDENTIAL URBAN
A41: RESIDENTIAL URBAN
A42: RESIDENTIAL URBAN
A43: RESIDENTIAL URBAN
A44: RESIDENTIAL URBAN
A45: RESIDENTIAL URBAN
A46: RESIDENTIAL URBAN
A47: RESIDENTIAL URBAN
A48: RESIDENTIAL URBAN | B48: MONTHLY RATES AND CHARGES - Delivery Component (If applicable, Effective Date MUST be included in rate description)
A49: RESIDENTIAL URBAN
A50: RESIDENTIAL URBAN
A51: RESIDENTIAL URBAN
A52: RESIDENTIAL URBAN
A53: RESIDENTIAL URBAN
A54: RESIDENTIAL URBAN
A55: RESIDENTIAL URBAN
A56: RESIDENTIAL URBAN
A57: RESIDENTIAL URBAN
A58: RESIDENTIAL URBAN
A59: RESIDENTIAL URBAN
A60: RESIDENTIAL URBAN
A61: RESIDENTIAL URBAN
A62: RESIDENTIAL URBAN
A63: RESIDENTIAL URBAN
A64: RESIDENTIAL URBAN
A65: RESIDENTIAL URBAN
A66: RESIDENTIAL URBAN
A67: RESIDENTIAL URBAN
A68: RESIDENTIAL URBAN
A69: RESIDENTIAL URBAN
A70: RESIDENTIAL URBAN
A71: RESIDENTIAL URBAN
A72: RESIDENTIAL URBAN
A73: RESIDENTIAL URBAN
A74: RESIDENTIAL URBAN
A75: RESIDENTIAL URBAN
A76: RESIDENTIAL URBAN
A77: RESIDENTIAL URBAN
A78: RESIDENTIAL URBAN
A79: RESIDENTIAL URBAN | B79: MONTHLY RATES AND CHARGES - Regulatory Component
A80: RESIDENTIAL URBAN
A81: RESIDENTIAL URBAN | B81: Wholesale Market Service Rate
A82: RESIDENTIAL URBAN | B82: Rural Rate Protection Charge
A83: RESIDENTIAL URBAN | B83: Standard Supply Service - Administrative Charge (if applicable)
A84: RESIDENTIAL URBAN

Sheet 5. 2014 Continuity Schedule
C15: Please complete the following continuity schedule for the following Deferral / Variance Accounts. Enter information into green cells only. If you have received approval to dispose of balances from prior years, the starting point for entries in the 2014 DVA schedule below will be the balance sheet date as per your G/L for which you received approval. For example, if in the 2013 EDR process (CoS or IRM) you received approval for the December 31, 2011 balances, the starting point for your entries below should be the adjustment column BQ for principal and column BV for interest. This will allow for the correct starting point for the 2012 opening balance columns for both principal and interest. Please refer to the footnotes for further instructions.
E19: 2005 | O19: 2006 | Y19: 2007 | AI19: 2008 | AS19: 2009 | BC19: 2010 | BM19: 2011 | BW19: 2012 | CJ19: 2013 | CN19: Projected Interest on Dec-31-12 Balances | CQ19: 2.1.7 RRR
C20: Account Descriptions | D20: Account Number | E20: Opening Principal Amounts as of Jan-1-05 | F20: Transactions Debit / (Credit) during 2005 excluding interest and adjustments 2 | G20: Board-Approved Disposition during 2005 | H20: Adjustments during 2005 - other 2 | I20: Closing Principal Balance as of Dec-31-05 | J20: Opening Interest Amounts as of Jan-1-05 | K20: Interest Jan-1 to Dec-31-05 | L20: Board-Approved Disposition during 2005 | M20: Adjustments during 2005 - other 2 | N20: Closing Interest Amounts as of Dec-31-05 | O20: Opening Principal Amounts as of Jan-1-06 | P20: Transactions Debit / (Credit) during 2006 excluding interest and adjustments 2 | Q20: Board-Approved Disposition during 2006 | R20: Adjustments during 2006 - other 2 | S20: Closing Principal Balance as of Dec-31-06 | T20: Opening Interest Amounts as of Jan-1-06 | U20: Interest Jan-1 to Dec-31-06 | V20: Board-Approved Disposition during 2006 1 | W20: Adjustments during 2006 - other 2 | X20: Closing Interest Amounts as of Dec-31-06 | Y20: Opening Principal Amounts as of Jan-1-07 | Z20: Transactions Debit / (Credit) during 2007 excluding interest and adjustments 2 | AA20: Board-Approved Disposition during 2007 | AB20: Adjustments during 2007 - other 1 | AC20: Closing Principal Balance as of Dec-31-07 | AD20: Opening Interest Amounts as of Jan-1-07 | AE20: Interest Jan-1 to Dec-31-07 | AF20: Board-Approved Disposition during 2007 | AG20: Adjustments during 2007 - other 1 | AH20: Closing Interest Amounts as of Dec-31-07 | AI20: Opening Principal Amounts as of Jan-1-08 | AJ20: Transactions Debit / (Credit) during 2008 excluding interest and adjustments 2 | AK20: Board-Approved Disposition during 2008 | AL20: Adjustments during 2008 - other 1 | AM20: Closing Principal Balance as of Dec-31-08 | AN20: Opening Interest Amounts as of Jan-1-08 | AO20: Interest Jan-1 to Dec-31-08 | AP20: Board-Approved Disposition during 2008 | AQ20: Adjustments during 2008 - other 1 | AR20: Closing Interest Amounts as of Dec-31-08 | AS20: Opening Principal Amounts as of Jan-1-09 | AT20: Transactions Debit / (Credit) during 2009 excluding interest and adjustments 2 | AU20: Board-Approved Disposition during 2009 | AV20: Adjustments during 2009 - other 1 | AW20: Closing Principal Balance as of Dec-31-09 | AX20: Opening Interest Amounts as of Jan-1-09 | AY20: Interest Jan-1 to Dec-31-09 | AZ20: Board-Approved Disposition during 2009 | BA20: Adjustments during 2009 - other 1 | BB20: Closing Interest Amounts as of Dec-31-09 | BC20: Opening Principal Amounts as of Jan-1-10 | BD20: Transactions Debit / (Credit) during 2010 excluding interest and adjustments 2 | BE20: Board-Approved Disposition during 2010 | BF20: Adjustments during 2010 - other 1 | BG20: Closing Principal Balance as of Dec-31-10 | BH20: Opening Interest Amounts as of Jan-1-10 | BI20: Interest Jan-1 to Dec-31-10 | BJ20: Board-Approved Disposition during 2010 | BK20: Adjustments during 2010 - other 2 | BL20: Closing Interest Amounts as of Dec-31-10 | BM20: Opening Principal Amounts as of Jan-1-11 | BN20: Transactions Debit / (Credit) during 2011 excluding interest and adjustments 2 | BO20: Board-Approved Disposition during 2011 | BP20: Adjustments during 2011 - other 1 | BQ20: Closing Principal Balance as of Dec-31-11 | BR20: Opening Interest Amounts as of Jan-1-11 | BS20: Interest Jan-1 to Dec-31-11 | BT20: Board-Approved Disposition during 2011 | BU20: Adjustments during 2011 - other 2 | BV20: Closing Interest Amounts as of Dec-31-11 | BW20: Opening Principal Amounts as of Jan-1-12 | BX20: Transactions Debit / (Credit) during 2012 excluding interest and adjustments 2 | BY20: Board-Approved Disposition during 2012 | BZ20: Other 1 Adjustments during Q1 2012 | CA20: Other 1 Adjustments during Q2 2012 | CB20: Other 1 Adjustments during Q3 2012 | CC20: Other 1 Adjustments during Q4 2012 | CD20: Closing Principal Balance as of Dec-31-12 | CE20: Opening Interest Amounts as of Jan-1-12 | CF20: Interest Jan-1 to Dec-31-12 | CG20: Board-Approved Disposition during 2012 | CH20: Adjustments during 2012 - other 1 | CI20: Closing Interest Amounts as of Dec-31-12 | CJ20: Principal Disposition during 2013 - instructed by Board | CK20: Interest Disposition during 2013 - instructed by Board | CL20: Closing Principal Balances as of Dec 31-12 Adjusted for Dispositions during 2013 | CM20: Closing Interest Balances as of Dec 31-12 Adjusted for Dispositions during 2013 | CN20: Projected Interest from Jan 1, 2013 to December 31, 2013 on Dec 31 -12 balance adjusted for disposition during 2013 3 | CO20: Projected Interest from January 1, 2013 to April 30, 2013 on Dec 31 -12 balance adjusted for disposition during 2013 3 | CP20: Total Claim | CQ20: As of Dec 31-12 | CR20: Variance RRR vs. 2012 Balance (Principal + Interest)
CP22: Claim before Forecasted Transactions
C23: Group 1 Accounts
A24: 1 | C24: LV Variance Account | D24: 1550 | I24: =E24+F24-G24+H24 -> 0 | N24: =J24+K24-L24+M24 -> 0 | O24: =I24 -> 0 | S24: =O24+P24-Q24+R24 -> 0 | X24: =T24+U24-V24+W24 -> 0 | Y24: =S24 -> 0 | AC24: =Y24+Z24-AA24+AB24 -> 0 | AD24: =X24 -> 0 | AH24: =AD24+AE24-AF24+AG24 -> 0 | AI24: =AC24 -> 0 | AM24: =AI24+AJ24-AK24+AL24 -> 0 | AN24: =AH24 -> 0 | AR24: =AN24+AO24-AP24+AQ24 -> 0 | AS24: =AM24 -> 0 | AW24: =AS24+AT24-AU24+AV24 -> 0 | AX24: =AR24 -> 0 | BB24: =AX24+AY24-AZ24+BA24 -> 0 | BC24: =AW24 -> 0 | BG24: -891418 | BH24: =BB24 -> 0 | BL24: -7086 | BM24: =BG24 -> -891418 | BN24: -129408 | BO24: -465376 | BQ24: =BM24+BN24-BO24+BP24 -> -555450 | BR24: =BL24 -> -7086 | BS24: -8279 | BT24: -8614 | BV24: =BR24+BS24-BT24+BU24 -> -6751 | BW24: =BQ24 -> -555450 | BX24: 5975.61 | BY24: -426042 | CD24: =BW24+BX24-BY24+SUM(BZ24:CC24) -> -123432.39 | CE24: =BV24 -> -6751 | CF24: -199.21 | CG24: -8614 | CI24: =CE24+CF24-CG24+CH24 -> 1663.79 | CL24: =CD24-CJ24 -> -123432.39 | CM24: =CI24-CK24 -> 1663.79 | CN24: =CL24*1.47% -> -1814.456133 | CO24: =CL24*0.0147*4/12 -> -604.818711 | CP24: =SUM(CL24:CO24) -> -124187.8748 | CQ24: -121768.21 | CR24: =CQ24-SUM(CD24,CI24) -> 0.39
A25: 2 | C25: RSVA - Wholesale Market Service Charge | D25: 1580 | I25: 0 | N25: =J25+K25-L25+M25 -> 0 | O25: =I25 -> 0 | S25: 0 | X25: 0 | Y25: =S25 -> 0 | AC25: 0 | AD25: =X25 -> 0 | AH25: 0 | AI25: =AC25 -> 0 | AM25: 0 | AN25: =AH25 -> 0 | AR25: 0 | AS25: =AM25 -> 0 | AW25: 0 | AX25: =AR25 -> 0 | BB25: 0 | BC25: =AW25 -> 0 | BG25: -1799445 | BH25: =BB25 -> 0 | BL25: -54281 | BM25: =BG25 -> -1799445 | BN25: -1470817 | BO25: -422914 | BQ25: =BM25+BN25-BO25+SUM(BP25:BP25) -> -2847348 | BR25: =BL25 -> -54281 | BS25: -8110 | BT25: -31616 | BV25: -30775 | BW25: =BQ25 -> -2847348 | BX25: -1693904.78 | BY25: -1376531 | CD25: -3164721.78 | CE25: =BV25 -> -30775 | CF25: -30804.11 | CG25: -31616 | CI25: =CE25+CF25-CG25+CH25 -> -29963.11 | CL25: =CD25-CJ25 -> -3164721.78 | CM25: =CI25-CK25 -> -29963.11 | CN25: -46521.41017 | CO25: =CL25*0.0147*4/12 -> -15507.13672 | CP25: =SUM(CL25:CO25) -> -3256713.437 | CQ25: -3194684.62 | CR25: =CQ25-SUM(CD25,CI25) -> 0.27
A26: 3 | C26: RSVA - Retail Transmission Network Charge | D26: 1584 | I26: 0 | N26: 0 | O26: 0 | S26: 0 | X26: 0 | Y26: 0 | AC26: 0 | AD26: 0 | AH26: 0 | AI26: 0 | AM26: 0 | AN26: 0 | AR26: 0 | AS26: 0 | AW26: 0 | AX26: 0 | BB26: 0 | BC26: 0 | BG26: 1187982 | BH26: 0 | BL26: -6824 | BM26: 1187982 | BN26: 495520 | BO26: 161644 | BQ26: 1521858 | BR26: -6824 | BS26: 50734 | BT26: 22960 | BV26: 20950 | BW26: 1521858 | BX26: 380922.76 | BY26: 1026338 | CD26: 876442.76 | CE26: 20950 | CF26: 12486.73 | CG26: 22960 | CI26: 10476.73 | CL26: 876442.76 | CM26: 10476.73 | CN26: 12883.70857 | CO26: 4294.569524 | CP26: 904097.7681 | CQ26: 886919.51 | CR26: 0.02000000002
A27: 4 | C27: RSVA - Retail Transmission Connection Charge | D27: 1586 | I27: =E27+F27-G27+H27 -> 0 | N27: 0 | O27: 0 | S27: 0 | X27: 0 | Y27: 0 | AC27: 0 | AD27: 0 | AH27: 0 | AI27: 0 | AM27: 0 | AN27: 0 | AR27: 0 | AS27: 0 | AW27: 0 | AX27: 0 | BB27: 0 | BC27: 0 | BG27: -1276433 | BH27: 0 | BL27: -20556 | BM27: -1276433 | BN27: 317671 | BO27: -409712 | BQ27: -549050 | BR27: -20556 | BS27: -23269 | BT27: -22786 | BV27: -21039 | BW27: -549050 | BX27: 332471.81 | BY27: -866721 | CD27: 650142.81 | CE27: -21039 | CF27: -2596.65 | CG27: -22786 | CI27: -849.65 | CL27: 650142.81 | CM27: -849.65 | CN27: 9557.099307 | CO27: 3185.699769 | CP27: 662035.9591 | CQ27: 649292.69 | CR27: -0.4700000001
A28: 5 | C28: RSVA - Power (excluding Global Adjustment) | D28: 1588 | I28: 0 | N28: 0 | O28: 0 | S28: 0 | X28: 0 | Y28: 0 | AC28: 0 | AD28: 0 | AH28: 0 | AI28: 0 | AM28: 0 | AN28: 0 | AR28: 0 | AS28: 0 | AW28: 0 | AX28: 0 | BB28: 0 | BC28: 0 | BG28: -1741092 | BH28: 0 | BL28: -1638 | BM28: -1741092 | BN28: -3078479 | BO28: -848384 | BQ28: -3971187 | BR28: -1638 | BS28: -56353 | BT28: -16850 | BV28: -41141 | BW28: -3971187 | BX28: -1640798.53 | BY28: -892708 | CD28: -4719277.53 | CE28: -41141 | CF28: -80232.97 | CG28: -16850 | CI28: -104523.97 | CL28: -4719277.53 | CM28: -104523.97 | CN28: -69373.37969 | CO28: -23124.4599 | CP28: -4916299.34 | CQ28: -4823801.99 | CR28: -0.4900000012
A29: 6 | C29: RSVA - Global Adjustment | D29: 1589 | I29: 0 | N29: 0 | O29: 0 | S29: 0 | X29: 0 | Y29: 0 | AC29: 0 | AD29: 0 | AH29: 0 | AI29: 0 | AM29: 0 | AN29: 0 | AR29: 0 | AS29: 0 | AW29: 0 | AX29: 0 | BB29: 0 | BC29: 0 | BG29: 475980 | BH29: 0 | BL29: 15237 | BM29: 475980 | BN29: 3466656 | BO29: 1135692 | BQ29: 2806944 | BR29: 15237 | BS29: -18730 | BT29: -14395 | BV29: 10902 | BW29: 2806944 | BX29: 214684.18 | BY29: -659712 | CD29: 3681340.18 | CE29: 10902 | CF29: 17487.26 | CG29: -14395 | CI29: 42784.26 | CL29: 3681340.18 | CM29: 42784.26 | CN29: 54115.70065 | CO29: 18038.56688 | CP29: 3796278.708 | CQ29: 3724124.59 | CR29: 0.1500000004
A30: 7 | C30: Recovery of Regulatory Asset Balances | D30: 1590 | I30: 0 | N30: 0 | O30: 0 | S30: 0 | X30: 0 | Y30: 0 | AC30: 0 | AD30: 0 | AH30: 0 | AI30: 0 | AM30: 0 | AN30: 0 | AR30: 0 | AS30: 0 | AW30: 0 | AX30: 0 | BB30: 0 | BC30: 0 | BH30: 0 | BM30: 0 | BQ30: 0 | BR30: 0 | BV30: 0 | BW30: 0 | CD30: 0 | CE30: 0 | CI30: 0 | CL30: 0 | CM30: 0 | CN30: 0 | CO30: 0 | CP30: 0 | CR30: 0
A31: 8 | C31: Disposition and Recovery/Refund of Regulatory Balances (2008)5 | D31: 1595 | I31: 0 | N31: 0 | O31: =I31 -> 0 | S31: 0 | X31: 0 | Y31: =S31 -> 0 | AC31: 0 | AD31: =X31 -> 0 | AH31: 0 | AI31: =AC31 -> 0 | AM31: 0 | AN31: =AH31 -> 0 | AR31: 0 | AS31: =AM31 -> 0 | AW31: 0 | AX31: =AR31 -> 0 | BB31: 0 | BC31: =AW31 -> 0 | BG31: 0 | BH31: =BB31 -> 0 | BL31: 0 | BM31: =BG31 -> 0 | BN31: 0 | BQ31: 0 | BR31: =BL31 -> 0 | BS31: 0 | BV31: 0 | BW31: 0 | BX31: 0 | CD31: 0 | CE31: 0 | CF31: 0 | CI31: 0 | CL31: 0 | CM31: 0 | CN31: 0 | CO31: 0 | CP31: 0 | CR31: 0
A32: 9 | C32: Disposition and Recovery/Refund of Regulatory Balances (2009)5 | D32: 1595 | I32: 0 | N32: 0 | O32: 0 | S32: 0 | X32: 0 | Y32: 0 | AC32: 0 | AD32: 0 | AH32: 0 | AI32: 0 | AM32: 0 | AN32: 0 | AR32: 0 | AS32: 0 | AW32: 0 | AX32: 0 | BB32: 0 | BC32: 0 | BH32: 0 | BM32: =BG32 -> 0 | BQ32: 0 | BR32: =BL32 -> 0 | BT32: 0 | BV32: 0 | BW32: 0 | CD32: 0 | CE32: 0 | CI32: 0 | CL32: 0 | CM32: 0 | CN32: 0 | CO32: 0 | CP32: 0 | CR32: 0
A33: 9 | C33: Disposition and Recovery/Refund of Regulatory Balances (2010)5 | D33: 1595 | I33: =E33+F33-G33+H33 -> 0 | N33: =J33+K33-L33+M33 -> 0 | O33: =I33 -> 0 | S33: 0 | X33: 0 | Y33: =S33 -> 0 | AC33: 0 | AD33: =X33 -> 0 | AH33: 0 | AI33: =AC33 -> 0 | AM33: 0 | AN33: =AH33 -> 0 | AR33: 0 | AS33: =AM33 -> 0 | AW33: 0 | AX33: =AR33 -> 0 | BB33: 0 | BC33: =AW33 -> 0 | BG33: =-11292515.27+3113333.77+1640764.6-489215.89 -> -7027632.79 | BH33: =BB33 -> 0 | BL33: =2067377.58-243686.2 -> 1823691.38 | BM33: =BG33 -> -7027632.79 | BN33: =4677654.75-693964.89 -> 3983689.86 | BQ33: -3043942.93 | BR33: =BL33 -> 1823691.38 | BS33: =-99124.38+13834.99 -> -85289.39 | BT33: 0 | BV33: 1738401.99 | BW33: -3043942.93 | BX33: =1485904.31-218531.51 -> 1267372.8 | CD33: -1776570.13 | CE33: 1738401.99 | CF33: =-49712.36+6561.8 -> -43150.56 | CI33: 1695251.43 | CL33: =CD33-CJ33 -> -1776570.13 | CM33: =CI33-CK33 -> 1695251.43 | CN33: =CL33*1.47%/12*6 -> -13057.79046 | CO33: -8705.193637 | CP33: -103081.6841 | CQ33: -81318.7 | CR33: =CQ33-SUM(CD33,CI33) -> 6.111804396e-10
A34: 9 | C34: Disposition and Recovery/Refund of Regulatory Balances (2011)5 | D34: 1595 | I34: =E34+F34-G34+H34 -> 0 | N34: =J34+K34-L34+M34 -> 0 | O34: =I34 -> 0 | S34: 0 | X34: 0 | Y34: =S34 -> 0 | AC34: 0 | AD34: =X34 -> 0 | AH34: 0 | AI34: =AC34 -> 0 | AM34: 0 | AN34: =AH34 -> 0 | AR34: 0 | AS34: =AM34 -> 0 | AW34: 0 | AX34: =AR34 -> 0 | BB34: 0 | BC34: =AW34 -> 0 | BH34: =BB34 -> 0 | BM34: =BG34 -> 0 | BO34: =1167600.38-707232.18-1135691.71+716336.33 -> 41012.82 | BQ34: -41012.82 | BR34: =BL34 -> 0 | BT34: 65272 | BV34: -65272 | BW34: -41012.82 | BX34: =377605.7-380363.12 -> -2757.42 | CD34: -43770.24 | CE34: -65272 | CF34: =-3605.51+4472.48 -> 866.97 | CI34: -64405.03 | CL34: =CD34-CJ34 -> -43770.24 | CM34: =CI34-CK34 -> -64405.03 | CN34: =CL34*1.47%/12*6 -> -321.711264 | CO34: -214.474176 | CP34: =SUM(CL34:CO34) -> -108711.4554 | CQ34: -108175.67 | CR34: =CQ34-SUM(CD34,CI34) -> -0.4000000002
C36: Group 1 Sub-Total (including Account 1589 - Global Adjustment) | E36: =SUM(E24:E34) -> 0 | F36: =SUM(F24:F34) -> 0 | G36: 0 | H36: 0 | I36: 0 | J36: 0 | K36: 0 | L36: 0 | M36: 0 | N36: 0 | O36: 0 | P36: 0 | Q36: 0 | R36: 0 | S36: =SUM(S24:S34) -> 0 | X36: =SUM(X24:X34) -> 0 | Y36: 0 | Z36: 0 | AA36: 0 | AB36: 0 | AC36: =SUM(AC24:AC34) -> 0 | AD36: 0 | AE36: 0 | AF36: 0 | AG36: 0 | AH36: =SUM(AH24:AH34) -> 0 | AI36: 0 | AJ36: 0 | AK36: 0 | AL36: 0 | AM36: =SUM(AM24:AM34) -> 0 | AN36: 0 | AO36: 0 | AP36: 0 | AQ36: 0 | AR36: =SUM(AR24:AR34) -> 0 | AS36: 0 | AT36: 0 | AU36: 0 | AV36: 0 | AW36: =SUM(AW24:AW34) -> 0 | AX36: 0 | AY36: 0 | AZ36: 0 | BA36: 0 | BB36: =SUM(BB24:BB34) -> 0 | BC36: 0 | BD36: 0 | BE36: 0 | BF36: 0 | BG36: =SUM(BG24:BG34) -> -11072058.79 | BH36: 0 | BI36: 0 | BJ36: 0 | BK36: 0 | BL36: =SUM(BL24:BL34) -> 1748543.38 | BM36: =SUM(BM24:BM34) -> -11072058.79 | BN36: 3584832.86 | BO36: -808037.18 | BP36: 0 | BQ36: =SUM(BQ24:BQ34) -> -6679188.75 | BR36: 1748543.38 | BS36: -149296.39 | BT36: -6029 | BU36: 0 | BV36: =SUM(BV24:BV34) -> 1605275.99 | BW36: -6679188.75 | BX36: -1136033.57 | BY36: -3195376 | BZ36: 0 | CA36: 0 | CB36: =SUM(CB24:CB34) -> 0 | CC36: 0 | CD36: =SUM(CD24:CD34) -> -4619846.32 | CE36: 1605275.99 | CF36: -126142.54 | CG36: -71301 | CH36: 0 | CI36: =SUM(CI24:CI34) -> 1550434.45 | CJ36: 0 | CK36: 0 | CL36: -4619846.32 | CM36: 1550434.45 | CN36: -54532.23918 | CO36: -22637.24697 | CP36: -3146581.356 | CQ36: -3069412.4 | CR36: -0.5300000004
C37: Group 1 Sub-Total (excluding Account 1589 - Global Adjustment) | E37: =E36-E38 -> 0 | F37: =F36-F38 -> 0 | G37: =G36-G38 -> 0 | H37: 0 | I37: 0 | J37: 0 | K37: 0 | L37: =L36-L38 -> 0 | M37: =M36-M38 -> 0 | N37: 0 | O37: 0 | P37: 0 | Q37: 0 | R37: 0 | S37: =S36-S38 -> 0 | X37: =X36-X38 -> 0 | Y37: 0 | Z37: 0 | AA37: 0 | AB37: 0 | AC37: =AC36-AC38 -> 0 | AD37: 0 | AE37: 0 | AF37: =AF36-AF38 -> 0 | AG37: =AG36-AG38 -> 0 | AH37: =AH36-AH38 -> 0 | AI37: 0 | AJ37: 0 | AK37: 0 | AL37: 0 | AM37: =AM36-AM38 -> 0 | AN37: 0 | AO37: 0 | AP37: =AP36-AP38 -> 0 | AQ37: =AQ36-AQ38 -> 0 | AR37: =AR36-AR38 -> 0 | AS37: 0 | AT37: 0 | AU37: 0 | AV37: 0 | AW37: =AW36-AW38 -> 0 | AX37: 0 | AY37: 0 | AZ37: =AZ36-AZ38 -> 0 | BA37: =BA36-BA38 -> 0 | BB37: =BB36-BB38 -> 0 | BC37: 0 | BD37: 0 | BE37: 0 | BF37: 0 | BG37: =BG36-BG38 -> -11548038.79 | BH37: 0 | BI37: 0 | BJ37: 0 | BK37: 0 | BL37: =BL36-BL38 -> 1733306.38 | BM37: =BM36-BM38 -> -11548038.79 | BN37: 118176.86 | BO37: -1943729.18 | BP37: 0 | BQ37: =BQ36-BQ38 -> -9486132.75 | BR37: 1733306.38 | BS37: -130566.39 | BT37: 8366 | BU37: 0 | BV37: =BV36-BV38 -> 1594373.99 | BW37: -9486132.75 | BX37: -1350717.75 | BY37: -2535664 | BZ37: 0 | CA37: 0 | CB37: 0 | CC37: =CC36-CC38 -> 0 | CD37: =CD36-CD38 -> -8301186.5 | CE37: 1594373.99 | CF37: -143629.8 | CG37: -56906 | CH37: 0 | CI37: =CI36-CI38 -> 1507650.19 | CJ37: 0 | CK37: 0 | CL37: -8301186.5 | CM37: 1507650.19 | CN37: -108647.9398 | CO37: -40675.81385 | CP37: -6942860.064 | CQ37: =CQ36-CQ38 -> -6793536.99 | CR37: -0.6800000016
C38: =C29 -> RSVA - Global Adjustment | D38: 1589 | E38: =E29 -> 0 | F38: =F29 -> 0 | G38: =G29 -> 0 | H38: 0 | I38: 0 | J38: 0 | K38: 0 | L38: =L29 -> 0 | M38: =M29 -> 0 | N38: 0 | O38: 0 | P38: 0 | Q38: 0 | R38: 0 | S38: =S29 -> 0 | X38: =X29 -> 0 | Y38: 0 | Z38: 0 | AA38: 0 | AB38: 0 | AC38: =AC29 -> 0 | AD38: 0 | AE38: 0 | AF38: 0 | AG38: 0 | AH38: =AH29 -> 0 | AI38: 0 | AJ38: 0 | AK38: 0 | AL38: 0 | AM38: =AM29 -> 0 | AN38: 0 | AO38: 0 | AP38: =AP29 -> 0 | AQ38: =AQ29 -> 0 | AR38: =AR29 -> 0 | AS38: 0 | AT38: 0 | AU38: 0 | AV38: 0 | AW38: =AW29 -> 0 | AX38: 0 | AY38: 0 | AZ38: 0 | BA38: 0 | BB38: =BB29 -> 0 | BC38: 0 | BD38: 0 | BE38: 0 | BF38: 0 | BG38: =BG29 -> 475980 | BH38: 0 | BI38: 0 | BJ38: 0 | BK38: 0 | BL38: =BL29 -> 15237 | BM38: =BM29 -> 475980 | BN38: 3466656 | BO38: 1135692 | BP38: 0 | BQ38: =BQ29 -> 2806944 | BR38: 15237 | BS38: -18730 | BT38: -14395 | BU38: 0 | BV38: =BV29 -> 10902 | BW38: 2806944 | BX38: 214684.18 | BY38: -659712 | BZ38: 0 | CA38: 0 | CB38: 0 | CC38: =CC29 -> 0 | CD38: =CD29 -> 3681340.18 | CE38: 10902 | CF38: 17487.26 | CG38: -14395 | CH38: 0 | CI38: =CI29 -> 42784.26 | CJ38: 0 | CK38: 0 | CL38: 3681340.18 | CM38: 42784.26 | CN38: 54115.70065 | CO38: 18038.56688 | CP38: 3796278.708 | CQ38: =CQ29 -> 3724124.59 | CR38: 0.1500000004
A41: 31 | C41: Deferred Payments in Lieu of Taxes | D41: 1562 | I41: =E41+F41-G41+H41 -> 0 | N41: =J41+K41-L41+M41 -> 0 | O41: =I41 -> 0 | S41: =O41+P41-Q41+R41 -> 0 | X41: =T41+U41-V41+W41 -> 0 | Y41: =S41 -> 0 | AC41: =Y41+Z41-AA41+AB41 -> 0 | AD41: =X41 -> 0 | AH41: =AD41+AE41-AF41+AG41 -> 0 | AI41: =AC41 -> 0 | AM41: =AI41+AJ41-AK41+AL41 -> 0 | AN41: =AH41 -> 0 | AR41: =AN41+AO41-AP41+AQ41 -> 0 | AS41: =AM41 -> 0 | AW41: =AS41+AT41-AU41+AV41 -> 0 | AX41: =AR41 -> 0 | BB41: =AX41+AY41-AZ41+BA41 -> 0 | BC41: =AW41 -> 0 | BG41: =-4111524+430577 -> -3680947 | BH41: =BB41 -> 0 | BL41: =-811370+111950 -> -699420 | BM41: =BG41 -> -3680947 | BP41: =1599709-198285 -> 1401424 | BQ41: =BM41+BN41-BO41+SUM(BP41:BP41) -> -2279523 | BR41: =BL41 -> -699420 | BS41: -59648 | BU41: =381520-68500 -> 313020 | BV41: =BR41+BS41-BT41+BU41 -> -446048 | BW41: =BQ41 -> -2279523 | BY41: =-2511815+232292 -> -2279523 | CD41: =BW41+BX41-BY41+SUM(BZ41:CC41) -> 0 | CE41: =BV41 -> -446048 | CG41: =-489498+43450 -> -446048 | CI41: =CE41+CF41-CG41+CH41 -> 0 | CL41: =CD41-CJ41 -> 0 | CM41: =CI41-CK41 -> 0 | CN41: =CL41*1.47% -> 0 | CO41: =CM41*1.47% -> 0 | CP41: 0 | CQ41: 0 | CR41: 0
CR42: 0
C43: Total of Group 1 and Account 1562 | E43: =SUM(E41,E36) -> 0 | F43: =SUM(F41,F36) -> 0 | G43: =SUM(G41,G36) -> 0 | H43: 0 | I43: 0 | J43: 0 | K43: 0 | L43: 0 | M43: 0 | N43: 0 | O43: 0 | P43: 0 | Q43: 0 | R43: 0 | S43: =SUM(S41,S36) -> 0 | X43: =SUM(X41,X36) -> 0 | Y43: 0 | Z43: 0 | AA43: 0 | AB43: 0 | AC43: =SUM(AC41,AC36) -> 0 | AD43: 0 | AE43: 0 | AF43: 0 | AG43: 0 | AH43: =SUM(AH41,AH36) -> 0 | AI43: 0 | AJ43: 0 | AK43: 0 | AL43: 0 | AM43: =SUM(AM41,AM36) -> 0 | AN43: 0 | AO43: 0 | AP43: 0 | AQ43: 0 | AR43: =SUM(AR41,AR36) -> 0 | AS43: 0 | AT43: 0 | AU43: 0 | AV43: 0 | AW43: =SUM(AW41,AW36) -> 0 | AX43: 0 | AY43: 0 | AZ43: 0 | BA43: 0 | BB43: =SUM(BB41,BB36) -> 0 | BC43: 0 | BD43: 0 | BE43: 0 | BF43: 0 | BG43: =SUM(BG41,BG36) -> -14753005.79 | BH43: 0 | BI43: 0 | BJ43: 0 | BK43: 0 | BL43: =SUM(BL41,BL36) -> 1049123.38 | BM43: =SUM(BM41,BM36) -> -14753005.79 | BN43: 3584832.86 | BO43: -808037.18 | BP43: 1401424 | BQ43: =SUM(BQ41,BQ36) -> -8958711.75 | BR43: 1049123.38 | BS43: -208944.39 | BT43: -6029 | BU43: 313020 | BV43: =SUM(BV41,BV36) -> 1159227.99 | BW43: -8958711.75 | BX43: -1136033.57 | BY43: -5474899 | BZ43: 0 | CA43: 0 | CB43: 0 | CC43: =SUM(CC41,CC36) -> 0 | CD43: =SUM(CD41,CD36) -> -4619846.32 | CE43: 1159227.99 | CF43: -126142.54 | CG43: -517349 | CH43: 0 | CI43: =SUM(CI41,CI36) -> 1550434.45 | CJ43: 0 | CK43: 0 | CL43: -4619846.32 | CM43: 1550434.45 | CN43: -54532.23918 | CO43: -22637.24697 | CP43: -3146581.356 | CQ43: -3069412.4 | CR43: -0.5300000004
A45: 34 | C45: Special Purpose Charge Assessment Variance Account4 | D45: 1521
C47: LRAM Variance Account6 | D47: 1568 | BQ47: =BM47+BN47-BO47+SUM(BP47:BP47) -> 0 | BV47: =BR47+BS47-BT47+BU47 -> 0 | BW47: =BQ47 -> 0 | CD47: =BW47+BX47-BY47+SUM(BZ47:CC47) -> 0 | CE47: =BV47 -> 0 | CI47: =CE47+CF47-CG47+CH47 -> 0 | CL47: =CD47-CJ47 -> 0 | CM47: =CI47-CK47 -> 0 | CP47: =SUM(CL47:CO47) -> 0 | CR47: =CQ47-SUM(CD47,CI47) -> 0
C49: Total including Accounts 1562 and 1568 | E49: =E45+E43+E47 -> 0 | F49: =F45+F43+F47 -> 0 | G49: =G45+G43+G47 -> 0 | H49: 0 | I49: 0 | J49: 0 | K49: 0 | L49: 0 | M49: 0 | N49: 0 | O49: 0 | P49: 0 | Q49: 0 | R49: 0 | S49: =S45+S43+S47 -> 0 | X49: =X45+X43+X47 -> 0 | Y49: 0 | Z49: 0 | AA49: 0 | AB49: 0 | AC49: =AC45+AC43+AC47 -> 0 | AD49: 0 | AE49: 0 | AF49: 0 | AG49: 0 | AH49: =AH45+AH43+AH47 -> 0 | AI49: 0 | AJ49: 0 | AK49: =AK43+AK47 -> 0 | AL49: =AL43+AL47 -> 0 | AM49: =AM43+AM47 -> 0 | AN49: 0 | AO49: 0 | AP49: 0 | AQ49: 0 | AR49: =AR43+AR47 -> 0 | AS49: 0 | AT49: 0 | AU49: 0 | AV49: 0 | AW49: =AW43+AW47 -> 0 | AX49: 0 | AY49: 0 | AZ49: 0 | BA49: 0 | BB49: =BB43+BB47 -> 0 | BC49: 0 | BD49: 0 | BE49: 0 | BF49: 0 | BG49: =BG43+BG47 -> -14753005.79 | BH49: 0 | BI49: 0 | BJ49: 0 | BK49: 0 | BL49: =BL43+BL47 -> 1049123.38 | BM49: =BM43+BM47 -> -14753005.79 | BN49: 3584832.86 | BO49: -808037.18 | BP49: 1401424 | BQ49: =BQ43+BQ47 -> -8958711.75 | BR49: 1049123.38 | BS49: -208944.39 | BT49: -6029 | BU49: 313020 | BV49: =BV43+BV47 -> 1159227.99 | BW49: -8958711.75 | BX49: -1136033.57 | BY49: -5474899 | BZ49: 0 | CA49: 0 | CB49: 0 | CC49: 0 | CD49: =CD43+CD47 -> -4619846.32 | CE49: 1159227.99 | CF49: -126142.54 | CG49: -517349 | CH49: 0 | CI49: =CI43+CI47 -> 1550434.45 | CJ49: 0 | CK49: 0 | CL49: -4619846.32 | CM49: 1550434.45 | CN49: -54532.23918 | CO49: -22637.24697 | CP49: -3146581.356 | CQ49: -3069412.4 | CR49: -0.5300000004
C52: For all Board-Approved dispositions, please ensure that the disposition amount has the same sign (e.g: debit balances are to have a positive figure and credit balance are to have a negative figure) as per the related Board decision.
B55: 1 | C55: Please provide explanations for the nature of the adjustments. If the adjustment relates to previously Board Approved disposed balances, please provide amounts for adjustments and include supporting documentations.
B56: 2 | C56: For RSVA accounts only, report the net variance to the account during the year. For all other accounts, record the transactions during the year.
B57: 3 | C57: If the LDC’s 2013 rate year begins January 1, 2014, the projected interest is recorded from January 1, 2013 to December 31, 2013 on the December 31, 2012 balance adjusted for the disposed balances approved by the Board in the 2013 rate decision. If the LDC’s 2014 rate year begins May 1, 2014 the projected interest is recorded from January 1, 2013 to April 30, 2014 on the December 31, 2012 balance adjusted for the disposed balances approved by the Board in the 2013 rate decision.
B58: 4 | C58: Applicants that did not have the balance in Account 1521 cleared by the Board in the 2012 rate proceedings are expected to file to dispose of Account 1521 in the 2013 rate proceedings. No Account 1521 balance is to be filed for clearance in the 2013 rate proceedings for those distributors that had account 1521 cleared by the Board in the 2012 rate proceedings. In accordance with section 8 of the Special Purpose Charge (“SPC”) Regulation, Ontario Regulation 66/10, distributors were required to apply to the Board no later than April 15, 2012 for an order authorizing the distributor to clear the balance in Account 1521. As per the Board’s April 23, 2010 letter, the Board stated that it expected that requests for disposition of the balance in Account 1521 were to be addressed as part of the proceedings to set rates for the 2012 rate year, except in cases where this approach would result in non-compliance with the timeline set out in section 8 of the SPC Regulation.
B59: 5 | C59: Include Account 1595 as part of Group 1 accounts (lines 31, 32, 33 and 34) for review and disposition if the recovery (or refund) period has been completed. If the recovery (or refund) period has not been completed, do not include the respective balance in Account 1595 for disposition at this time.

Sheet 6. Billing Det. for Def-Var
A13: In the green shaded cells, enter the most recent Board Approved volumetric forecast. If there is a material difference between the latest Board-approved volumetric forecast and the most recent 12-month actual volumetric data, use the most recent 12-month actual data. Do not enter data for the MicroFit class.
E15: Billed kWh for Non-RPP Customers | F15: Estimated kW for Non-RPP Customers | G15: Distribution Revenue 1 | H15: 1590 Recovery Share Proportion* | I15: 1595 Recovery Share Proportion (2008) 2 | J15: 1595 Recovery Share Proportion (2009) 2 | K15: 1595 Recovery Share Proportion (2010) 2 | L15: 1595 Recovery Share Proportion (2011) 2 | M15: 1568 LRAM Variance Account Class Allocation ($ amounts)
A16: Rate Class | B16: Unit | C16: Metered kWh | D16: Metered kW
A17: RESIDENTIAL | B17: $/kWh | C17: 462790265 | E17: 71338420 | F17: =IF(ISERROR(D17/C17*E17), 0, D17/C17*E17) -> 0 | G17: 15743932 | K17: 0.4114731541 | L17: 0.6422323072
A18: GENERAL SERVICE LESS THAN 50 KW | B18: $/kWh | C18: 122331880 | E18: 19756401 | F18: =IF(ISERROR(D18/C18*E18), 0, D18/C18*E18) -> 0 | G18: 3563569 | K18: 0.1327400426 | L18: 0.2065730622
A19: GENERAL SERVICE 50 TO 4,999 KW | B19: $/kW | C19: 628090148 | D19: 1818411 | E19: 539407131 | F19: =IF(ISERROR(D19/C19*E19), 0, D19/C19*E19) -> 1561660.955 | G19: 9467683 | K19: 0.4465944456 | L19: 0.136398141
A20: UNMETERED SCATTERED LOAD | B20: $/kWh | C20: 2335428 | E20: 1123722 | F20: =IF(ISERROR(D20/C20*E20), 0, D20/C20*E20) -> 0 | G20: 137071 | K20: 0.001982423277 | L20: 0.001979127415
A21: SENTINEL LIGHTING | B21: $/kW | C21: 292817 | D21: 809 | E21: 113770 | F21: =IF(ISERROR(D21/C21*E21), 0, D21/C21*E21) -> 314.3257734 | G21: 8675 | K21: 0.0004064398595 | L21: 0.0005319177985
A22: STREET LIGHTING | B22: $/kW | C22: 7467591 | D22: 20107 | E22: 897746 | F22: =IF(ISERROR(D22/C22*E22), 0, D22/C22*E22) -> 2417.242565 | G22: 93091 | K22: 0.00680349456 | L22: 0.01228544435
A23: microFIT
B25: Total | C25: =SUM(C17:C23) -> 1223308129 | D25: =SUM(D17:D23) -> 1839327 | E25: 632637190 | F25: 1564392.524 | G25: 29014021 | H25: 0 | I25: 0 | J25: 0 | K25: 1 | L25: 1 | M25: 0
L26: Balance as per Sheet 5 | M26: ='5. 2014 Continuity Schedule'!CP47 -> 0
L27: Variance | M27: =M25-M26 -> 0
A29: Threshold Test
A30: Total Claim (including Account 1521, 1562 and 1568) | B30: ='5. 2014 Continuity Schedule'!CP49 -> -3146581.356
A31: Total Claim for Threshold Test (All Group 1 Accounts) | B31: ='5. 2014 Continuity Schedule'!CP36 -> -3146581.356
A32: Threshold Test (Total claim per kWh) 3 | B32: =IF(ISERROR(B31/C25), 0, B31/C25) -> -0.002572190343 | D32: =IF(AND(B32>-0.001,B32<0.001),"Claim does not meet the threshold test. If data has been entered on Sheet 5 for Accounts 1521 and 1562, the model will only dispose of Accounts 1521 and 1562.","") -> 
A36: 1 For Account 1562, the allocation to customer classes should be performed on the basis of the test year distribution revenue allocation to customer classes found in the Applicant’s Cost of Service application that was most recently approved at the time of disposition of the 1562 account balances
A38: 2 Residual Account balance to be allocated to rate classes in proportion to the recovery share as established when rate riders were implemented.
A39: 3 The Threshold Test does not include the amount in 1521, 1562 nor 1568.

Sheet 6. hidden (hidden)
E1: Billed kWh for Non-RPP Customers | F1: Estimated kW for Non-RPP Customers | G1: Distribution Revenue 1 | H1: 1590 Recovery Share Proportion* | I1: 1595 Recovery Share Proportion (2008) 2 | J1: 1595 Recovery Share Proportion (2009) 2 | K1: 1595 Recovery Share Proportion (2010) 2 | L1: 1595 Recovery Share Proportion (2011) 2 | M1: 1568 LRAM Variance Account Class Allocation
A2: Rate Class | B2: Unit | C2: Metered kWh | D2: Metered kW
A3: RESIDENTIAL | B3: $/kWh | C3: 462790265 | D3: 0 | E3: 71338420 | G3: 15743932 | H3: 0 | I3: 0 | J3: 0 | K3: 0.4114731541 | L3: 0.6422323072 | M3: 0
A4: GENERAL SERVICE LESS THAN 50 KW | B4: $/kWh | C4: 122331880 | D4: 0 | E4: 19756401 | G4: 3563569 | H4: 0 | I4: 0 | J4: 0 | K4: 0.1327400426 | L4: 0.2065730622 | M4: 0
A5: GENERAL SERVICE 50 TO 4,999 KW | B5: $/kW | C5: 628090148 | D5: 1818411 | E5: 539407131 | G5: 9467683 | H5: 0 | I5: 0 | J5: 0 | K5: 0.4465944456 | L5: 0.136398141 | M5: 0
A6: UNMETERED SCATTERED LOAD | B6: $/kWh | C6: 2335428 | D6: 0 | E6: 1123722 | G6: 137071 | H6: 0 | I6: 0 | J6: 0 | K6: 0.001982423277 | L6: 0.001979127415 | M6: 0
A7: SENTINEL LIGHTING | B7: $/kW | C7: 292817 | D7: 809 | E7: 113770 | G7: 8675 | H7: 0 | I7: 0 | J7: 0 | K7: 0.0004064398595 | L7: 0.0005319177985 | M7: 0
A8: STREET LIGHTING | B8: $/kW | C8: 7467591 | D8: 20107 | E8: 897746 | G8: 93091 | H8: 0 | I8: 0 | J8: 0 | K8: 0.00680349456 | L8: 0.01228544435 | M8: 0
A9: microFIT | B9: 0 | C9: 0 | D9: 0 | E9: 0 | G9: 0 | H9: 0 | I9: 0 | J9: 0 | K9: 0 | L9: 0 | M9: 0

Sheet 7. Allocating Def-Var Balances
A13: No input required. This workshseet allocates the deferral/variance account balances (Group 1, 1521, 1588 GA, 1562 and 1568) to the appropriate classes as per the EDDVAR Report dated July 31, 2009
A15: Allocation of Group 1 Accounts (including Accounts 1521, 1562, 1568)
C16: % of Total kWh | D16: % of Total non-RPP kWh | E16: % of Total Distribution Revenue | M16: 1595 (2008) | N16: 1595 (2009) | O16: 1595 (2010) | P16: 1595 (2011) | Q16: 1562 | R16: 1568
A17: Rate Class | F17: 1550 | G17: 1580 | H17: 1584 | I17: 1586 | J17: 1588* | K17: 1588 GA | L17: 1590
A19: RESIDENTIAL | C19: =VLOOKUP(A19, '6. Billing Det. for Def-Var'!A17:D23, 3,0)/'6. Billing Det. for Def-Var'!C25 -> 0.3783104633 | D19: =VLOOKUP(A19, '6. Billing Det. for Def-Var'!A17:E23, 5,0)/'6. Billing Det. for Def-Var'!E25 -> 0.1127635573 | E19: =VLOOKUP(A19, '6. Billing Det. for Def-Var'!A17:G23, 7,0)/'6. Billing Det. for Def-Var'!G25 -> 0.5426318538 | F19: =C19* '5. 2014 Continuity Schedule'!CP24 -> -46981.57246 | G19: =C19* '5. 2014 Continuity Schedule'!CP25 -> -1232048.769 | H19: =C19* '5. 2014 Continuity Schedule'!CP26 -> 342029.6455 | I19: =C19* '5. 2014 Continuity Schedule'!CP27 -> 250455.1304 | J19: =C19* '5. 2014 Continuity Schedule'!CP28 -> -1859887.481 | K19: =D19* '5. 2014 Continuity Schedule'!CP29 -> 428081.8914 | L19: ='6. Billing Det. for Def-Var'!H17* '5. 2014 Continuity Schedule'!CP30 -> 0 | M19: ='6. Billing Det. for Def-Var'!I17* '5. 2014 Continuity Schedule'!CP31 -> 0 | N19: ='6. Billing Det. for Def-Var'!J17* '5. 2014 Continuity Schedule'!CP32 -> 0 | O19: ='6. Billing Det. for Def-Var'!K17* '5. 2014 Continuity Schedule'!CP33 -> -42415.34569 | P19: ='6. Billing Det. for Def-Var'!K17* '5. 2014 Continuity Schedule'!CP34 -> -44731.84546 | Q19: =E19* '5. 2014 Continuity Schedule'!CP41 -> 0 | R19: ='6. Billing Det. for Def-Var'!M17 -> 0
A20: GENERAL SERVICE LESS THAN 50 KW | C20: =VLOOKUP(A20, '6. Billing Det. for Def-Var'!A17:D23, 3,0)/'6. Billing Det. for Def-Var'!C25 -> 0.1000008723 | D20: =VLOOKUP(A20, '6. Billing Det. for Def-Var'!A17:E23, 5,0)/'6. Billing Det. for Def-Var'!E25 -> 0.03122864307 | E20: =VLOOKUP(A20, '6. Billing Det. for Def-Var'!A17:G23, 7,0)/'6. Billing Det. for Def-Var'!G25 -> 0.1228223072 | F20: =C20* '5. 2014 Continuity Schedule'!CP24 -> -12418.89581 | G20: =C20* '5. 2014 Continuity Schedule'!CP25 -> -325674.1845 | H20: =C20* '5. 2014 Continuity Schedule'!CP26 -> 90410.56546 | I20: =C20* '5. 2014 Continuity Schedule'!CP27 -> 66204.17341 | J20: =C20* '5. 2014 Continuity Schedule'!CP28 -> -491634.2225 | K20: =D20* '5. 2014 Continuity Schedule'!CP29 -> 118552.6328 | L20: ='6. Billing Det. for Def-Var'!H18* '5. 2014 Continuity Schedule'!CP30 -> 0 | M20: ='6. Billing Det. for Def-Var'!I18* '5. 2014 Continuity Schedule'!CP31 -> 0 | N20: ='6. Billing Det. for Def-Var'!J18* '5. 2014 Continuity Schedule'!CP32 -> 0 | O20: ='6. Billing Det. for Def-Var'!K18* '5. 2014 Continuity Schedule'!CP33 -> -13683.06714 | P20: ='6. Billing Det. for Def-Var'!K18* '5. 2014 Continuity Schedule'!CP34 -> -14430.36323 | Q20: =E20* '5. 2014 Continuity Schedule'!CP41 -> 0 | R20: ='6. Billing Det. for Def-Var'!M18 -> 0
A21: GENERAL SERVICE 50 TO 4,999 KW | C21: =VLOOKUP(A21, '6. Billing Det. for Def-Var'!A17:D23, 3,0)/'6. Billing Det. for Def-Var'!C25 -> 0.5134357674 | D21: =VLOOKUP(A21, '6. Billing Det. for Def-Var'!A17:E23, 5,0)/'6. Billing Det. for Def-Var'!E25 -> 0.8526326614 | E21: =VLOOKUP(A21, '6. Billing Det. for Def-Var'!A17:G23, 7,0)/'6. Billing Det. for Def-Var'!G25 -> 0.3263140604 | F21: =C21* '5. 2014 Continuity Schedule'!CP24 -> -63762.49682 | G21: =C21* '5. 2014 Continuity Schedule'!CP25 -> -1672113.163 | H21: =C21* '5. 2014 Continuity Schedule'!CP26 -> 464196.1314 | I21: =C21* '5. 2014 Continuity Schedule'!CP27 -> 339912.9407 | J21: =C21* '5. 2014 Continuity Schedule'!CP28 -> -2524203.924 | K21: =D21* '5. 2014 Continuity Schedule'!CP29 -> 3236831.218 | L21: ='6. Billing Det. for Def-Var'!H19* '5. 2014 Continuity Schedule'!CP30 -> 0 | M21: ='6. Billing Det. for Def-Var'!I19* '5. 2014 Continuity Schedule'!CP31 -> 0 | N21: ='6. Billing Det. for Def-Var'!J19* '5. 2014 Continuity Schedule'!CP32 -> 0 | O21: ='6. Billing Det. for Def-Var'!K19* '5. 2014 Continuity Schedule'!CP33 -> -46035.70755 | P21: ='6. Billing Det. for Def-Var'!K19* '5. 2014 Continuity Schedule'!CP34 -> -48549.93217 | Q21: =E21* '5. 2014 Continuity Schedule'!CP41 -> 0 | R21: ='6. Billing Det. for Def-Var'!M19 -> 0
A22: UNMETERED SCATTERED LOAD | C22: =VLOOKUP(A22, '6. Billing Det. for Def-Var'!A17:D23, 3,0)/'6. Billing Det. for Def-Var'!C25 -> 0.001909108543 | D22: =VLOOKUP(A22, '6. Billing Det. for Def-Var'!A17:E23, 5,0)/'6. Billing Det. for Def-Var'!E25 -> 0.001776250302 | E22: =VLOOKUP(A22, '6. Billing Det. for Def-Var'!A17:G23, 7,0)/'6. Billing Det. for Def-Var'!G25 -> 0.004724302088 | F22: =C22* '5. 2014 Continuity Schedule'!CP24 -> -237.0881328 | G22: =C22* '5. 2014 Continuity Schedule'!CP25 -> -6217.419445 | H22: =C22* '5. 2014 Continuity Schedule'!CP26 -> 1726.020773 | I22: =C22* '5. 2014 Continuity Schedule'!CP27 -> 1263.898505 | J22: =C22* '5. 2014 Continuity Schedule'!CP28 -> -9385.74907 | K22: =D22* '5. 2014 Continuity Schedule'!CP29 -> 6743.141202 | L22: ='6. Billing Det. for Def-Var'!H20* '5. 2014 Continuity Schedule'!CP30 -> 0 | M22: ='6. Billing Det. for Def-Var'!I20* '5. 2014 Continuity Schedule'!CP31 -> 0 | N22: ='6. Billing Det. for Def-Var'!J20* '5. 2014 Continuity Schedule'!CP32 -> 0 | O22: ='6. Billing Det. for Def-Var'!K20* '5. 2014 Continuity Schedule'!CP33 -> -204.35153 | P22: ='6. Billing Det. for Def-Var'!K20* '5. 2014 Continuity Schedule'!CP34 -> -215.5121197 | Q22: =E22* '5. 2014 Continuity Schedule'!CP41 -> 0 | R22: ='6. Billing Det. for Def-Var'!M20 -> 0
A23: SENTINEL LIGHTING | C23: =VLOOKUP(A23, '6. Billing Det. for Def-Var'!A17:D23, 3,0)/'6. Billing Det. for Def-Var'!C25 -> 0.0002393648771 | D23: =VLOOKUP(A23, '6. Billing Det. for Def-Var'!A17:E23, 5,0)/'6. Billing Det. for Def-Var'!E25 -> 0.0001798345115 | E23: =VLOOKUP(A23, '6. Billing Det. for Def-Var'!A17:G23, 7,0)/'6. Billing Det. for Def-Var'!G25 -> 0.0002989933729 | F23: =C23* '5. 2014 Continuity Schedule'!CP24 -> -29.7262154 | G23: =C23* '5. 2014 Continuity Schedule'!CP25 -> -779.5428117 | H23: =C23* '5. 2014 Continuity Schedule'!CP26 -> 216.4092512 | I23: =C23* '5. 2014 Continuity Schedule'!CP27 -> 158.468156 | J23: =C23* '5. 2014 Continuity Schedule'!CP28 -> -1176.789387 | K23: =D23* '5. 2014 Continuity Schedule'!CP29 -> 682.7019268 | L23: ='6. Billing Det. for Def-Var'!H21* '5. 2014 Continuity Schedule'!CP30 -> 0 | M23: ='6. Billing Det. for Def-Var'!I21* '5. 2014 Continuity Schedule'!CP31 -> 0 | N23: ='6. Billing Det. for Def-Var'!J21* '5. 2014 Continuity Schedule'!CP32 -> 0 | O23: ='6. Billing Det. for Def-Var'!K21* '5. 2014 Continuity Schedule'!CP33 -> -41.8965052 | P23: ='6. Billing Det. for Def-Var'!K21* '5. 2014 Continuity Schedule'!CP34 -> -44.18466868 | Q23: =E23* '5. 2014 Continuity Schedule'!CP41 -> 0 | R23: ='6. Billing Det. for Def-Var'!M21 -> 0
A24: STREET LIGHTING | C24: =VLOOKUP(A24, '6. Billing Det. for Def-Var'!A17:D23, 3,0)/'6. Billing Det. for Def-Var'!C25 -> 0.00610442359 | D24: =VLOOKUP(A24, '6. Billing Det. for Def-Var'!A17:E23, 5,0)/'6. Billing Det. for Def-Var'!E25 -> 0.00141905347 | E24: =VLOOKUP(A24, '6. Billing Det. for Def-Var'!A17:G23, 7,0)/'6. Billing Det. for Def-Var'!G25 -> 0.003208483236 | F24: =C24* '5. 2014 Continuity Schedule'!CP24 -> -758.0953927 | G24: =C24* '5. 2014 Continuity Schedule'!CP25 -> -19880.35833 | H24: =C24* '5. 2014 Continuity Schedule'!CP26 -> 5518.995743 | I24: =C24* '5. 2014 Continuity Schedule'!CP27 -> 4041.347926 | J24: =C24* '5. 2014 Continuity Schedule'!CP28 -> -30011.17366 | K24: =D24* '5. 2014 Continuity Schedule'!CP29 -> 5387.122475 | L24: ='6. Billing Det. for Def-Var'!H22* '5. 2014 Continuity Schedule'!CP30 -> 0 | M24: ='6. Billing Det. for Def-Var'!I22* '5. 2014 Continuity Schedule'!CP31 -> 0 | N24: ='6. Billing Det. for Def-Var'!J22* '5. 2014 Continuity Schedule'!CP32 -> 0 | O24: ='6. Billing Det. for Def-Var'!K22* '5. 2014 Continuity Schedule'!CP33 -> -701.3156769 | P24: ='6. Billing Det. for Def-Var'!K22* '5. 2014 Continuity Schedule'!CP34 -> -739.6177957 | Q24: =E24* '5. 2014 Continuity Schedule'!CP41 -> 0 | R24: ='6. Billing Det. for Def-Var'!M22 -> 0
A25: microFIT | C25: 0 | D25: 0 | E25: 0 | F25: =C25* '5. 2014 Continuity Schedule'!CP24 -> 0 | G25: =C25* '5. 2014 Continuity Schedule'!CP25 -> 0 | H25: =C25* '5. 2014 Continuity Schedule'!CP26 -> 0 | I25: =C25* '5. 2014 Continuity Schedule'!CP27 -> 0 | J25: =C25* '5. 2014 Continuity Schedule'!CP28 -> 0 | K25: =D25* '5. 2014 Continuity Schedule'!CP29 -> 0 | L25: ='6. Billing Det. for Def-Var'!H23* '5. 2014 Continuity Schedule'!CP30 -> 0 | M25: ='6. Billing Det. for Def-Var'!I23* '5. 2014 Continuity Schedule'!CP31 -> 0 | N25: ='6. Billing Det. for Def-Var'!J23* '5. 2014 Continuity Schedule'!CP32 -> 0 | O25: ='6. Billing Det. for Def-Var'!K23* '5. 2014 Continuity Schedule'!CP33 -> 0 | P25: ='6. Billing Det. for Def-Var'!K23* '5. 2014 Continuity Schedule'!CP34 -> 0 | Q25: =E25* '5. 2014 Continuity Schedule'!CP41 -> 0 | R25: ='6. Billing Det. for Def-Var'!M23 -> 0
A27: Total | C27: =SUM(C19:C25) -> 1 | D27: =SUM(D19:D25) -> 1 | E27: =SUM(E19:E25) -> 1 | F27: =SUM(F19:F25) -> -124187.8748 | G27: =SUM(G19:G25) -> -3256713.437 | H27: =SUM(H19:H25) -> 904097.7681 | I27: =SUM(I19:I25) -> 662035.9591 | J27: =SUM(J19:J25) -> -4916299.34 | K27: =SUM(K19:K25) -> 3796278.708 | L27: =SUM(L19:L25) -> 0 | M27: =SUM(M19:M25) -> 0 | N27: =SUM(N19:N25) -> 0 | O27: =SUM(O19:O25) -> -103081.6841 | P27: =SUM(P19:P25) -> -108711.4554 | Q27: =SUM(Q19:Q25) -> 0 | R27: =SUM(R19:R25) -> 0
A30: * RSVA - Power (Excluding Global Adjustment)

Sheet 8. Calculation of Def-Var RR
A12: Input required at cell C15 only. This workshseet calculates rate riders related to the Deferral/Variance Account Disposition (if applicable) and associated rate riders for the global adjustment sub-account. Rate Riders will not be generated for the MicroFit class.
A15: Please indicate the Rate Rider Recovery Period (in years) | C15: 2
E17: Balance of Accounts Allocated by kWh/kW (RPP) or Distribution Revenue | F17: Deferral/Variance Account Rate Rider | G17: Allocation of Balance in Account 1588 Global Adjustment Sub-Account | H17: Billed kWh or Estimated kW for Non-RPP Customers | I17: Global Adjustment Rate Rider
A18: Rate Class | B18: Unit | C18: Billed kWh | D18: Billed kW or kVA
A20: RESIDENTIAL | B20: $/kWh | C20: 462790265 | E20: =SUM('7. Allocating Def-Var Balances'!F19:J19)+SUM('7. Allocating Def-Var Balances'!L19:R19) -> -2633580.238 | F20: -0.0028 | G20: 428081.8914 | H20: 71338420 | I20: 0.003000360054
A21: GENERAL SERVICE LESS THAN 50 KW | B21: $/kWh | C21: 122331880 | E21: =SUM('7. Allocating Def-Var Balances'!F20:J20)+SUM('7. Allocating Def-Var Balances'!L20:R20) -> -701225.9943 | F21: -0.0029 | G21: 118552.6328 | H21: 19756401 | I21: 0.003000360054
A22: GENERAL SERVICE 50 TO 4,999 KW | B22: $/kW | C22: 628090148 | D22: 1818411 | E22: =SUM('7. Allocating Def-Var Balances'!F21:J21)+SUM('7. Allocating Def-Var Balances'!L21:R21) -> -3550556.151 | F22: -0.9763 | G22: 3236831.218 | H22: 1561660.955 | I22: 1.036342494
A23: UNMETERED SCATTERED LOAD | B23: $/kWh | C23: 2335428 | E23: =SUM('7. Allocating Def-Var Balances'!F22:J22)+SUM('7. Allocating Def-Var Balances'!L22:R22) -> -13270.20102 | F23: -0.0028 | G23: 6743.141202 | H23: 1123722 | I23: 0.003000360054
A24: SENTINEL LIGHTING | B24: $/kW | C24: 292817 | D24: 809 | E24: =SUM('7. Allocating Def-Var Balances'!F23:J23)+SUM('7. Allocating Def-Var Balances'!L23:R23) -> -1697.262181 | F24: -1.049 | G24: 682.7019268 | H24: 314.3257734 | I24: 1.085978282
A25: STREET LIGHTING | B25: $/kW | C25: 7467591 | D25: 20107 | E25: =SUM('7. Allocating Def-Var Balances'!F24:J24)+SUM('7. Allocating Def-Var Balances'!L24:R24) -> -42530.21719 | F25: -1.0576 | G25: 5387.122475 | H25: 2417.242565 | I25: 1.11431152
A26: microFIT
A27: Total | C27: =SUM(C20:C26) -> 1223308129 | D27: =SUM(D20:D26) -> 1839327 | E27: =SUM(E20:E26) -> -6942860.064 | G27: =SUM(G20:G26) -> 3796278.708 | H27: =SUM(H20:H26) -> 93782935.52

Sheet 9. Rev2Cost_GDPIPI
Z1: 0
A12: If applicable, please enter any adjustments related to the revenue to cost ratio model into columns C and E. The Price Escalator has been set at the 2013 values and will be updated by Board staff. The Stretch Factor Value may be updated by Board staff.
A15: Price Escalator | B15: 0.02 | C15: Choose Stretch Factor Group | E15: III
A16: Productivity Factor | B16: 0.0072 | C16: Associated Stretch Factor Value | E16: =IF(ISBLANK(E15)=TRUE, "", IF(E15="I", 0, IF(E15="II", 0.0015, IF(E15="III", 0.003, IF(E15="iv", 0.0045, 0.006))))) -> 0.003
A17: Price Cap Index | B17: =B15-B16-E16 -> 0.0098
B19: Current MFC | C19: MFC Adjustment from R/C Model | D19: Current Volumetric Charge | E19: DVR Adjustment from R/C Model | F19: Price Cap Index to be Applied to MFC and DVR | G19: Proposed MFC | H19: Proposed Volumetric Charge
A20: Rate Class
A22: RESIDENTIAL | B22: 15.84 | D22: 0.0159 | F22: =$B$17 -> 0.0098 | G22: =ROUND(SUM(B22,C22)*(1+F22),2) -> 16 | H22: =ROUND(SUM(D22,E22)*(1+F22),4) -> 0.0161
A23: GENERAL SERVICE LESS THAN 50 KW | B23: 37.27 | D23: 0.0136 | F23: =$B$17 -> 0.0098 | G23: =ROUND(SUM(B23,C23)*(1+F23),2) -> 37.64 | H23: =ROUND(SUM(D23,E23)*(1+F23),4) -> 0.0137
A24: GENERAL SERVICE 50 TO 4,999 KW | B24: 177.1 | D24: 4.1815 | F24: =$B$17 -> 0.0098 | G24: =ROUND(SUM(B24,C24)*(1+F24),2) -> 178.84 | H24: =ROUND(SUM(D24,E24)*(1+F24),4) -> 4.2225
A25: UNMETERED SCATTERED LOAD | B25: 19.26 | D25: 0.0135 | F25: =$B$17 -> 0.0098 | G25: =ROUND(SUM(B25,C25)*(1+F25),2) -> 19.45 | H25: =ROUND(SUM(D25,E25)*(1+F25),4) -> 0.0136
A26: SENTINEL LIGHTING | B26: 12.69 | D26: 15.8336 | F26: =$B$17 -> 0.0098 | G26: =ROUND(SUM(B26,C26)*(1+F26),2) -> 12.81 | H26: =ROUND(SUM(D26,E26)*(1+F26),4) -> 15.9888
A27: STREET LIGHTING | B27: 1.13 | D27: 4.404 | F27: =$B$17 -> 0.0098 | G27: =ROUND(SUM(B27,C27)*(1+F27),2) -> 1.14 | H27: =ROUND(SUM(D27,E27)*(1+F27),4) -> 4.4472
A28: microFIT | B28: 5.4 | G28: =ROUND(SUM(B28,C28)*(1+F28),2) -> 5.4

Sheet 9. hidden (hidden)
A1: Rate Class | B1: MFC Adjustment from R/C Model | C1: DVR Adjustment from R/C Model
A2: RESIDENTIAL | B2: 0 | C2: 0
A3: GENERAL SERVICE LESS THAN 50 KW | B3: 0 | C3: 0
A4: GENERAL SERVICE 50 TO 4,999 KW | B4: 0 | C4: 0
A5: UNMETERED SCATTERED LOAD | B5: 0 | C5: 0
A6: SENTINEL LIGHTING | B6: 0 | C6: 0
A7: STREET LIGHTING | B7: 0 | C7: 0
A8: microFIT | B8: 0 | C8: 0

Sheet 10. Other Charges & LF
A11: Please enter the following charges as found on your most recent Board-Approved Tariff Schedule. The standard Allowance rates have been included as default entries. If you have different rates, please make the appropriate corrections in the applicable cells below. As well, please enter the current Specific Service Charges below. The standard Retail Service Charges have been entered below. If you have different rates, please make the appropriate corrections in columns A, C or D as applicable (cells are unlocked).
C13: UNIT | D13: RATE
A15: ALLOWANCES
A17: Transformer Allowance for Ownership - per kW of billing demand/month | C17: $/kW | D17: -0.6
A20: Primary Metering Allowance for transformer losses – applied to measured demand and energy | C20: % | D20: -1
A22: SPECIFIC SERVICE CHARGES
A24: APPLICATION
A26: The application of these rates and charges shall be in accordance with the Licence of the Distributor and any Code or
A27: Order of the Board, and amendments thereto as approved by the Board, which may be applicable to the
A28: administration of this schedule
A30: No charges to meet the costs of any work or service done or furnished for the purpose of the distribution of electricity
A31: shall be made except as permitted by this schedule, unless required by the Distributor’s Licence or a Code or Order
A32: of the Board, and amendments thereto as approved by the Board, or as specified herein.
A34: It should be noted that this schedule does not list any charges, assessments, or credits that are required by law to be
A35: invoiced by a distributor and that are not subject to Board approval, such as the Debt Retirement Charge, the Global
A36: Adjustment, the Ontario Clean Energy Benefit and the HST.
A39: Customer Administration
A41: Returned cheque (plus bank charges) | C41: $ | D41: 20
A42: Legal letter charge | C42: $ | D42: 15
A43: Account set up charge/change of occupancy charge (plus credit agency costs if applicable) | C43: $ | D43: 30
A44: Meter dispute charge plus Measurement Canada fees (if meter found correct) | C44: $ | D44: 30
A77: Non-Payment of Account
A79: Late Payment – per month | C79: % | D79: 1.5
A80: Late Payment – per annum | C80: % | D80: 19.56
A81: Collection of account charge – no disconnection | C81: $ | D81: 30
A82: Collection of account charge – no disconnection – after regular hours | C82: $ | D82: 165
A83: Disconnect/Reconnect at meter – during regular hours | C83: $ | D83: 65
A84: Disconnect/Reconnect at meter – after regular hours | C84: $ | D84: 185
A85: Disconnect/Reconnect at pole – during regular hours | C85: $ | D85: 185
A86: Disconnect/Reconnect at pole – after regular hours | C86: $ | D86: 415
A106: Install/Remove load control device – during regular hours | C106: $ | D106: 65
A107: Install/Remove load control device – after regular hours | C107: $ | D107: 185
A108: Service call – customer owned equipment | C108: $ | D108: 30
A109: Service call – after regular hours | C109: $ | D109: 165
A110: Temporary service install & remove – overhead – no transformer | C110: $ | D110: 500
A111: Temporary Service – Install & remove – underground – no transformer | C111: $ | D111: 300
A112: Temporary Service Install & Remove – Overhead – With Transformer | C112: $ | D112: 1000
A113: Specific Charge for Access to the Power Poles - $/pole/year | C113: $ | D113: 22.35
A128: RETAIL SERVICE CHARGES (if applicable)
A130: The application of these rates and charges shall be in accordance with the Licence of the Distributor and any Code or
A131: Order of the Board, and amendments thereto as approved by the Board, which may be applicable to the
A132: administration of this schedule.
A134: No rates and charges for the distribution of electricity and charges to meet the costs of any work or service done or
A135: furnished for the purpose of the distribution of electricity shall be made except as permitted by this schedule, unless
A136: required by the Distributor’s Licence or a Code or Order of the Board, and amendments thereto as approved by the
A137: Board, or as specified herein.
A139: Unless specifically noted, this schedule does not contain any charges for the electricity commodity, be it under the
A140: Regulated Price Plan, a contract with a retailer or the wholesale market price, as applicable.
A142: It should be noted that this schedule does not list any charges, assessments, or credits that are required by law to be
A143: invoiced by a distributor and that are not subject to Board approval, such as the Debt Retirement Charge, the Global
A144: Adjustment, the Ontario Clean Energy Benefit and the HST.
A147: Retail Service Charges refer to services provided by a distributor to retailers or customers related
A148: to the supply of competitive electricity
A151: One-time charge, per retailer, to establish the service agreement between the distributor and the retailer | C151: $ | D151: 100
A152: Monthly Fixed Charge, per retailer | C152: $ | D152: 20
A153: Monthly Variable Charge, per customer, per retailer | C153: $/cust. | D153: 0.5
A154: Distributor-consolidated billing monthly charge, per customer, per retailer | C154: $/cust. | D154: 0.3
A155: Retailer-consolidated billing monthly credit, per customer, per retailer | C155: $/cust. | D155: -0.3
A156: Service Transaction Requests (STR)
A157: Request fee, per request, applied to the requesting party | C157: $ | D157: 0.25
A158: Processing fee, per request, applied to the requesting party | C158: $ | D158: 0.5
A159: Request for customer information as outlined in Section 10.6.3 and Chapter 11 of the Retail
A160: Settlement Code directly to retailers and customers, if not delivered electronically through the
A161: Electronic Business Transaction (EBT) system, applied to the requesting party
A162: Up to twice a year | C162: $ | D162: no charge
A163: More than twice a year, per request (plus incremental delivery costs) | C163: $ | D163: 2
A165: LOSS FACTORS
A167: If the distributor is not capable of prorating changed loss factors jointly with distribution rates, the revised loss factors will be implemented upon the first subsequent billing for each billing cycle.
A170: Total Loss Factor – Secondary Metered Customer < 5,000 kW | D170: 1.056 | H170: TLF_Secondary_LT_5000kW
A171: Total Loss Factor – Secondary Metered Customer > 5,000 kW | D171: N/A | H171: TLF_Secondary_GT_5000kW
A172: Total Loss Factor – Primary Metered Customer < 5,000 kW | D172: 1.0454 | H172: TLF_Primary_LT_5000kW
A173: Total Loss Factor – Primary Metered Customer > 5,000 kW | D173: N/A | H173: TLF_Primary_GT_5000kW

Sheet 11. Proposed Rates
Y1: 0 | Z1: 3 | AA1: ≥
Z2: February
Z3: March
Z4: April
Z5: May
Z6: June
Z7: July
Z8: August
Z9: September
Z10: October
Z11: November
A12: Below is a listing of the proposed Monthly Fixed Charges, proposed Distribution Volumetric Rates, proposed Deferral and Variance account Rate Riders and all unexpired volumetric rates that were entered on Sheet 4. In the green cells (column A) below, please enter any additional rates being proposed (eg: LRAM/SSM, Tax Adjustments, etc). Please ensure that the word "Rider" or "Adder" is included in the description (as applicable). Note: All rates with expired effective dates have been removed. As well, the Current RTSR-Network and RTSR-Connection rate descriptions entered on Sheet 4 can be found below. The associated rates have been removed from this sheet, giving the applicant the opportunity to enter updated rates (from Sheet 13 in the Board-Approved RTSR model into the cells in column I. | Z12: December
A20: RESIDENTIAL SERVICE CLASSIFICATION
A21: MONTHLY RATES AND CHARGES - Delivery Component
A22: Service Charge | H22: $ | I22: 16 | K22: 1_P_MSC
A23: Rate Rider for Smart Metering Entity Charge - effective until October 31, 2018 | H23: $ | I23: 0.79 | K23: 1_P_SMEC
A24: Distribution Volumetric Rate | H24: $/kWh | I24: 0.0161 | K24: 1_P_VC
A25: Low Voltage Service Rate | H25: $/kWh | I25: 0.0005 | K25: 1_P_LVrate
A26: Rate Rider for Deferral/Variance Account Disposition (2014) - effective until April 28, 2016 | H26: $/kWh | I26: -0.0028 | K26: 1_P_VC_DEFVAR_kWh_1
A27: Rate Rider for Global Adjustment Sub-Account Disposition (2014) - effective until April 28, 2016 Applicable only for Non-RPP Customers | H27: $/kWh | I27: 0.003 | K27: 1_P_VC_GA_Rate_Rider_kWh_1
A28: Retail Transmission Rate - Network Service Rate | H28: $/kWh | I28: 0.0069 | K28: 1_P_RTSR_Network
A29: Retail Transmission Rate - Line and Transformation Connection Service Rate | H29: $/kWh | I29: 0.0047 | K29: 1_P_RTSR_Connection
A30: Rate Rider for Tax Change | H30: $/kWh | I30: -0.0001 | K30: 1_P_VC_Rate_Rider_kWh_2
A48: MONTHLY RATES AND CHARGES - Regulatory Component
A49: Wholesale Market Service Rate | H49: $/kWh | I49: 0.0044 | K49: 1_P_WMSR
A50: Rural Rate Protection Charge | H50: $/kWh | I50: 0.0012 | K50: 1_P_RRPC
A51: Standard Supply Service - Administrative Charge (if applicable) | H51: $ | I51: 0.25 | K51: 1_P_SSS
A56: GENERAL SERVICE LESS THAN 50 KW SERVICE CLASSIFICATION
A57: MONTHLY RATES AND CHARGES - Delivery Component
A58: Service Charge | H58: $ | I58: 37.64 | K58: 2_P_MSC
A59: Rate Rider for Smart Metering Entity Charge - effective until October 31, 2018 | H59: $ | I59: 0.79 | K59: 2_P_SMEC
A60: Distribution Volumetric Rate | H60: $/kWh | I60: 0.0137 | K60: 2_P_VC
A61: Low Voltage Service Rate | H61: $/kWh | I61: 0.0004 | K61: 2_P_LVrate
A62: Rate Rider for Deferral/Variance Account Disposition (2014) - effective until April 28, 2016 | H62: $/kWh | I62: -0.0029 | K62: 2_P_VC_DEFVAR_kWh_1
A63: Rate Rider for Global Adjustment Sub-Account Disposition (2014) - effective until April 28, 2016 Applicable only for Non-RPP Customers | H63: $/kWh | I63: 0.003 | K63: 2_P_VC_GA_Rate_Rider_kWh_1
A64: Retail Transmission Rate - Network Service Rate | H64: $/kWh | I64: 0.0063 | K64: 2_P_RTSR_Network
A65: Retail Transmission Rate - Line and Transformation Connection Service Rate | H65: $/kWh | I65: 0.0042 | K65: 2_P_RTSR_Connection
A66: Rate Rider for Tax Change | H66: $/kWh | I66: -0.0001 | K66: 2_P_VC_Rate_Rider_kWh_2
A84: MONTHLY RATES AND CHARGES - Regulatory Component
A85: Wholesale Market Service Rate | H85: $/kWh | I85: 0.0044 | K85: 2_P_WMSR
A86: Rural Rate Protection Charge | H86: $/kWh | I86: 0.0012 | K86: 2_P_RRPC
A87: Standard Supply Service - Administrative Charge (if applicable) | H87: $ | I87: 0.25 | K87: 2_P_SSS
A92: GENERAL SERVICE 50 TO 4,999 KW SERVICE CLASSIFICATION
A93: MONTHLY RATES AND CHARGES - Delivery Component
A94: Service Charge | H94: $ | I94: 178.84 | K94: 3_P_MSC
A95: Distribution Volumetric Rate | H95: $/kW | I95: 4.2225 | K95: 3_P_VC
A96: Low Voltage Service Rate | H96: $/kW | I96: 0.1592 | K96: 3_P_LVrate
A97: Rate Rider for Deferral/Variance Account Disposition (2014) - effective until April 28, 2016 | H97: $/kW | I97: -0.9763 | K97: 3_P_VC_DEFVAR_kW_1
A98: Rate Rider for Global Adjustment Sub-Account Disposition (2014) - effective until April 28, 2016 Applicable only for Non-RPP Customers | H98: $/kW | I98: 1.0363 | K98: 3_P_VC_GA_Rate_Rider_kW_1
A99: Retail Transmission Rate - Network Service Rate | H99: $/kW | I99: 2.5999 | K99: 3_P_RTSR_Network
A100: Retail Transmission Rate - Line and Transformation Connection Service Rate | H100: $/kW | I100: 1.6503 | K100: 3_P_RTSR_Connection
A101: Rate Rider for Tax Change | H101: $/kW | I101: -0.0178 | K101: 3_P_VC_Rate_Rider_kW_2
A120: MONTHLY RATES AND CHARGES - Regulatory Component
A121: Wholesale Market Service Rate | H121: $/kWh | I121: 0.0044 | K121: 3_P_WMSR
A122: Rural Rate Protection Charge | H122: $/kWh | I122: 0.0012 | K122: 3_P_RRPC
A123: Standard Supply Service - Administrative Charge (if applicable) | H123: $ | I123: 0.25 | K123: 3_P_SSS
A128: UNMETERED SCATTERED LOAD SERVICE CLASSIFICATION
A129: MONTHLY RATES AND CHARGES - Delivery Component
A130: Service Charge | H130: $ | I130: 19.45 | K130: 4_P_MSC
A131: Distribution Volumetric Rate | H131: $/kWh | I131: 0.0136 | K131: 4_P_VC
A132: Low Voltage Service Rate | H132: $/kWh | I132: 0.0004 | K132: 4_P_LVrate
A133: Rate Rider for Deferral/Variance Account Disposition (2014) - effective until April 28, 2016 | H133: $/kWh | I133: -0.0028 | K133: 4_P_VC_DEFVAR_kWh_1
A134: Rate Rider for Global Adjustment Sub-Account Disposition (2014) - effective until April 28, 2016 Applicable only for Non-RPP Customers | H134: $/kWh | I134: 0.003 | K134: 4_P_VC_GA_Rate_Rider_kWh_1
A135: Retail Transmission Rate - Network Service Rate | H135: $/kWh | I135: 0.0063 | K135: 4_P_RTSR_Network
A136: Retail Transmission Rate - Line and Transformation Connection Service Rate | H136: $/kWh | I136: 0.0042 | K136: 4_P_RTSR_Connection
A137: Rate Rider for Tax Change | H137: $/kWh | I137: -0.0002 | K137: 4_P_VC_Rate_Rider_kWh_2
A156: MONTHLY RATES AND CHARGES - Regulatory Component
A157: Wholesale Market Service Rate | H157: $/kWh | I157: 0.0044 | K157: 4_P_WMSR
A158: Rural Rate Protection Charge | H158: $/kWh | I158: 0.0012 | K158: 4_P_RRPC
A159: Standard Supply Service - Administrative Charge (if applicable) | H159: $ | I159: 0.25 | K159: 4_P_SSS
A164: SENTINEL LIGHTING SERVICE CLASSIFICATION
A165: MONTHLY RATES AND CHARGES - Delivery Component
A166: Service Charge | H166: $ | I166: 12.81 | K166: 5_P_MSC
A167: Distribution Volumetric Rate | H167: $/kW | I167: 15.9888 | K167: 5_P_VC
A168: Low Voltage Service Rate | H168: $/kW | I168: 0.133 | K168: 5_P_LVrate
A169: Rate Rider for Deferral/Variance Account Disposition (2014) - effective until April 28, 2016 | H169: $/kW | I169: -1.049 | K169: 5_P_VC_DEFVAR_kW_1
A170: Rate Rider for Global Adjustment Sub-Account Disposition (2014) - effective until April 28, 2016 Applicable only for Non-RPP Customers | H170: $/kW | I170: 1.086 | K170: 5_P_VC_GA_Rate_Rider_kW_1
A171: Retail Transmission Rate - Network Service Rate | H171: $/kW | I171: 1.925 | K171: 5_P_RTSR_Network
A172: Retail Transmission Rate - Line and Transformation Connection Service Rate | H172: $/kW | I172: 1.3789 | K172: 5_P_RTSR_Connection
A173: Rate Rider for Tax Change | H173: $/kW | I173: -0.4168 | K173: 5_P_VC_Rate_Rider_kW_2
A192: MONTHLY RATES AND CHARGES - Regulatory Component
A193: Wholesale Market Service Rate | H193: $/kWh | I193: 0.0044 | K193: 5_P_WMSR
A194: Rural Rate Protection Charge | H194: $/kWh | I194: 0.0012 | K194: 5_P_RRPC
A195: Standard Supply Service - Administrative Charge (if applicable) | H195: $ | I195: 0.25 | K195: 5_P_SSS
A200: STREET LIGHTING SERVICE CLASSIFICATION
A201: MONTHLY RATES AND CHARGES - Delivery Component
A202: Service Charge | H202: $ | I202: 1.14 | K202: 6_P_MSC
A203: Distribution Volumetric Rate | H203: $/kW | I203: 4.4472 | K203: 6_P_VC
A204: Low Voltage Service Rate | H204: $/kW | I204: 0.1223 | K204: 6_P_LVrate
A205: Rate Rider for Deferral/Variance Account Disposition (2014) - effective until April 28, 2016 | H205: $/kW | I205: -1.0576 | K205: 6_P_VC_DEFVAR_kW_1
A206: Rate Rider for Global Adjustment Sub-Account Disposition (2014) - effective until April 28, 2016 Applicable only for Non-RPP Customers | H206: $/kW | I206: 1.1143 | K206: 6_P_VC_GA_Rate_Rider_kW_1
A207: Retail Transmission Rate - Network Service Rate | H207: $/kW | I207: 1.9655 | K207: 6_P_RTSR_Network
A208: Retail Transmission Rate - Line and Transformation Connection Service Rate | H208: $/kW | I208: 1.2679 | K208: 6_P_RTSR_Connection
A209: Rate Rider for Tax Change | H209: $/kW | I209: -0.0439 | K209: 6_P_VC_Rate_Rider_kW_2
A228: MONTHLY RATES AND CHARGES - Regulatory Component
A229: Wholesale Market Service Rate | H229: $/kWh | I229: 0.0044 | K229: 6_P_WMSR
A230: Rural Rate Protection Charge | H230: $/kWh | I230: 0.0012 | K230: 6_P_RRPC
A231: Standard Supply Service - Administrative Charge (if applicable) | H231: $ | I231: 0.25 | K231: 6_P_SSS
A236: MICROFIT SERVICE CLASSIFICATION
A237: MONTHLY RATES AND CHARGES - Delivery Component
A238: Service Charge | H238: $ | I238: 5.4 | K238: 7_P_MSC
A264: MONTHLY RATES AND CHARGES - Regulatory Component

Sheet 11. Hidden (hidden)
Y1: 0 | Z1: 0 | AA1: ≥
Z2: February
Z3: March
Z4: April
Z5: May
Z6: June
Z7: July
Z8: August
Z9: September
Z10: October
Z11: November
A12: Below is a listing of the proposed Monthly Fixed Charges, proposed Distribution Volumetric Rates, proposed Deferral and Variance account Rate Riders and all unexpired volumetric rates that were entered on Sheet 4. In the green cells (column A) below, please enter any additional rates being proposed (eg: LRAM/SSM, Tax Adjustments, etc). Please ensure that the word "Rider" or "Adder" is included in the description (as applicable). Note: All rates with expired effective dates have been removed. As well, the Current RTSR-Network and RTSR-Connection rate descriptions entered on Sheet 4 can be found below. The associated rates have been removed from this sheet, giving the applicant the opportunity to enter updated rates (from Sheet 13 in the Board-Approved RTSR model into the cells in column I. | Z12: December
A20: RESIDENTIAL SERVICE CLASSIFICATION
A21: MONTHLY RATES AND CHARGES - Delivery Component
A22: Service Charge | H22: $ | I22: 16 | K22: 1_P_MSC
A23: Rate Rider for Smart Metering Entity Charge - effective until October 31, 2018 | H23: $ | I23: 0.79 | K23: 1_P_SMEC
A24: Distribution Volumetric Rate | H24: $/kWh | I24: 0.0161 | K24: 1_P_VC
A25: Low Voltage Service Rate | H25: $/kWh | I25: 0.0005 | K25: 1_P_LVrate
A26: Rate Rider for Deferral/Variance Account Disposition (2014) - effective until April 28, 2016 | H26: $/kWh | I26: -0.0028 | K26: 1_P_VC_DEFVAR_kWh_1
A27: Rate Rider for Global Adjustment Sub-Account Disposition (2014) - effective until April 28, 2016 Applicable only for Non-RPP Customers | H27: $/kWh | I27: 0.003 | K27: 1_P_VC_GA_Rate_Rider_kWh_1
A28: Retail Transmission Rate - Network Service Rate | H28: $/kWh | I28: 0.0071 | K28: 1_P_RTSR_Network
A29: Retail Transmission Rate - Line and Transformation Connection Service Rate | H29: $/kWh | I29: 0.0047 | K29: 1_P_RTSR_Connection
A30: Rate Rider for Tax Change | H30: $/kWh | I30: -0.0001 | K30: 1_P_VC_Rate_Rider_kWh_2
A48: MONTHLY RATES AND CHARGES - Regulatory Component
A49: Wholesale Market Service Rate | H49: $/kWh | I49: 0.0044 | K49: 1_P_WMSR
A50: Rural Rate Protection Charge | H50: $/kWh | I50: 0.0012 | K50: 1_P_RRPC
A51: Standard Supply Service - Administrative Charge (if applicable) | H51: $ | I51: 0.25 | K51: 1_P_SSS
A56: GENERAL SERVICE LESS THAN 50 KW SERVICE CLASSIFICATION
A57: MONTHLY RATES AND CHARGES - Delivery Component
A58: Service Charge | H58: $ | I58: 37.64 | K58: 2_P_MSC
A59: Rate Rider for Smart Metering Entity Charge - effective until October 31, 2018 | H59: $ | I59: 0.79 | K59: 2_P_SMEC
A60: Distribution Volumetric Rate | H60: $/kWh | I60: 0.0137 | K60: 2_P_VC
A61: Low Voltage Service Rate | H61: $/kWh | I61: 0.0004 | K61: 2_P_LVrate
A62: Rate Rider for Deferral/Variance Account Disposition (2014) - effective until April 28, 2016 | H62: $/kWh | I62: -0.0028 | K62: 2_P_VC_DEFVAR_kWh_1
A63: Rate Rider for Global Adjustment Sub-Account Disposition (2014) - effective until April 28, 2016 Applicable only for Non-RPP Customers | H63: $/kWh | I63: 0.003 | K63: 2_P_VC_GA_Rate_Rider_kWh_1
A64: Retail Transmission Rate - Network Service Rate | H64: $/kWh | I64: 0.0065 | K64: 2_P_RTSR_Network
A65: Retail Transmission Rate - Line and Transformation Connection Service Rate | H65: $/kWh | I65: 0.0042 | K65: 2_P_RTSR_Connection
A66: Rate Rider for Tax Change | H66: $/kWh | I66: -0.0001 | K66: 2_P_VC_Rate_Rider_kWh_2
A84: MONTHLY RATES AND CHARGES - Regulatory Component
A85: Wholesale Market Service Rate | H85: $/kWh | I85: 0.0044 | K85: 2_P_WMSR
A86: Rural Rate Protection Charge | H86: $/kWh | I86: 0.0012 | K86: 2_P_RRPC
A87: Standard Supply Service - Administrative Charge (if applicable) | H87: $ | I87: 0.25 | K87: 2_P_SSS
A92: GENERAL SERVICE 50 TO 4,999 KW SERVICE CLASSIFICATION
A93: MONTHLY RATES AND CHARGES - Delivery Component
A94: Service Charge | H94: $ | I94: 178.84 | K94: 3_P_MSC
A95: Distribution Volumetric Rate | H95: $/kW | I95: 4.2225 | K95: 3_P_VC
A96: Low Voltage Service Rate | H96: $/kW | I96: 0.1592 | K96: 3_P_LVrate
A97: Rate Rider for Deferral/Variance Account Disposition (2014) - effective until April 28, 2016 | H97: $/kW | I97: -0.9707 | K97: 3_P_VC_DEFVAR_kW_1
A98: Rate Rider for Global Adjustment Sub-Account Disposition (2014) - effective until April 28, 2016 Applicable only for Non-RPP Customers | H98: $/kW | I98: 1.0314 | K98: 3_P_VC_GA_Rate_Rider_kW_1
A99: Retail Transmission Rate - Network Service Rate | H99: $/kW | I99: 2.6648 | K99: 3_P_RTSR_Network
A100: Retail Transmission Rate - Line and Transformation Connection Service Rate | H100: $/kW | I100: 1.6366 | K100: 3_P_RTSR_Connection
A101: Rate Rider for Tax Change | H101: $/kW | I101: -0.0178 | K101: 3_P_VC_Rate_Rider_kW_2
A120: MONTHLY RATES AND CHARGES - Regulatory Component
A121: Wholesale Market Service Rate | H121: $/kWh | I121: 0.0044 | K121: 3_P_WMSR
A122: Rural Rate Protection Charge | H122: $/kWh | I122: 0.0012 | K122: 3_P_RRPC
A123: Standard Supply Service - Administrative Charge (if applicable) | H123: $ | I123: 0.25 | K123: 3_P_SSS
A128: UNMETERED SCATTERED LOAD SERVICE CLASSIFICATION
A129: MONTHLY RATES AND CHARGES - Delivery Component
A130: Service Charge | H130: $ | I130: 19.45 | K130: 4_P_MSC
A131: Distribution Volumetric Rate | H131: $/kWh | I131: 0.0136 | K131: 4_P_VC
A132: Low Voltage Service Rate | H132: $/kWh | I132: 0.0004 | K132: 4_P_LVrate
A133: Rate Rider for Deferral/Variance Account Disposition (2014) - effective until April 28, 2016 | H133: $/kWh | I133: -0.0028 | K133: 4_P_VC_DEFVAR_kWh_1
A134: Rate Rider for Global Adjustment Sub-Account Disposition (2014) - effective until April 28, 2016 Applicable only for Non-RPP Customers | H134: $/kWh | I134: 0.003 | K134: 4_P_VC_GA_Rate_Rider_kWh_1
A135: Retail Transmission Rate - Network Service Rate | H135: $/kWh | I135: 0.0065 | K135: 4_P_RTSR_Network
A136: Retail Transmission Rate - Line and Transformation Connection Service Rate | H136: $/kWh | I136: 0.0042 | K136: 4_P_RTSR_Connection
A137: Rate Rider for Tax Change | H137: $/kWh | I137: -0.0002 | K137: 4_P_VC_Rate_Rider_kWh_2
A156: MONTHLY RATES AND CHARGES - Regulatory Component
A157: Wholesale Market Service Rate | H157: $/kWh | I157: 0.0044 | K157: 4_P_WMSR
A158: Rural Rate Protection Charge | H158: $/kWh | I158: 0.0012 | K158: 4_P_RRPC
A159: Standard Supply Service - Administrative Charge (if applicable) | H159: $ | I159: 0.25 | K159: 4_P_SSS
A164: SENTINEL LIGHTING SERVICE CLASSIFICATION
A165: MONTHLY RATES AND CHARGES - Delivery Component
A166: Service Charge | H166: $ | I166: 12.81 | K166: 5_P_MSC
A167: Distribution Volumetric Rate | H167: $/kW | I167: 15.9888 | K167: 5_P_VC
A168: Low Voltage Service Rate | H168: $/kW | I168: 0.133 | K168: 5_P_LVrate
A169: Rate Rider for Deferral/Variance Account Disposition (2014) - effective until April 28, 2016 | H169: $/kW | I169: -1.042 | K169: 5_P_VC_DEFVAR_kW_1
A170: Rate Rider for Global Adjustment Sub-Account Disposition (2014) - effective until April 28, 2016 Applicable only for Non-RPP Customers | H170: $/kW | I170: 1.0808 | K170: 5_P_VC_GA_Rate_Rider_kW_1
A171: Retail Transmission Rate - Network Service Rate | H171: $/kW | I171: 1.973 | K171: 5_P_RTSR_Network
A172: Retail Transmission Rate - Line and Transformation Connection Service Rate | H172: $/kW | I172: 1.3675 | K172: 5_P_RTSR_Connection
A173: Rate Rider for Tax Change | H173: $/kW | I173: -0.4168 | K173: 5_P_VC_Rate_Rider_kW_2
A192: MONTHLY RATES AND CHARGES - Regulatory Component
A193: Wholesale Market Service Rate | H193: $/kWh | I193: 0.0044 | K193: 5_P_WMSR
A194: Rural Rate Protection Charge | H194: $/kWh | I194: 0.0012 | K194: 5_P_RRPC
A195: Standard Supply Service - Administrative Charge (if applicable) | H195: $ | I195: 0.25 | K195: 5_P_SSS
A200: STREET LIGHTING SERVICE CLASSIFICATION
A201: MONTHLY RATES AND CHARGES - Delivery Component
A202: Service Charge | H202: $ | I202: 1.14 | K202: 6_P_MSC
A203: Distribution Volumetric Rate | H203: $/kW | I203: 4.4472 | K203: 6_P_VC
A204: Low Voltage Service Rate | H204: $/kW | I204: 0.1223 | K204: 6_P_LVrate
A205: Rate Rider for Deferral/Variance Account Disposition (2014) - effective until April 28, 2016 | H205: $/kW | I205: -1.0513 | K205: 6_P_VC_DEFVAR_kW_1
A206: Rate Rider for Global Adjustment Sub-Account Disposition (2014) - effective until April 28, 2016 Applicable only for Non-RPP Customers | H206: $/kW | I206: 1.109 | K206: 6_P_VC_GA_Rate_Rider_kW_1
A207: Retail Transmission Rate - Network Service Rate | H207: $/kW | I207: 2.0146 | K207: 6_P_RTSR_Network
A208: Retail Transmission Rate - Line and Transformation Connection Service Rate | H208: $/kW | I208: 1.2574 | K208: 6_P_RTSR_Connection
A209: Rate Rider for Tax Change | H209: $/kW | I209: -0.0439 | K209: 6_P_VC_Rate_Rider_kW_2
A228: MONTHLY RATES AND CHARGES - Regulatory Component
A229: Wholesale Market Service Rate | H229: $/kWh | I229: 0.0044 | K229: 6_P_WMSR
A230: Rural Rate Protection Charge | H230: $/kWh | I230: 0.0012 | K230: 6_P_RRPC
A231: Standard Supply Service - Administrative Charge (if applicable) | H231: $ | I231: 0.25 | K231: 6_P_SSS
A236: MICROFIT SERVICE CLASSIFICATION
A237: MONTHLY RATES AND CHARGES - Delivery Component
A238: Service Charge | H238: $ | I238: 5.4 | K238: 7_P_MSC
A264: MONTHLY RATES AND CHARGES - Regulatory Component

Sheet 12. Summary Sheet
Y1: 3 | Z1: 3 | AA1: ≥
Z2: February
Z3: March
Z4: April
Z5: May
Z6: June
Z7: July
Z8: August
Z9: September
Z10: October
A11: The following table provides applicants with a class to class comparison of current vs. proposed rates. | Z11: November
Z12: December
A15: Current Rates | E15: Proposed Rates
A16: Rate Description | B16: Unit | C16: Amount | E16: Rate Description | F16: Unit | G16: Amount
A17: RESIDENTIAL | E17: RESIDENTIAL
A18: Service Charge | B18: $ | C18: 15.84 | E18: Service Charge | F18: $ | G18: 16
A19: Rate Rider for Smart Metering Entity Charge - effective until October 31, 2018 | B19: $ | C19: 0.79 | E19: Rate Rider for Smart Metering Entity Charge - effective until October 31, 2018 | F19: $ | G19: 0.79
A20: Distribution Volumetric Rate | B20: $/kWh | C20: 0.0159 | E20: Distribution Volumetric Rate | F20: $/kWh | G20: 0.0161
A21: Low Voltage Service Rate | B21: $/kWh | C21: 0.0005 | E21: Low Voltage Service Rate | F21: $/kWh | G21: 0.0005
A22: Rate Rider for Disposition of Deferral/Variance Accounts (2012) - effective until April 30, 2014 | B22: $/kWh | C22: -0.0011 | E22: Rate Rider for Deferral/Variance Account Disposition (2014) - effective until April 28, 2016 | F22: $/kWh | G22: -0.0028
A23: Rate Rider for Disposition of Global Adjustment Sub-Account (2012) - effective until April 30, 2014 Applicable only for Non-RPP Customers | B23: $/kWh | C23: -0.0005 | E23: Rate Rider for Global Adjustment Sub-Account Disposition (2014) - effective until April 28, 2016 Applicable only for Non-RPP Customers | F23: $/kWh | G23: 0.003
A24: Rate Rider for Disposition of Deferred PILs Variance Account 1562 - effective until April 30, 2014 | B24: $/kWh | C24: -0.0034 | E24: Retail Transmission Rate - Network Service Rate | F24: $/kWh | G24: 0.0069
A25: Rate Rider for Application of Tax Change - effective until April 30, 2014 | B25: $/kWh | C25: -0.0001 | E25: Retail Transmission Rate - Line and Transformation Connection Service Rate | F25: $/kWh | G25: 0.0047
A26: Retail Transmission Rate - Network Service Rate | B26: $/kWh | C26: 0.0068 | E26: Rate Rider for Tax Change | F26: $/kWh | G26: -0.0001
A27: Retail Transmission Rate - Line and Transformation Connection Service Rate | B27: $/kWh | C27: 0.0045 | E27: Wholesale Market Service Rate | F27: $/kWh | G27: 0.0044
A28: Wholesale Market Service Rate | B28: $/kWh | C28: 0.0044 | E28: Rural Rate Protection Charge | F28: $/kWh | G28: 0.0012
A29: Rural Rate Protection Charge | B29: $/kWh | C29: 0.0012 | E29: Standard Supply Service - Administrative Charge (if applicable) | F29: $ | G29: 0.25
A30: Standard Supply Service - Administrative Charge (if applicable) | B30: $ | C30: 0.25
A31: GENERAL SERVICE LESS THAN 50 KW | E31: GENERAL SERVICE LESS THAN 50 KW
A32: Service Charge | B32: $ | C32: 37.27 | E32: Service Charge | F32: $ | G32: 37.64
A33: Rate Rider for Smart Metering Entity Charge - effective until October 31, 2018 | B33: $ | C33: 0.79 | E33: Rate Rider for Smart Metering Entity Charge - effective until October 31, 2018 | F33: $ | G33: 0.79
A34: Distribution Volumetric Rate | B34: $/kWh | C34: 0.0136 | E34: Distribution Volumetric Rate | F34: $/kWh | G34: 0.0137
A35: Low Voltage Service Rate | B35: $/kWh | C35: 0.0004 | E35: Low Voltage Service Rate | F35: $/kWh | G35: 0.0004
A36: Rate Rider for Disposition of Deferral/Variance Accounts (2012) - effective until April 30, 2014 | B36: $/kWh | C36: -0.0011 | E36: Rate Rider for Deferral/Variance Account Disposition (2014) - effective until April 28, 2016 | F36: $/kWh | G36: -0.0029
A37: Rate Rider for Disposition of Global Adjustment Sub-Account (2012) - effective until April 30, 2014 Applicable only for Non-RPP Customers | B37: $/kWh | C37: -0.0005 | E37: Rate Rider for Global Adjustment Sub-Account Disposition (2014) - effective until April 28, 2016 Applicable only for Non-RPP Customers | F37: $/kWh | G37: 0.003
A38: Rate Rider for Disposition of Deferred PILs Variance Account 1562 - effective until April 30, 2014 | B38: $/kWh | C38: -0.003 | E38: Retail Transmission Rate - Network Service Rate | F38: $/kWh | G38: 0.0063
A39: Rate Rider for Application of Tax Change - effective until April 30, 2014 | B39: $/kWh | C39: -0.0001 | E39: Retail Transmission Rate - Line and Transformation Connection Service Rate | F39: $/kWh | G39: 0.0042
A40: Retail Transmission Rate - Network Service Rate | B40: $/kWh | C40: 0.0062 | E40: Rate Rider for Tax Change | F40: $/kWh | G40: -0.0001
A41: Retail Transmission Rate - Line and Transformation Connection Service Rate | B41: $/kWh | C41: 0.004 | E41: Wholesale Market Service Rate | F41: $/kWh | G41: 0.0044
A42: Wholesale Market Service Rate | B42: $/kWh | C42: 0.0044 | E42: Rural Rate Protection Charge | F42: $/kWh | G42: 0.0012
A43: Rural Rate Protection Charge | B43: $/kWh | C43: 0.0012 | E43: Standard Supply Service - Administrative Charge (if applicable) | F43: $ | G43: 0.25
A44: Standard Supply Service - Administrative Charge (if applicable) | B44: $ | C44: 0.25
A45: GENERAL SERVICE 50 TO 4,999 KW | E45: GENERAL SERVICE 50 TO 4,999 KW
A46: Service Charge | B46: $ | C46: 177.1 | E46: Service Charge | F46: $ | G46: 178.84
A47: Distribution Volumetric Rate | B47: $/kW | C47: 4.1815 | E47: Distribution Volumetric Rate | F47: $/kW | G47: 4.2225
A48: Low Voltage Service Rate | B48: $/kW | C48: 0.1592 | E48: Low Voltage Service Rate | F48: $/kW | G48: 0.1592
A49: Rate Rider for Disposition of Deferral/Variance Accounts (2012) - effective until April 30, 2014 | B49: $/kW | C49: -0.3734 | E49: Rate Rider for Deferral/Variance Account Disposition (2014) - effective until April 28, 2016 | F49: $/kW | G49: -0.9763
A50: Rate Rider for Disposition of Global Adjustment Sub-Account (2012) - effective until April 30, 2014 Applicable only for Non-RPP Customers | B50: $/kW | C50: -0.184 | E50: Rate Rider for Global Adjustment Sub-Account Disposition (2014) - effective until April 28, 2016 Applicable only for Non-RPP Customers | F50: $/kW | G50: 1.0363
A51: Rate Rider for Disposition of Deferred PILs Variance Account 1562 - effective until April 30, 2014 | B51: $/kW | C51: -0.4497 | E51: Retail Transmission Rate - Network Service Rate | F51: $/kW | G51: 2.5999
A52: Rate Rider for Application of Tax Change - effective until April 30, 2014 | B52: $/kW | C52: -0.0124 | E52: Retail Transmission Rate - Line and Transformation Connection Service Rate | F52: $/kW | G52: 1.6503
A53: Retail Transmission Rate - Network Service Rate | B53: $/kW | C53: 2.5508 | E53: Rate Rider for Tax Change | F53: $/kW | G53: -0.0178
A54: Retail Transmission Rate - Line and Transformation Connection Service Rate | B54: $/kW | C54: 1.5766 | E54: Wholesale Market Service Rate | F54: $/kWh | G54: 0.0044
A55: Wholesale Market Service Rate | B55: $/kWh | C55: 0.0044 | E55: Rural Rate Protection Charge | F55: $/kWh | G55: 0.0012
A56: Rural Rate Protection Charge | B56: $/kWh | C56: 0.0012 | E56: Standard Supply Service - Administrative Charge (if applicable) | F56: $ | G56: 0.25
A57: Standard Supply Service - Administrative Charge (if applicable) | B57: $ | C57: 0.25
A58: UNMETERED SCATTERED LOAD | E58: UNMETERED SCATTERED LOAD
A59: Service Charge | B59: $ | C59: 19.26 | E59: Service Charge | F59: $ | G59: 19.45
A60: Distribution Volumetric Rate | B60: $/kWh | C60: 0.0135 | E60: Distribution Volumetric Rate | F60: $/kWh | G60: 0.0136
A61: Low Voltage Service Rate | B61: $/kWh | C61: 0.0004 | E61: Low Voltage Service Rate | F61: $/kWh | G61: 0.0004
A62: Rate Rider for Disposition of Deferral/Variance Accounts (2012) - effective until April 30, 2014 | B62: $/kWh | C62: -0.0011 | E62: Rate Rider for Deferral/Variance Account Disposition (2014) - effective until April 28, 2016 | F62: $/kWh | G62: -0.0028
A63: Rate Rider for Disposition of Global Adjustment Sub-Account (2012) - effective until April 30, 2014 Applicable only for Non-RPP Customers | B63: $/kWh | C63: -0.0005 | E63: Rate Rider for Global Adjustment Sub-Account Disposition (2014) - effective until April 28, 2016 Applicable only for Non-RPP Customers | F63: $/kWh | G63: 0.003
A64: Rate Rider for Disposition of Deferred PILs Variance Account 1562 - effective until April 30, 2014 | B64: $/kWh | C64: -0.0075 | E64: Retail Transmission Rate - Network Service Rate | F64: $/kWh | G64: 0.0063
A65: Rate Rider for Application of Tax Change - effective until April 30, 2014 | B65: $/kWh | C65: -0.0001 | E65: Retail Transmission Rate - Line and Transformation Connection Service Rate | F65: $/kWh | G65: 0.0042
A66: Retail Transmission Rate - Network Service Rate | B66: $/kWh | C66: 0.0062 | E66: Rate Rider for Tax Change | F66: $/kWh | G66: -0.0002
A67: Retail Transmission Rate - Line and Transformation Connection Service Rate | B67: $/kWh | C67: 0.004 | E67: Wholesale Market Service Rate | F67: $/kWh | G67: 0.0044
A68: Wholesale Market Service Rate | B68: $/kWh | C68: 0.0044 | E68: Rural Rate Protection Charge | F68: $/kWh | G68: 0.0012
A69: Rural Rate Protection Charge | B69: $/kWh | C69: 0.0012 | E69: Standard Supply Service - Administrative Charge (if applicable) | F69: $ | G69: 0.25
A70: Standard Supply Service - Administrative Charge (if applicable) | B70: $ | C70: 0.25
A71: SENTINEL LIGHTING | E71: SENTINEL LIGHTING
A72: Service Charge | B72: $ | C72: 12.69 | E72: Service Charge | F72: $ | G72: 12.81
A73: Distribution Volumetric Rate | B73: $/kW | C73: 15.8336 | E73: Distribution Volumetric Rate | F73: $/kW | G73: 15.9888
A74: Low Voltage Service Rate | B74: $/kW | C74: 0.133 | E74: Low Voltage Service Rate | F74: $/kW | G74: 0.133
A75: Rate Rider for Disposition of Deferral/Variance Accounts (2012) - effective until April 30, 2014 | B75: $/kW | C75: -0.3913 | E75: Rate Rider for Deferral/Variance Account Disposition (2014) - effective until April 28, 2016 | F75: $/kW | G75: -1.049
A76: Rate Rider for Disposition of Global Adjustment Sub-Account (2012) - effective until April 30, 2014 Applicable only for Non-RPP Customers | B76: $/kW | C76: -0.1928 | E76: Rate Rider for Global Adjustment Sub-Account Disposition (2014) - effective until April 28, 2016 Applicable only for Non-RPP Customers | F76: $/kW | G76: 1.086
A77: Rate Rider for Disposition of Deferred PILs Variance Account 1562 - effective until April 30, 2014 | B77: $/kW | C77: -1.3281 | E77: Retail Transmission Rate - Network Service Rate | F77: $/kW | G77: 1.925
A78: Rate Rider for Application of Tax Change - effective until April 30, 2014 | B78: $/kW | C78: -0.2235 | E78: Retail Transmission Rate - Line and Transformation Connection Service Rate | F78: $/kW | G78: 1.3789
A79: Retail Transmission Rate - Network Service Rate | B79: $/kW | C79: 1.8886 | E79: Rate Rider for Tax Change | F79: $/kW | G79: -0.4168
A80: Retail Transmission Rate - Line and Transformation Connection Service Rate | B80: $/kW | C80: 1.3174 | E80: Wholesale Market Service Rate | F80: $/kWh | G80: 0.0044
A81: Wholesale Market Service Rate | B81: $/kWh | C81: 0.0044 | E81: Rural Rate Protection Charge | F81: $/kWh | G81: 0.0012
A82: Rural Rate Protection Charge | B82: $/kWh | C82: 0.0012 | E82: Standard Supply Service - Administrative Charge (if applicable) | F82: $ | G82: 0.25
A83: Standard Supply Service - Administrative Charge (if applicable) | B83: $ | C83: 0.25
A84: STREET LIGHTING | E84: STREET LIGHTING
A85: Service Charge | B85: $ | C85: 1.13 | E85: Service Charge | F85: $ | G85: 1.14
A86: Distribution Volumetric Rate | B86: $/kW | C86: 4.404 | E86: Distribution Volumetric Rate | F86: $/kW | G86: 4.4472
A87: Low Voltage Service Rate | B87: $/kW | C87: 0.1223 | E87: Low Voltage Service Rate | F87: $/kW | G87: 0.1223
A88: Rate Rider for Disposition of Deferral/Variance Accounts (2012) - effective until April 30, 2014 | B88: $/kW | C88: -0.4015 | E88: Rate Rider for Deferral/Variance Account Disposition (2014) - effective until April 28, 2016 | F88: $/kW | G88: -1.0576
A89: Rate Rider for Disposition of Global Adjustment Sub-Account (2012) - effective until April 30, 2014 Applicable only for Non-RPP Customers | B89: $/kW | C89: -0.1979 | E89: Rate Rider for Global Adjustment Sub-Account Disposition (2014) - effective until April 28, 2016 Applicable only for Non-RPP Customers | F89: $/kW | G89: 1.1143
A90: Rate Rider for Disposition of Deferred PILs Variance Account 1562 - effective until April 30, 2014 | B90: $/kW | C90: -0.4229 | E90: Retail Transmission Rate - Network Service Rate | F90: $/kW | G90: 1.9655
A91: Rate Rider for Application of Tax Change - effective until April 30, 2014 | B91: $/kW | C91: -0.0255 | E91: Retail Transmission Rate - Line and Transformation Connection Service Rate | F91: $/kW | G91: 1.2679
A92: Retail Transmission Rate - Network Service Rate | B92: $/kW | C92: 1.9284 | E92: Rate Rider for Tax Change | F92: $/kW | G92: -0.0439
A93: Retail Transmission Rate - Line and Transformation Connection Service Rate | B93: $/kW | C93: 1.2113 | E93: Wholesale Market Service Rate | F93: $/kWh | G93: 0.0044
A94: Wholesale Market Service Rate | B94: $/kWh | C94: 0.0044 | E94: Rural Rate Protection Charge | F94: $/kWh | G94: 0.0012
A95: Rural Rate Protection Charge | B95: $/kWh | C95: 0.0012 | E95: Standard Supply Service - Administrative Charge (if applicable) | F95: $ | G95: 0.25
A96: Standard Supply Service - Administrative Charge (if applicable) | B96: $ | C96: 0.25
A97: microFIT | E97: microFIT
A98: Service Charge | B98: $ | C98: 5.4 | E98: Service Charge | F98: $ | G98: 5.4

Sheet 13. Final Tariff Schedule
Y1: 3 | Z1: 3 | AA1: ≥
Z2: February
Z3: March
Z4: April
Z5: May
Z6: June
Z7: July
Z8: August
Z9: September
Z10: October
Z11: November
A12: The following is a complete Tariff Schedule based on the information entered in this model. Pressing the button on the right hand side will transfer the tariff schedule to a new file. | Z12: December
A19: ='1. Information Sheet'!F14 -> Niagara Peninsula Energy Inc.
A20: TARIFF OF RATES AND CHARGES
A21: ="Effective and Implementation Date " & TEXT('1. Information Sheet'!F26, "mmmm dd, yyyy") -> Effective and Implementation Date May 01, 2014
A23: This schedule supersedes and replaces all previously
A24: approved schedules of Rates, Charges and Loss Factors
A25: ='1. Information Sheet'!F18 -> EB-2013-0154
A26: RESIDENTIAL SERVICE CLASSIFICATION
A28: This class pertains to customers residing in detached, semi-detached or duplex dwelling units, where energy is supplied single-phase, 3 wire, 60 hertz, having a nominal voltage of 120/240 volts. Large residential services will include all services from 201 amp. up to and including 400 amp., 120/240 volt, single phase, three wire. Further servicing details are available in the distributor's Conditions of Service.
A30: APPLICATION
A32: The application of these rates and charges shall be in accordance with the Licence of the Distributor and any Code or Order of the Board, and amendments thereto as approved by the Board, which may be applicable to the administration of this schedule.
A34: No rates and charges for the distribution of electricity and charges to meet the costs of any work or service done or furnished for the purpose of the distribution of electricity shall be made except as permitted by this schedule, unless required by the Distributor's Licence or a Code or Order of the Board, and amendments thereto as approved by the Board, or as specified herein.
A36: Unless specifically noted, this schedule does not contain any charges for the electricity commodity, be it under the Regulated Price Plan, a contract with a retailer or the wholesale market price, as applicable. In addition, the charges in the MONTHLY RATES AND CHARGES - Regulatory component of this schedule do not apply to a customer that is an embedded wholesale market participant.
A38: It should be noted that this schedule does not list any charges, assessments or credits that are required by law to be invoiced by a distributor and that are not subject to Board approval, such as the Debt Retirement Charge, the Global Adjustment, the Ontario Clean Energy Benefit and the HST.
A40: MONTHLY RATES AND CHARGES - Delivery Component
A42: Service Charge | H42: $ | I42: 16
A43: Rate Rider for Smart Metering Entity Charge - effective until October 31, 2018 | H43: $ | I43: 0.79
A44: Distribution Volumetric Rate | H44: $/kWh | I44: 0.0161
A45: Low Voltage Service Rate | H45: $/kWh | I45: 0.0005
A46: Rate Rider for Deferral/Variance Account Disposition (2014) - effective until April 28, 2016 | H46: $/kWh | I46: -0.0028
A47: Rate Rider for Global Adjustment Sub-Account Disposition (2014) - effective until April 28, 2016
A48: Applicable only for Non-RPP Customers | H48: $/kWh | I48: 0.003
A49: Retail Transmission Rate - Network Service Rate | H49: $/kWh | I49: 0.0069
A50: Retail Transmission Rate - Line and Transformation Connection Service Rate | H50: $/kWh | I50: 0.0047
A51: Rate Rider for Tax Change | H51: $/kWh | I51: -0.0001
A53: MONTHLY RATES AND CHARGES - Regulatory Component
A55: Wholesale Market Service Rate | H55: $/kWh | I55: 0.0044
A56: Rural Rate Protection Charge | H56: $/kWh | I56: 0.0012
A57: Standard Supply Service - Administrative Charge (if applicable) | H57: $ | I57: 0.25
A60: GENERAL SERVICE LESS THAN 50 KW SERVICE CLASSIFICATION
A62: This class pertains to non-residential customers taking electricity at 750 volts or less whose monthly average peak demand is less than, or is forecast to be less than, 50 kW. Further servicing details are available in the distributor's Conditions of Service.
A64: APPLICATION
A66: The application of these rates and charges shall be in accordance with the Licence of the Distributor and any Code or Order of the Board, and amendments thereto as approved by the Board, which may be applicable to the administration of this schedule.
A68: No rates and charges for the distribution of electricity and charges to meet the costs of any work or service done or furnished for the purpose of the distribution of electricity shall be made except as permitted by this schedule, unless required by the Distributor's Licence or a Code or Order of the Board, and amendments thereto as approved by the Board, or as specified herein.
A70: Unless specifically noted, this schedule does not contain any charges for the electricity commodity, be it under the Regulated Price Plan, a contract with a retailer or the wholesale market price, as applicable. In addition, the charges in the MONTHLY RATES AND CHARGES - Regulatory component of this schedule do not apply to a customer that is an embedded wholesale market participant.
A72: It should be noted that this schedule does not list any charges, assessments or credits that are required by law to be invoiced by a distributor and that are not subject to Board approval, such as the Debt Retirement Charge, the Global Adjustment, the Ontario Clean Energy Benefit and the HST.
A74: MONTHLY RATES AND CHARGES - Delivery Component
A76: Service Charge | H76: $ | I76: 37.64
A77: Rate Rider for Smart Metering Entity Charge - effective until October 31, 2018 | H77: $ | I77: 0.79
A78: Distribution Volumetric Rate | H78: $/kWh | I78: 0.0137
A79: Low Voltage Service Rate | H79: $/kWh | I79: 0.0004
A80: Rate Rider for Deferral/Variance Account Disposition (2014) - effective until April 28, 2016 | H80: $/kWh | I80: -0.0029
A81: Rate Rider for Global Adjustment Sub-Account Disposition (2014) - effective until April 28, 2016
A82: Applicable only for Non-RPP Customers | H82: $/kWh | I82: 0.003
A83: Retail Transmission Rate - Network Service Rate | H83: $/kWh | I83: 0.0063
A84: Retail Transmission Rate - Line and Transformation Connection Service Rate | H84: $/kWh | I84: 0.0042
A85: Rate Rider for Tax Change | H85: $/kWh | I85: -0.0001
A87: MONTHLY RATES AND CHARGES - Regulatory Component
A89: Wholesale Market Service Rate | H89: $/kWh | I89: 0.0044
A90: Rural Rate Protection Charge | H90: $/kWh | I90: 0.0012
A91: Standard Supply Service - Administrative Charge (if applicable) | H91: $ | I91: 0.25
A94: GENERAL SERVICE 50 TO 4,999 KW SERVICE CLASSIFICATION
A96: This classification referes to a non residential account whose monthly average peak demand is equal to or greater than, or is forecast to be equal to or greater than 50 kW but less than 5,000 kW. Further servicing details are available in the distributor's Conditions of Service.
A98: APPLICATION
A100: The application of these rates and charges shall be in accordance with the Licence of the Distributor and any Code or Order of the Board, and amendments thereto as approved by the Board, which may be applicable to the administration of this schedule.
A102: No rates and charges for the distribution of electricity and charges to meet the costs of any work or service done or furnished for the purpose of the distribution of electricity shall be made except as permitted by this schedule, unless required by the Distributor's Licence or a Code or Order of the Board, and amendments thereto as approved by the Board, or as specified herein.
A104: Unless specifically noted, this schedule does not contain any charges for the electricity commodity, be it under the Regulated Price Plan, a contract with a retailer or the wholesale market price, as applicable. In addition, the charges in the MONTHLY RATES AND CHARGES - Regulatory component of this schedule do not apply to a customer that is an embedded wholesale market participant.
A106: It should be noted that this schedule does not list any charges, assessments or credits that are required by law to be invoiced by a distributor and that are not subject to Board approval, such as the Debt Retirement Charge, the Global Adjustment, the Ontario Clean Energy Benefit and the HST.
A108: MONTHLY RATES AND CHARGES - Delivery Component
A110: Service Charge | H110: $ | I110: 178.84
A111: Distribution Volumetric Rate | H111: $/kW | I111: 4.2225
A112: Low Voltage Service Rate | H112: $/kW | I112: 0.1592
A113: Rate Rider for Deferral/Variance Account Disposition (2014) - effective until April 28, 2016 | H113: $/kW | I113: -0.9763
A114: Rate Rider for Global Adjustment Sub-Account Disposition (2014) - effective until April 28, 2016
A115: Applicable only for Non-RPP Customers | H115: $/kW | I115: 1.0363
A116: Retail Transmission Rate - Network Service Rate | H116: $/kW | I116: 2.5999
A117: Retail Transmission Rate - Line and Transformation Connection Service Rate | H117: $/kW | I117: 1.6503
A118: Rate Rider for Tax Change | H118: $/kW | I118: -0.0178
A120: MONTHLY RATES AND CHARGES - Regulatory Component
A122: Wholesale Market Service Rate | H122: $/kWh | I122: 0.0044
A123: Rural Rate Protection Charge | H123: $/kWh | I123: 0.0012
A124: Standard Supply Service - Administrative Charge (if applicable) | H124: $ | I124: 0.25
A127: UNMETERED SCATTERED LOAD SERVICE CLASSIFICATION
A129: This classification refers to an account taking electricity at 750 volts or less whos monthly averge peak demand is less than, or forecast to be less than, 50 kW and the consumption is unmetered. Such connections include cable TV power pack, bus shelters, telephone booths, traffic lights, railway crossings etc. The customer will provide detailed manufacturer information/documentation with regard to electricity demand/consumption of the proposed unmetered load. Further servicing details are available in the distributor's Conditions of Service.
A131: APPLICATION
A133: The application of these rates and charges shall be in accordance with the Licence of the Distributor and any Code or Order of the Board, and amendments thereto as approved by the Board, which may be applicable to the administration of this schedule.
A135: No rates and charges for the distribution of electricity and charges to meet the costs of any work or service done or furnished for the purpose of the distribution of electricity shall be made except as permitted by this schedule, unless required by the Distributor's Licence or a Code or Order of the Board, and amendments thereto as approved by the Board, or as specified herein.
A137: Unless specifically noted, this schedule does not contain any charges for the electricity commodity, be it under the Regulated Price Plan, a contract with a retailer or the wholesale market price, as applicable. In addition, the charges in the MONTHLY RATES AND CHARGES - Regulatory component of this schedule do not apply to a customer that is an embedded wholesale market participant.
A139: It should be noted that this schedule does not list any charges, assessments or credits that are required by law to be invoiced by a distributor and that are not subject to Board approval, such as the Debt Retirement Charge, the Global Adjustment, the Ontario Clean Energy Benefit and the HST.
A141: MONTHLY RATES AND CHARGES - Delivery Component
A143: Service Charge | H143: $ | I143: 19.45
A144: Distribution Volumetric Rate | H144: $/kWh | I144: 0.0136
A145: Low Voltage Service Rate | H145: $/kWh | I145: 0.0004
A146: Rate Rider for Deferral/Variance Account Disposition (2014) - effective until April 28, 2016 | H146: $/kWh | I146: -0.0028
A147: Rate Rider for Global Adjustment Sub-Account Disposition (2014) - effective until April 28, 2016
A148: Applicable only for Non-RPP Customers | H148: $/kWh | I148: 0.003
A149: Retail Transmission Rate - Network Service Rate | H149: $/kWh | I149: 0.0063
A150: Retail Transmission Rate - Line and Transformation Connection Service Rate | H150: $/kWh | I150: 0.0042
A151: Rate Rider for Tax Change | H151: $/kWh | I151: -0.0002
A153: MONTHLY RATES AND CHARGES - Regulatory Component
A155: Wholesale Market Service Rate | H155: $/kWh | I155: 0.0044
A156: Rural Rate Protection Charge | H156: $/kWh | I156: 0.0012
A157: Standard Supply Service - Administrative Charge (if applicable) | H157: $ | I157: 0.25
A160: SENTINEL LIGHTING SERVICE CLASSIFICATION
A162: This classification refers to accounts that are an unmetered lighting load supplied to a sentinel light. Further servicing details are available in the distributor's Conditions of Service.
A164: APPLICATION
A166: The application of these rates and charges shall be in accordance with the Licence of the Distributor and any Code or Order of the Board, and amendments thereto as approved by the Board, which may be applicable to the administration of this schedule.
A168: No rates and charges for the distribution of electricity and charges to meet the costs of any work or service done or furnished for the purpose of the distribution of electricity shall be made except as permitted by this schedule, unless required by the Distributor's Licence or a Code or Order of the Board, and amendments thereto as approved by the Board, or as specified herein.
A170: Unless specifically noted, this schedule does not contain any charges for the electricity commodity, be it under the Regulated Price Plan, a contract with a retailer or the wholesale market price, as applicable. In addition, the charges in the MONTHLY RATES AND CHARGES - Regulatory component of this schedule do not apply to a customer that is an embedded wholesale market participant.
A172: It should be noted that this schedule does not list any charges, assessments or credits that are required by law to be invoiced by a distributor and that are not subject to Board approval, such as the Debt Retirement Charge, the Global Adjustment, the Ontario Clean Energy Benefit and the HST.
A174: MONTHLY RATES AND CHARGES - Delivery Component
A176: Service Charge | H176: $ | I176: 12.81
A177: Distribution Volumetric Rate | H177: $/kW | I177: 15.9888
A178: Low Voltage Service Rate | H178: $/kW | I178: 0.133
A179: Rate Rider for Deferral/Variance Account Disposition (2014) - effective until April 28, 2016 | H179: $/kW | I179: -1.049
A180: Rate Rider for Global Adjustment Sub-Account Disposition (2014) - effective until April 28, 2016
A181: Applicable only for Non-RPP Customers | H181: $/kW | I181: 1.086
A182: Retail Transmission Rate - Network Service Rate | H182: $/kW | I182: 1.925
A183: Retail Transmission Rate - Line and Transformation Connection Service Rate | H183: $/kW | I183: 1.3789
A184: Rate Rider for Tax Change | H184: $/kW | I184: -0.4168
A186: MONTHLY RATES AND CHARGES - Regulatory Component
A188: Wholesale Market Service Rate | H188: $/kWh | I188: 0.0044
A189: Rural Rate Protection Charge | H189: $/kWh | I189: 0.0012
A190: Standard Supply Service - Administrative Charge (if applicable) | H190: $ | I190: 0.25
A193: STREET LIGHTING SERVICE CLASSIFICATION
A195: This classification refers to an account for roadway lighting with a Municipality, Regional Municipality, Ministry of Transportation and private roadway lighting operation, controlled by photo cells. Street lighting profile is derived throught the use of a "virtual streetlight meter" that uses a street light control eye, consistent with the model type and product manufacturer of devices currently in service in the Applicant's distribution area, to simulate the exact daily condititions that the typical street light is exposed to. This simulated street light load is captured using an interval metering device, and is processed as part of the distributor's daily interval meter interrogation, validation and processing procedures. Further servicing details are available in the distributor's Conditions of Service.
A197: APPLICATION
A199: The application of these rates and charges shall be in accordance with the Licence of the Distributor and any Code or Order of the Board, and amendments thereto as approved by the Board, which may be applicable to the administration of this schedule.
A201: No rates and charges for the distribution of electricity and charges to meet the costs of any work or service done or furnished for the purpose of the distribution of electricity shall be made except as permitted by this schedule, unless required by the Distributor's Licence or a Code or Order of the Board, and amendments thereto as approved by the Board, or as specified herein.
A203: Unless specifically noted, this schedule does not contain any charges for the electricity commodity, be it under the Regulated Price Plan, a contract with a retailer or the wholesale market price, as applicable. In addition, the charges in the MONTHLY RATES AND CHARGES - Regulatory component of this schedule do not apply to a customer that is an embedded wholesale market participant.
A205: It should be noted that this schedule does not list any charges, assessments or credits that are required by law to be invoiced by a distributor and that are not subject to Board approval, such as the Debt Retirement Charge, the Global Adjustment, the Ontario Clean Energy Benefit and the HST.
A207: MONTHLY RATES AND CHARGES - Delivery Component
A209: Service Charge | H209: $ | I209: 1.14
A210: Distribution Volumetric Rate | H210: $/kW | I210: 4.4472
A211: Low Voltage Service Rate | H211: $/kW | I211: 0.1223
A212: Rate Rider for Deferral/Variance Account Disposition (2014) - effective until April 28, 2016 | H212: $/kW | I212: -1.0576
A213: Rate Rider for Global Adjustment Sub-Account Disposition (2014) - effective until April 28, 2016
A214: Applicable only for Non-RPP Customers | H214: $/kW | I214: 1.1143
A215: Retail Transmission Rate - Network Service Rate | H215: $/kW | I215: 1.9655
A216: Retail Transmission Rate - Line and Transformation Connection Service Rate | H216: $/kW | I216: 1.2679
A217: Rate Rider for Tax Change | H217: $/kW | I217: -0.0439
A219: MONTHLY RATES AND CHARGES - Regulatory Component
A221: Wholesale Market Service Rate | H221: $/kWh | I221: 0.0044
A222: Rural Rate Protection Charge | H222: $/kWh | I222: 0.0012
A223: Standard Supply Service - Administrative Charge (if applicable) | H223: $ | I223: 0.25
A226: MICROFIT SERVICE CLASSIFICATION
A228: This classification applies to an electricity generation facility contracted under the Ontario Power Authority's microFIT program and connected to the distributor's distribution system. Further servicing details are available in the distributor's Conditions of Service.
A230: APPLICATION
A232: The application of these rates and charges shall be in accordance with the Licence of the Distributor and any Code or Order of the Board, and amendments thereto as approved by the Board, which may be applicable to the administration of this schedule.
A234: No rates and charges for the distribution of electricity and charges to meet the costs of any work or service done or furnished for the purpose of the distribution of electricity shall be made except as permitted by this schedule, unless required by the Distributor's Licence or a Code or Order of the Board, and amendments thereto as approved by the Board, or as specified herein.
A236: Unless specifically noted, this schedule does not contain any charges for the electricity commodity, be it under the Regulated Price Plan, a contract with a retailer or the wholesale market price, as applicable.
A238: It should be noted that this schedule does not list any charges, assessments or credits that are required by law to be invoiced by a distributor and that are not subject to Board approval, such as the Debt Retirement Charge, the Global Adjustment, the Ontario Clean Energy Benefit and the HST.
A240: MONTHLY RATES AND CHARGES - Delivery Component
A242: Service Charge | H242: $ | I242: 5.4
A244: MONTHLY RATES AND CHARGES - Regulatory Component
A246: MONTHLY RATES AND CHARGES - Regulatory Component
A249: ALLOWANCES
A251: Transformer Allowance for Ownership - per kW of billing demand/month | H251: $/kW | I251: -0.6
A252: Primary Metering Allowance for transformer losses – applied to measured demand and energy | H252: % | I252: -1
A254: SPECIFIC SERVICE CHARGES
A256: APPLICATION
A258: The application of these rates and charges shall be in accordance with the Licence of the Distributor and any Code or
A259: Order of the Board, and amendments thereto as approved by the Board, which may be applicable to the
A260: administration of this schedule
A262: No charges to meet the costs of any work or service done or furnished for the purpose of the distribution of electricity
A263: shall be made except as permitted by this schedule, unless required by the Distributor’s Licence or a Code or Order
A264: of the Board, and amendments thereto as approved by the Board, or as specified herein.
A266: It should be noted that this schedule does not list any charges, assessments, or credits that are required by law to be
A267: invoiced by a distributor and that are not subject to Board approval, such as the Debt Retirement Charge, the Global
A268: Adjustment, the Ontario Clean Energy Benefit and the HST.
A271: Customer Administration
A273: Returned cheque (plus bank charges) | H273: $ | I273: 20
A274: Legal letter charge | H274: $ | I274: 15
A275: Account set up charge/change of occupancy charge (plus credit agency costs if applicable) | H275: $ | I275: 30
A276: Meter dispute charge plus Measurement Canada fees (if meter found correct) | H276: $ | I276: 30
A278: Non-Payment of Account
A280: Late Payment – per month | H280: % | I280: 1.5
A281: Late Payment – per annum | H281: % | I281: 19.56
A282: Collection of account charge – no disconnection | H282: $ | I282: 30
A283: Collection of account charge – no disconnection – after regular hours | H283: $ | I283: 165
A284: Disconnect/Reconnect at meter – during regular hours | H284: $ | I284: 65
A285: Disconnect/Reconnect at meter – after regular hours | H285: $ | I285: 185
A286: Disconnect/Reconnect at pole – during regular hours | H286: $ | I286: 185
A287: Disconnect/Reconnect at pole – after regular hours | H287: $ | I287: 415
A288: Install/Remove load control device – during regular hours | H288: $ | I288: 65
A289: Install/Remove load control device – after regular hours | H289: $ | I289: 185
A290: Service call – customer owned equipment | H290: $ | I290: 30
A291: Service call – after regular hours | H291: $ | I291: 165
A292: Temporary service install & remove – overhead – no transformer | H292: $ | I292: 500
A293: Temporary Service – Install & remove – underground – no transformer | H293: $ | I293: 300
A294: Temporary Service Install & Remove – Overhead – With Transformer | H294: $ | I294: 1000
A295: Specific Charge for Access to the Power Poles - $/pole/year | H295: $ | I295: 22.35
A296: RETAIL SERVICE CHARGES (if applicable)
A298: The application of these rates and charges shall be in accordance with the Licence of the Distributor and any Code or
A299: Order of the Board, and amendments thereto as approved by the Board, which may be applicable to the
A300: administration of this schedule.
A302: No rates and charges for the distribution of electricity and charges to meet the costs of any work or service done or
A303: furnished for the purpose of the distribution of electricity shall be made except as permitted by this schedule, unless
A304: required by the Distributor’s Licence or a Code or Order of the Board, and amendments thereto as approved by the
... 27 more rows

Sheet 14. Bill Impacts (hidden)
Z1: =MATCH(A13, '3. Rate Class Selection'!B19:B40,0) -> 1 | AA1: =VLOOKUP(A13, lists!AO:AP,2,0) -> kWh
A11: Choose a Rate Class from the drop-down menu below and click UPDATE. For Street Lighting and USL classes, please ensure that the number of customers is manually entered into cells B30 and B31. Click the UPDATE button to refresh the sheet.
A13: RESIDENTIAL | F13: =IF(ISERROR(SEARCH("MicroFit",A13,1))=FALSE,"Bill impact presentation for this class does not exist.", "") -> 
A15: Consumption | B15: =730*D15*B17 -> 3650000 | C15: kWh | D15: 10000 | E15: =IF(AA1 = "kWh", "", "kW") -> 
A16: RPP Tier One | B16: 600 | C16: kWh | E16: 1
A17: Load Factor | B17: 0.5
A18: Loss Factor | B18: 1
B21: CURRENT ESTIMATED BILL | E21: PROPOSED ESTIMATED BILL
B22: Volume | C22: Current Rate ($) | D22: Current Charge ($) | E22: Volume | F22: Proposed Rate ($) | G22: Proposed Charge ($) | I22: Change ($) | J22: Change (%) | K22: % of Total RPP Bill | L22: % of Total TOU Bill
A23: Energy First Tier (kWh) | B23: 3650000 | C23: 0.075 | D23: =B23*C23 -> 273750 | E23: =B23 -> 3650000 | F23: =C23 -> 0.075 | G23: =E23*F23 -> 273750 | I23: =G23-D23 -> 0 | J23: =I23/D23 -> 0 | K23: =G23/G48 -> 0.8646078577
A24: Energy Second Tier (kWh) | B24: 0 | C24: 0.088 | D24: =B24*C24 -> 0 | E24: =B24 -> 0 | F24: =C24 -> 0.088 | G24: =E24*F24 -> 0 | I24: =G24-D24 -> 0 | J24: 0 | K24: =G24/G48 -> 0
A26: TOU - Off Peak | B26: =0.64*$B$15*$B$18 -> 2336000 | C26: 0.065 | D26: =C26*B26 -> 151840 | E26: =B26 -> 2336000 | F26: =C26 -> 0.065 | G26: =F26*E26 -> 151840 | I26: =G26-D26 -> 0 | J26: =I26/D26 -> 0 | L26: =G26/G54 -> 0.449726096
A27: TOU - Mid Peak | B27: =0.18*$B$15*$B$18 -> 657000 | C27: 0.1 | D27: =C27*B27 -> 65700 | E27: =B27 -> 657000 | F27: =C27 -> 0.1 | G27: =F27*E27 -> 65700 | H27: 6570 | I27: =G27-D27 -> 0 | J27: =I27/D27 -> 0 | L27: =G27/G54 -> 0.1945930223
A28: TOU - On Peak | B28: =0.18*$B$15*$B$18 -> 657000 | C28: 0.117 | D28: 76869 | F28: 0.117 | G28: =F28*E28 -> 0 | H28: 0 | J28: =I28/D28 -> 0 | L28: =G28/G54 -> 0
A30: Service Charge | B30: 1 | D30: 0 | G30: =F30*E30 -> 0 | H30: 0 | J30: 0 | K30: 0 | L30: 0
A31: Service Charge Rate Rider(s) | B31: 1 | C31: 0 | D31: 0 | F31: 0 | G31: =F31*E31 -> 0 | H31: =G31*F31 -> 0 | J31: 0 | K31: 0 | L31: 0
A32: Distribution Volumetric Rate | B32: 10000 | D32: 0 | E32: =B32 -> 10000 | G32: 0 | H32: 0 | I32: 0 | J32: 0 | K32: 0 | L32: 0
A33: Low Voltage Volumetric Rate | B33: 10000 | D33: 0 | G33: 0 | H33: 0 | J33: 0 | K33: 0 | L33: 0
A34: Distribution Volumetric Rate Rider(s) | B34: 10000 | C34: 0 | D34: 0 | F34: 1.2025 | G34: 0 | H34: 0 | J34: 0 | K34: =G34/G48 -> 0 | L34: =G34/G54 -> 0
A35: Total: Distribution | D35: =ROUND(SUM(D30:D34),2) -> 0 | G35: =ROUND(SUM(G30:G34),2) -> 0 | J35: 0 | K35: =G35/G48 -> 0 | L35: =G35/G54 -> 0
A36: Total: Retail Transmission
A37: Sub-Total: Delivery (Distribution and Retail Transmission) | D37: =SUM(D36,D35) -> 0 | G37: =SUM(G36,G35) -> 0 | J37: 0 | K37: =G37/G48 -> 0 | L37: =G37/G54 -> 0
A38: Wholesale Market Service Rate | B38: 3650000 | C38: 0 | D38: =B38*C38 -> 0 | F38: =C38 -> 0 | G38: =E38*F38 -> 0 | J38: 0 | K38: 0 | L38: 0
A39: Rural Rate Protection Charge | B39: 3650000 | C39: 0 | D39: =B39*C39 -> 0 | E39: 3650000 | F39: 0 | G39: =E39*F39 -> 0 | I39: =G39-D39 -> 0 | J39: 0 | K39: 0 | L39: 0
A40: Standard Supply Service – Administration Charge (if applicable) | B40: 1 | C40: 0 | D40: 0 | E40: 1 | F40: 0 | G40: =E40*F40 -> 0 | I40: 0 | J40: 0 | K40: 0 | L40: 0
A41: Sub-Total: Regulatory | D41: =SUM(D38:D40) -> 0 | G41: =SUM(G38:H40) -> 0 | I41: =G41-D41 -> 0 | J41: 0 | K41: 0 | L41: 0
A42: Debt Retirement Charge (DRC) | B42: 3650000 | C42: 0.007 | D42: 25550 | E42: =B42 -> 3650000 | F42: =C42 -> 0.007 | G42: =E42*F42 -> 25550 | I42: 0 | J42: =I42/D42 -> 0 | K42: =G42/G48 -> 0.08069673339 | L42: =G42/G54 -> 0.07567506422
A44: Total Bill on RPP (before taxes) | D44: 299300 | G44: 311325 | I44: =G44-D44 -> 12025 | J44: =I44/D44 -> 0.04017707985 | K44: =G44/G48 -> 0.9832841691
A45: HST | C45: 0.13 | D45: =C45*D44 -> 38909 | F45: =C45 -> 0.13 | G45: =F45*G44 -> 40472.25 | I45: =G45-D45 -> 1563.25 | J45: =I45/D45 -> 0.04017707985 | K45: =G45/G48 -> 0.127826942
A46: Total Bill (including HST) | D46: =D45+D44 -> 338209 | G46: =G45+G44 -> 351797.25 | I46: =G46-D46 -> 13588.25 | J46: =I46/D46 -> 0.04017707985 | K46: =G46/G48 -> 1.111111111
A47: Ontario Clean Energy Benefit (OCEB) | C47: -0.1 | D47: =-0.1*D46 -> -33820.9 | F47: =C47 -> -0.1 | G47: =-0.1*G46 -> -35179.725 | I47: =G47-D47 -> -1358.825 | J47: =I47/D47 -> 0.04017707985 | K47: =G47/G48 -> -0.1111111111
A48: Total Bill on RPP (including OCEB) | D48: =D46+D47 -> 304388.1 | G48: =G46+G47 -> 316617.525 | I48: =G48-D48 -> 12229.425 | J48: =I48/D48 -> 0.04017707985 | K48: =G48/G48 -> 1
A50: Total Bill on TOU (before taxes) | D50: 319959 | G50: 331984 | I50: =G50-D50 -> 12025 | J50: =I50/D50 -> 0.03758294031 | L50: =G50/G54 -> 0.9832841691
A51: HST | C51: 0.13 | D51: =C51*D50 -> 41594.67 | F51: =C51 -> 0.13 | G51: =F51*G50 -> 43157.92 | I51: =G51-D51 -> 1563.25 | J51: =I51/D51 -> 0.03758294031 | L51: =G51/G54 -> 0.127826942
A52: Total Bill (including HST) | D52: =D51+D50 -> 361553.67 | G52: =G51+G50 -> 375141.92 | I52: =G52-D52 -> 13588.25 | J52: =I52/D52 -> 0.03758294031 | L52: =G52/G54 -> 1.111111111
A53: Ontario Clean Energy Benefit (OCEB) | C53: -0.1 | D53: =-0.1*D52 -> -36155.367 | F53: =C53 -> -0.1 | G53: =-0.1*G52 -> -37514.192 | I53: =G53-D53 -> -1358.825 | J53: =I53/D53 -> 0.03758294031 | L53: =G53/G54 -> -0.1111111111
A54: Total Bill on TOU (including OCEB) | D54: =D52+D53 -> 325398.303 | G54: =G52+G53 -> 337627.728 | I54: =G54-D54 -> 12229.425 | J54: =I54/D54 -> 0.03758294031 | L54: =G54/G54 -> 1
A57: Applicants must provide bill impacts for residential at 800 kWh and GS<50kW at 2000 kWh. In addition, their filing should cover the range that is relevant to their service territory, class by class. A general guideline of consumption levels follows: Residential (kWh) - 100, 250, 500, 800, 1000, 1500, 2000 GS<50kW (kWh) - 1000, 2000, 5000, 10000, 15000 GS>50kW (kW) 100, 500, 1000 Large User - range appropriate for utility Street/Sentinel Lighting Classes and USL - 150 kWh and 1 kW, range appropriate for utility.

Sheet 14. Bill Impacts1
S1: 1 | Z1: =MATCH(C14, '3. Rate Class Selection'!B19:B40,0) -> 4 | AA1: =VLOOKUP(C14, lists!AO:AP,2,0) -> kWh
A14: Rate Class | C14: UNMETERED SCATTERED LOAD
A16: Loss Factor | E16: 1.056
A18: Consumption | C18: kWh | E18: 250
A20: If Billed on a kW basis:
A21: Demand | C21: kW
A22: Load Factor
E23: =IF(AND(ISNUMBER(E21), ISBLANK(E22)), "Please enter a load factor", "") -> 
E25: Current Board-Approved | I25: Proposed | M25: Impact
E26: Rate | F26: Volume | G26: Charge | I26: Rate | J26: Volume | K26: Charge | M26: $ Change | N26: % Change
E27: ($) | G27: ($) | I27: ($) | K27: ($)
A28: Monthly Service Charge | E28: 19.26 | F28: 1 | G28: =F28*E28 -> 19.26 | I28: 19.45 | J28: 1 | K28: =J28*I28 -> 19.45 | M28: =K28-G28 -> 0.19 | N28: =IF((G28)=0,"",(M28/G28)) -> 0.009865005192
A29: Distribution Volumetric Rate | E29: 0.0135 | F29: 250 | G29: =F29*E29 -> 3.375 | I29: 0.0136 | J29: =F29 -> 250 | K29: =J29*I29 -> 3.4 | M29: =K29-G29 -> 0.025 | N29: =IF((G29)=0,"",(M29/G29)) -> 0.007407407407
A30: Fixed Rate Riders | E30: 0 | F30: 1 | G30: =F30*E30 -> 0 | I30: 0 | J30: 1 | K30: =J30*I30 -> 0 | M30: =K30-G30 -> 0 | N30: =IF((G30)=0,"",(M30/G30)) -> 
A31: Volumetric Rate Riders | E31: -0.0001 | F31: 250 | G31: -0.025 | I31: -0.0002 | J31: =F31 -> 250 | K31: -0.05 | M31: -0.025 | N31: 1
A32: Sub-Total A (excluding pass through) | G32: =SUM(G28:G31) -> 22.61 | K32: =SUM(K28:K31) -> 22.8 | M32: 0.19 | N32: 0.008403361345
A33: Line Losses on Cost of Power | E33: =E45*0.64+E46*0.18+E47*0.18 -> 0.08392 | F33: =E18*(E16-1) -> 14 | G33: =E33*F33 -> 1.17488 | I33: =I45*0.64+I46*0.18+I47*0.18 -> 0.08392 | J33: =F33 -> 14 | K33: =I33*J33 -> 1.17488 | M33: 0 | N33: 0
A34: Total Deferral/Variance Account Rate Riders | E34: -0.0086 | F34: 250 | G34: =F34*E34 -> -2.15 | I34: -0.0028 | J34: =F34 -> 250 | K34: =J34*I34 -> -0.7 | M34: =K34-G34 -> 1.45 | N34: =IF((G34)=0,"",(M34/G34)) -> -0.6744186047
A35: Low Voltage Service Charge | E35: 0.0004 | F35: 250 | G35: =F35*E35 -> 0.1 | I35: 0.0004 | J35: =F35 -> 250 | K35: =J35*I35 -> 0.1 | M35: =K35-G35 -> 0 | N35: =IF((G35)=0,"",(M35/G35)) -> 0
A36: Smart Meter Entity Charge | F36: 1 | G36: =F36*E36 -> 0 | J36: =F36 -> 1 | K36: =J36*I36 -> 0 | M36: =K36-G36 -> 0 | N36: =IF((G36)=0,"",(M36/G36)) -> 
A37: Sub-Total B - Distribution (includes Sub-Total A) | G37: =SUM(G34:G36)+G32 -> 20.56 | K37: =SUM(K34:K36)+K32 -> 22.2 | M37: =K37-G37 -> 1.64 | N37: =IF((G37)=0,"",(M37/G37)) -> 0.07976653696
A38: RTSR - Network | E38: 0.0062 | F38: 264 | G38: =F38*E38 -> 1.6368 | I38: 0.0063 | J38: =F38 -> 264 | K38: =J38*I38 -> 1.6632 | M38: 0.0264 | N38: 0.01612903226
A39: RTSR - Connection and/or Line and Transformation Connection | E39: 0.004 | F39: 264 | G39: =F39*E39 -> 1.056 | I39: 0.0042 | J39: =F39 -> 264 | K39: =J39*I39 -> 1.1088 | M39: 0.0528 | N39: 0.05
A40: Sub-Total C - Delivery (including Sub-Total B) | G40: =SUM(G37:G39) -> 23.2528 | K40: =SUM(K37:K39) -> 24.972 | M40: 1.7192 | N40: 0.073935182
A41: Wholesale Market Service Charge (WMSC) | E41: 0.0044 | F41: =E18*E16 -> 264 | G41: =F41*E41 -> 1.1616 | I41: 0.0044 | J41: =E18*E16 -> 264 | K41: =J41*I41 -> 1.1616 | M41: 0 | N41: 0
A42: Rural and Remote Rate Protection (RRRP) | E42: 0.0012 | F42: =E18*E16 -> 264 | G42: 0.3168 | I42: 0.0012 | J42: =E18*E16 -> 264 | K42: 0.3168 | M42: 0 | N42: 0
A43: Standard Supply Service Charge | E43: 0.25 | F43: 1 | G43: 0.25 | I43: 0.25 | J43: 1 | K43: 0.25 | M43: 0 | N43: 0
A44: Debt Retirement Charge (DRC) | E44: 0.007 | F44: =E18 -> 250 | G44: 1.75 | I44: 0.007 | J44: =E18 -> 250 | K44: 1.75 | M44: 0 | N44: 0
A45: TOU - Off Peak | E45: 0.067 | F45: 160 | G45: 10.72 | I45: 0.067 | J45: =F45 -> 160 | K45: 10.72 | M45: 0 | N45: 0
A46: TOU - Mid Peak | E46: 0.104 | F46: 45 | G46: 4.68 | I46: 0.104 | J46: 45 | K46: 4.68 | M46: 0 | N46: 0
A47: TOU - On Peak | E47: 0.124 | F47: 45 | G47: 5.58 | I47: 0.124 | J47: =F47 -> 45 | K47: 5.58 | M47: 0 | N47: 0
A49: Total Bill on TOU (before Taxes) | G49: =SUM(G40:G44,G45:G47) -> 47.7112 | K49: =SUM(K40:K44,K45:K47) -> 49.4304 | M49: =K49-G49 -> 1.7192 | N49: =IF((G49)=0,"",(M49/G49)) -> 0.03603346803
A50: HST | E50: 0.13 | G50: =G49*E50 -> 6.202456 | I50: 0.13 | K50: =K49*I50 -> 6.425952 | M50: 0.223496 | N50: 0.03603346803
A51: Total Bill (including HST) | G51: =G49+G50 -> 53.913656 | K51: =K49+K50 -> 55.856352 | M51: 1.942696 | N51: 0.03603346803
A52: Ontario Clean Energy Benefit 1 | G52: =ROUND(-G51*10%,2) -> -5.39 | K52: =ROUND(-K51*10%,2) -> -5.59 | M52: -0.2 | N52: 0.03710575139
A53: Total Bill on TOU (including OCEB) | G53: =G51+G52 -> 48.523656 | K53: =K51+K52 -> 50.266352 | M53: 1.742696 | N53: 0.03591435897
A58: Note: For distributors who have a majority of customers on Tiered pricing, please provide a separate bill impact for such customers.

Sheet lists (hidden)
A1: DISTRIBUTED GENERATION [DGEN] | B1: Embedded Distributor | C1: =COUNTA(B1:B17) -> 4 | I1: Distribution Volumetric Rate | L1: Loss Factors | N1: Units | O1: Units1 | P1: Units2 | Z1: Account History | AA1: Account set up charge/change of occupancy charge (plus credit agency costs if applicable) | AB1: Total Loss Factor – Embedded Distributor – Hydro One Networks Inc. | AL1: Algoma Power Inc. | AM1: Algoma Power Inc. | AO1: DISTRIBUTED GENERATION [DGEN] | AP1: kW | AT1: Sub-Total: Delivery (Distribution and Retail Transmission)
A2: EMBEDDED DISTRIBUTOR | B2: General Service 3,000 to 4,999 kW | I2: Distribution Volumetric Rate - $/kW of contracted amount | L2: Total Loss Factor – Primary Metered Customer | N2: $ | O2: $/kWh | P2: $ | Z2: Account set up charge/change of occupancy charge | AA2: Administrative Billing Charge | AB2: Total Loss Factor – Primary Metered Customer | AL2: Atikokan Hydro Inc. | AM2: Atikokan Hydro Inc. | AO2: EMBEDDED DISTRIBUTOR | AP2: kW | AT2: Wholesale Market Service Rate | AW2: =AU2*AV2 -> 0 | AX2: =AU2 -> 0 | AY2: 0 | AZ2: =AX2*AY2 -> 0 | BB2: =AZ2-AW2 -> 0 | BC2: =BB2/AW2 -> 
A3: EMBEDDED DISTRIBUTOR | B3: General Service 1,000 to 4,999 kW | I3: Distribution Wheeling Service Rate | L3: Total Loss Factor – Primary Metered Customer < 5,000 kW | N3: $/kWh | O3: $/kW | P3: % | W3: MSC | Z3: Account set up charge/change of occupancy charge (plus credit agency costs if applicable – Residential) | AA3: Bell Canada Pole Rentals | AB3: Total Loss Factor – Primary Metered Customer < 5,000 kW | AL3: Attawapiskat Power Corp. | AM3: Attawapiskat Power Corp. | AO3: EMBEDDED DISTRIBUTOR | AP3: kW | AT3: Rural Rate Protection Charge | AW3: =AU3*AV3 -> 0 | AX3: 0 | AY3: 0 | AZ3: =AX3*AY3 -> 0 | BB3: =AZ3-AW3 -> 0 | BC3: =BB3/AW3 -> 
A4: FARMS - SINGLE PHASE ENERGY-BILLED [F1] | B4: General Service Equal To Or Greater Than 1,500 kW - Interval Metered | I4: General Service 1,500 to 4,999 kW customer | L4: Total Loss Factor – Primary Metered Customer > 5,000 kW | N4: $/kW | O4: $/kVA | W4: SM_Rate_Adder | Z4: Account set up charge/change of occupancy charge (plus credit agency costs if applicable) | AA4: Clearance Pole Attachment charge $/pole/year | AB4: Total Loss Factor – Primary Metered Customer > 5,000 kW | AL4: Bluewater Power Distribution Corporation | AM4: Bluewater Power Distribution Corporation | AO4: FARMS - SINGLE PHASE ENERGY-BILLED [F1] | AP4: kWh | AT4: Standard Supply Service – Administration Charge (if applicable) | AW4: 0 | AX4: 0 | AY4: 0 | AZ4: =AX4*AY4 -> 0 | BB4: 0
A5: FARMS - THREE PHASE ENERGY-BILLED [F3] | I5: General Service 50 to 1,499 kW customer | L5: Total Loss Factor – Secondary Metered Customer | N5: $/kVA | W5: MSC_Rate_Rider_ | Z5: Arrears certificate | AA5: Collection of account charge – no disconnection | AB5: Total Loss Factor – Secondary Metered Customer | AL5: Brant County Power Inc. | AM5: Brant County Power Inc. | AO5: FARMS - THREE PHASE ENERGY-BILLED [F3] | AP5: kWh | AT5: Sub-Total: Regulatory | AW5: =SUM(AW2:AW4) -> 0 | AZ5: =SUM(AZ2:BA4) -> 0 | BB5: =AZ5-AW5 -> 0
A6: GENERAL SERVICE - COMMERCIAL | I6: General Service Large Use customer | L6: Total Loss Factor – Secondary Metered Customer < 5,000 kW | W6: VC | Z6: Arrears certificate (credit reference) | AA6: Collection of account charge – no disconnection – after regular hours | AB6: Total Loss Factor – Secondary Metered Customer < 5,000 kW | AL6: Brantford Power Inc. | AM6: Brantford Power Inc. | AO6: GENERAL SERVICE - COMMERCIAL | AP6: kW | AT6: Debt Retirement Charge (DRC) | AW6: 0 | AX6: =AU6 -> 0 | AY6: =AV6 -> 0 | AZ6: =AX6*AY6 -> 0 | BB6: 0
A7: GENERAL SERVICE - INSTITUTIONAL | I7: Green Energy Act Plan Funding Adder | AL7: Burlington Hydro Inc. | AM7: Burlington Hydro Inc. | AO7: GENERAL SERVICE - INSTITUTIONAL | AP7: kW
A8: GENERAL SERVICE 1,000 TO 2,999 KW | I8: Green Energy Act Plan Funding Adder - effective April 1, 2013 until March 31, 2014 | L8: Total Loss Factor – Secondary Metered Customer > 5,000 kW | W8: VC_Rate_Rider_ | Z8: Charge to certify cheque | AA8: Collection of account charge – no disconnection - during regular business hours | AB8: Total Loss Factor – Secondary Metered Customer > 5,000 kW | AL8: Cambridge and North Dumfries Hydro Inc. | AM8: Cambridge and North Dumfries Hydro Inc. | AO8: GENERAL SERVICE 1,000 TO 2,999 KW | AP8: kW | AT8: Total Bill on RPP (before taxes) | BB8: =AZ8-AW8 -> 0
A9: GENERAL SERVICE 1,000 TO 4,999 KW - INTERVAL METERS | I9: Green Energy Act Plan Funding Adder - effective until March 31, 2013 | L9: Distribution Loss Factor - Secondary Metered Customer < 5,000 kW | W9: VC_GA_Rate_Rider_kW_ | Z9: Collection of Account Charge – No Disconnection | AA9: Collection of account charge – no disconnection – during regular hours | AL9: Canadian Niagara Power Inc. | AM9: Canadian Niagara Power Inc. - Eastern Ontario Power | AO9: GENERAL SERVICE 1,000 TO 4,999 KW - INTERVAL METERS | AP9: kW | AT9: HST | AW9: =AV9*AW8 -> 0 | AY9: =AV9 -> 0 | AZ9: =AY9*AZ8 -> 0 | BB9: =AZ9-AW9 -> 0 | BC9: =BB9/AW9 -> 
A10: GENERAL SERVICE 1,000 TO 4,999 KW (CO-GENERATION) | I10: Low Voltage Service Charge | L10: Distribution Loss Factor - Secondary Metered Customer > 5,000 kW | W10: VC_LV_Rate | Z10: Credit Card Convenience Charge | AA10: Collection/Disconnection/Load Limiter/Reconnection – if in Community | AL10: Centre Wellington Hydro Ltd. | AM10: Canadian Niagara Power Inc. - Fort Erie | AO10: GENERAL SERVICE 1,000 TO 4,999 KW (CO-GENERATION) | AP10: kW | AT10: Total Bill (including HST) | AW10: =AW9+AW8 -> 0 | AZ10: =AZ9+AZ8 -> 0 | BB10: =AZ10-AW10 -> 0 | BC10: =BB10/AW10 -> 
A11: GENERAL SERVICE 1,000 TO 4,999 KW | I11: Low Voltage Service Rate | L11: Distribution Loss Factor - Primary Metered Customer < 5,000 kW | W11: RTSR_Network | Z11: Credit check (plus credit agency costs) | AA11: Credit Card Convenience Charge | AL11: Chapleau Public Utilities Corporation | AM11: Canadian Niagara Power Inc. - Port Colborne Hydro Inc. | AO11: GENERAL SERVICE 1,000 TO 4,999 KW | AP11: kW | AT11: Ontario Clean Energy Benefit (OCEB) | AW11: =-0.1*AW10 -> 0 | AY11: =AV11 -> 0 | AZ11: =-0.1*AZ10 -> 0 | BB11: =AZ11-AW11 -> 0 | BC11: =BB11/AW11 -> 
A12: GENERAL SERVICE 1,500 TO 4,999 KW | I12: Low Voltage Volumetric Rate | L12: Distribution Loss Factor - Primary Metered Customer > 5,000 kW | W12: RTSR_Connection | Z12: Credit reference Letter | AA12: Disconnect/Reconnect at meter – after regular hours | AL12: Clinton Power Corporation | AM12: Centre Wellington Hydro Ltd. | AO12: GENERAL SERVICE 1,500 TO 4,999 KW | AP12: kW | AT12: Total Bill on RPP (including OCEB) | AW12: =AW10+AW11 -> 0 | AZ12: =AZ10+AZ11 -> 0 | BB12: =AZ12-AW12 -> 0 | BC12: =BB12/AW12 -> 
A13: GENERAL SERVICE 2,500 TO 4,999 KW | I13: Mechanism (SSM) Recovery (2012) - effective until April 30, 2014 | AL13: COLLUS Power Corporation | AM13: Chapleau Public Utilities Corporation | AO13: GENERAL SERVICE 2,500 TO 4,999 KW | AP13: kW
A14: GENERAL SERVICE 3,000 TO 4,999 KW - INTERMEDIATE USE | I14: Minimum Distribution Charge - per KW of maximum billing demand in the previous 11 months | L14: Total Loss Factor - Embedded Distributor | W14: RTSR_Network_Interval | Z14: Credit reference/credit check (plus credit agency costs – General Service) | AA14: Disconnect/Reconnect at meter – during regular hours | AL14: Cooperative Hydro Embrun Inc. | AM14: Clinton Power Corporation | AO14: GENERAL SERVICE 3,000 TO 4,999 KW - INTERMEDIATE USE | AP14: kW | AT14: Total Bill on TOU (before taxes) | BB14: =AZ14-AW14 -> 0
A15: GENERAL SERVICE 3,000 TO 4,999 KW - INTERVAL METERED | I15: Monthly Distribution Wheeling Service Rate - Dedicated LV Line | L15: Total Loss Factor – Embedded Distributor – Hydro One Networks Inc. | W15: RTSR_Connection_Interval | Z15: Credit Reference/credit check (plus credit agency costs) | AA15: Disconnect/Reconnect at pole – after regular hours | AL15: E.L.K. Energy Inc. | AM15: COLLUS Power Corporation | AO15: GENERAL SERVICE 3,000 TO 4,999 KW - INTERVAL METERED | AP15: kW | AT15: HST | AW15: =AV15*AW14 -> 0 | AY15: =AV15 -> 0 | AZ15: =AY15*AZ14 -> 0 | BB15: =AZ15-AW15 -> 0 | BC15: =BB15/AW15 -> 
A16: GENERAL SERVICE 3,000 TO 4,999 KW - TIME OF USE | I16: Monthly Distribution Wheeling Service Rate - Hydro One Networks | W16: RTSR_Network_Interval_GR1000kW | Z16: Dispute Test – Commercial self contained -- MC | AA16: Disconnect/Reconnect at pole – during regular hours | AL16: Enersource Hydro Mississauga Inc. | AM16: Cooperative Hydro Embrun Inc. | AO16: GENERAL SERVICE 3,000 TO 4,999 KW - TIME OF USE | AP16: kW | AT16: Total Bill (including HST) | AW16: =AW15+AW14 -> 0 | AZ16: =AZ15+AZ14 -> 0 | BB16: =AZ16-AW16 -> 0 | BC16: =BB16/AW16 -> 
A17: GENERAL SERVICE 3,000 TO 4,999 KW | I17: Monthly Distribution Wheeling Service Rate - Shared LV Line | W17: RTSR_Connection_Interval_GR1000kW | Z17: Dispute Test – Commercial TT -- MC | AA17: Disconnect/Reconnect Charge – At Meter – After Hours | AL17: Entegrus Powerlines Inc. | AM17: E.L.K. Energy Inc. | AO17: GENERAL SERVICE 3,000 TO 4,999 KW | AP17: kW | AT17: Ontario Clean Energy Benefit (OCEB) | AW17: =-0.1*AW16 -> 0 | AY17: =AV17 -> 0 | AZ17: =-0.1*AZ16 -> 0 | BB17: =AZ17-AW17 -> 0 | BC17: =BB17/AW17 -> 
A18: GENERAL SERVICE 50 TO 1,000 KW - INTERVAL METERS | I18: Monthly Distribution Wheeling Service Rate - Waterloo North Hydro | W18: RTSR_Line_Connection | Z18: Dispute Test – Residential | AA18: Disconnect/Reconnect Charge – At Meter – During Regular Hours | AL18: ENWIN Utilities Ltd. | AM18: Enersource Hydro Mississauga Inc. | AO18: GENERAL SERVICE 50 TO 1,000 KW - INTERVAL METERS | AP18: kW | AT18: Total Bill on TOU (including OCEB) | AW18: =AW16+AW17 -> 0 | AZ18: =AZ16+AZ17 -> 0 | BB18: =AZ18-AW18 -> 0 | BC18: =BB18/AW18 -> 
A19: GENERAL SERVICE 50 TO 1,000 KW - NON INTERVAL METERS | I19: Rate Rider for Application of Tax Change - effective until April 30, 2014 | W19: RTSR_Transformer_Connection | Z19: Duplicate Invoices for previous billing | AA19: Disconnect/Reconnect Charge – At Pole – After Hours | AL19: Erie Thames Powerlines Corporation | AM19: Entegrus Powerlines Inc. - Chatham-Kent | AO19: GENERAL SERVICE 50 TO 1,000 KW - NON INTERVAL METERS | AP19: kW
A20: GENERAL SERVICE 50 TO 1,000 KW | I20: Rate Rider for Application of Tax Change - effective until December 31, 2013 | W20: WMSR | Z20: Easement Letter | AA20: Disconnect/Reconnect Charge – At Pole – During Regular Hours | AL20: Espanola Regional Hydro Distribution Corporation | AM20: Entegrus Powerlines Inc. - Dutton | AO20: GENERAL SERVICE 50 TO 1,000 KW | AP20: kW
A21: GENERAL SERVICE 50 TO 1,499 KW - INTERVAL METERED | I21: Rate Rider for Application of Tax Change - Hydro One Networks - effective until April 30, 2014 | W21: RRRP | Z21: Income Tax Letter | AA21: Disconnect/Reconnect Charges for non payment of account - At Meter After Hours | AL21: Essex Powerlines Corporation | AM21: Entegrus Powerlines Inc. - Newbury | AO21: GENERAL SERVICE 50 TO 1,499 KW - INTERVAL METERED | AP21: kW
A22: GENERAL SERVICE 50 TO 1,499 KW | I22: Rate Rider for Application of Tax Change - Waterloo North Hydro - effective until April 30, 2014 | W22: SPC | Z22: Interval Meter Interrogation | AA22: Disconnect/Reconnect charges for non payment of account – at meter after regular hours | AL22: Festival Hydro Inc. | AM22: Entegrus Powerlines Inc. - Strathroy, Mounth Brydges & Parkhill | AO22: GENERAL SERVICE 50 TO 1,499 KW | AP22: kW
A23: GENERAL SERVICE 50 TO 2,499 KW | I23: Rate Rider for Application of Tax Change (2013) - effective until April 30, 2014 | W23: DRC | Z23: Interval meter request change | AA23: Disconnect/Reconnect Charges for non payment of account - At Meter During Regular Hours | AL23: Fort Albany Power Corporation | AM23: ENWIN Utilities Ltd. | AO23: GENERAL SERVICE 50 TO 2,499 KW | AP23: kW
A24: GENERAL SERVICE 50 TO 2,999 KW - INTERVAL METERED | I24: Rate Rider for Application of Tax Change (per connection) - effective until April 30, 2014 | W24: SSS | Z24: Legal letter | AA24: Disconnect/Reconnect charges for non payment of account – at meter during regular hours | AL24: Fort Frances Power Corporation | AM24: Erie Thames Powerlines Corporation | AO24: GENERAL SERVICE 50 TO 2,999 KW - INTERVAL METERED | AP24: kW
A25: GENERAL SERVICE 50 TO 2,999 KW - TIME OF USE | I25: Rate Rider for Application of Tax Change Dedicated LV Line - effective until April 30, 2014 | W25: SFLF | Z25: Legal letter charge | AA25: Disconnect/Reconnect charges for non payment of account – at pole after regular hours | AL25: Greater Sudbury Hydro Inc. | AM25: Espanola Regional Hydro Distribution Corporation | AO25: GENERAL SERVICE 50 TO 2,999 KW - TIME OF USE | AP25: kW
A26: GENERAL SERVICE 50 TO 2,999 KW | B26: January | I26: Rate Rider for Application of Tax Change Shared LV Line - effective until April 30, 2014 | W26: DLF_Secondary_LT_5000kW | Z26: Meter dispute charge plus Measurement Canada fees (if meter found correct) | AA26: Disconnect/Reconnect charges for non payment of account – at pole during regular hours | AL26: Grimsby Power Inc. | AM26: Essex Powerlines Corporation | AO26: GENERAL SERVICE 50 TO 2,999 KW | AP26: kW
A27: GENERAL SERVICE 50 TO 4,999 KW - INTERVAL METERED | B27: February | I27: Rate Rider for Deferral/Variance Account (2012) - effective unitl April 30, 2016 | W27: DLF_Secondary_GT_5000kW | Z27: Notification charge | AA27: Disconnect/Reconnection for >300 volts - after regular hours | AL27: Guelph Hydro Electric Systems Inc. | AM27: Festival Hydro Inc. | AO27: GENERAL SERVICE 50 TO 4,999 KW - INTERVAL METERED | AP27: kW
A28: GENERAL SERVICE 50 TO 4,999 KW - TIME OF USE | B28: March | I28: Rate Rider for Deferral/Variance Account Disposition (2012) - effective until April 30, 2016 | W28: DLF_Primary_LT_5000kW | Z28: Pulling Post Dated Cheques | AA28: Disconnect/Reconnection for >300 volts - during regular hours | AL28: Haldimand County Hydro Inc. | AM28: Festival Hydro Inc. - Hensall | AO28: GENERAL SERVICE 50 TO 4,999 KW - TIME OF USE | AP28: kW
A29: GENERAL SERVICE 50 TO 4,999 KW (COGENERATION) | B29: April | I29: Rate Rider for Deferral/Variance Account Disposition (2013) - effective until April 30, 2014 | W29: DLF_Primary_GT_5000kW | Z29: Request for other billing information | AA29: Disposal of Concrete Poles | AL29: Halton Hills Hydro Inc. | AM29: Fort Albany Power Corporation | AO29: GENERAL SERVICE 50 TO 4,999 KW (COGENERATION) | AP29: kW
A30: GENERAL SERVICE 50 TO 4,999 KW (FORMERLY TIME OF USE) | B30: May | I30: Rate Rider for Deferral/Variance Account Dispositon (2012) - effective until April 30, 2016 | W30: TLF_Secondary_LT_5000kW | Z30: Returned cheque (plus bank charges) | AA30: Dispute Test – Commercial TT -- MC | AL30: Hearst Power Distribution Company Limited | AM30: Fort Frances Power Corporation | AO30: GENERAL SERVICE 50 TO 4,999 KW (FORMERLY TIME OF USE) | AP30: kW
A31: GENERAL SERVICE 50 TO 4,999 KW | B31: June | I31: Rate Rider for Disposition of Capital Gain - effective until April 30, 2014 | W31: TLF_Secondary_GT_5000kW | Z31: Returned cheque charge (plus bank charges) | AA31: Install/Remove load control device – after regular hours | AL31: Horizon Utilities Corporation | AM31: Greater Sudbury Hydro Inc. | AO31: GENERAL SERVICE 50 TO 4,999 KW | AP31: kW
A32: GENERAL SERVICE 50 TO 499 KW | B32: July | I32: Rate Rider for Disposition of Deferral/Variance Accounts - effective until August 31, 2013 | W32: TLF_Primary_LT_5000kW | Z32: Special Billing Service (aggregation) | AA32: Install/Remove load control device – during regular hours | AL32: Hydro 2000 Inc. | AM32: Grimsby Power Inc. | AO32: GENERAL SERVICE 50 TO 499 KW | AP32: kW
A33: GENERAL SERVICE 50 TO 699 KW | B33: August | I33: Rate Rider for Disposition of Deferral/Variance Accounts (2010) - effective until April 30, 2014 | W33: TLF_Primary_GT_5000kW | Z33: Special Billing Service (sub-metering charge per meter) | AA33: Interval Meter Interrogation | AL33: Hydro Hawkesbury Inc. | AM33: Guelph Hydro Electric Systems Inc. | AO33: GENERAL SERVICE 50 TO 699 KW | AP33: kW
A34: GENERAL SERVICE 50 TO 999 KW - INTERVAL METERED | B34: September | I34: Rate Rider for Disposition of Deferral/Variance Accounts (2010) - effective until December 31, 2014 | W34: TLF_EmbeddedDistributor | Z34: Special meter reads | AA34: Interval Meter Load Management Tool Charge $/month | AL34: Hydro One Brampton Networks Inc. | AM34: Haldimand County Hydro Inc. | AO34: GENERAL SERVICE 50 TO 999 KW - INTERVAL METERED | AP34: kW
A35: GENERAL SERVICE 50 TO 999 KW | B35: October | I35: Rate Rider for Disposition of Deferral/Variance Accounts (2011) - effective until April 30, 2014 | Z35: Statement of Account | AA35: Interval meter request change | AL35: Hydro One Networks Inc. | AM35: Halton Hills Hydro Inc. | AO35: GENERAL SERVICE 50 TO 999 KW | AP35: kW
A36: GENERAL SERVICE 500 TO 4,999 KW | B36: November | I36: Rate Rider for Disposition of Deferral/Variance Accounts (2011) - effective until April 30, 2015 | Z36: Unprocessed Payment Charge (plus bank charges) | AA36: Late Payment – per annum | AL36: Hydro Ottawa Limited | AM36: Hearst Power Distribution Company Limited | AO36: GENERAL SERVICE 500 TO 4,999 KW | AP36: kW
A37: GENERAL SERVICE 700 TO 4,999 KW | B37: December | I37: Rate Rider for Disposition of Deferral/Variance Accounts (2011) - effective until April 30, 2016 | AA37: Late Payment – per month | AL37: Innisfil Hydro Distribution Systems Limited | AM37: Horizon Utilities Corporation | AO37: GENERAL SERVICE 700 TO 4,999 KW | AP37: kW
A38: GENERAL SERVICE DEMAND BILLED (50 KW AND ABOVE) [GSD] | I38: Rate Rider for Disposition of Deferral/Variance Accounts (2012) - effective until April 30, 2014 | AA38: Layout fees | AL38: Kashechewan Power Corporation | AM38: Hydro 2000 Inc. | AO38: GENERAL SERVICE DEMAND BILLED (50 KW AND ABOVE) [GSD] | AP38: kW
A39: GENERAL SERVICE ENERGY BILLED (LESS THAN 50 KW) [GSE-METERED] | I39: Rate Rider for Disposition of Deferral/Variance Accounts (2012) - effective until April 30, 2015 | AA39: Meter dispute charge plus Measurement Canada fees (if meter found correct) | AL39: Kenora Hydro Electric Corporation Ltd. | AM39: Hydro Hawkesbury Inc. | AO39: GENERAL SERVICE ENERGY BILLED (LESS THAN 50 KW) [GSE-METERED] | AP39: kWh
A40: GENERAL SERVICE ENERGY BILLED (LESS THAN TO 50 KW) [GSE-UNMETERED] | I40: Rate Rider for Disposition of Deferral/Variance Accounts (2012) - effective until April 30, 2016 | AA40: Meter Interrogation Charge | AL40: Kingston Hydro Corporation | AM40: Hydro One Brampton Networks Inc. | AO40: GENERAL SERVICE ENERGY BILLED (LESS THAN TO 50 KW) [GSE-UNMETERED] | AP40: kWh
A41: GENERAL SERVICE EQUAL TO OR GREATER THAN 1,500 KW - INTERVAL METERED | I41: Rate Rider for Disposition of Deferral/Variance Accounts (2012) - effective until December 31, 2013 | AA41: Missed Service Appointment | AL41: Kitchener-Wilmot Hydro Inc. | AM41: Hydro One Networks Inc. | AO41: GENERAL SERVICE EQUAL TO OR GREATER THAN 1,500 KW - INTERVAL METERED | AP41: kW
A42: GENERAL SERVICE EQUAL TO OR GREATER THAN 1,500 KW | I42: Rate Rider for Disposition of Deferral/Variance Accounts (2012) - effective until December 31, 2013 Applicable in the service area excluding the former service area of Clinton Power | AA42: Norfolk Pole Rentals – Billed | AL42: Lakefront Utilities Inc. | AM42: Hydro Ottawa Limited | AO42: GENERAL SERVICE EQUAL TO OR GREATER THAN 1,500 KW | AP42: kW
A43: GENERAL SERVICE GREATER THAN 1,000 KW | I43: Rate Rider for Disposition of Deferral/Variance Accounts (2012) - effective until December 31, 2013 Applicable in the service area excluding the former service areas of Clinton Power and West Perth Power | AA43: Optional Interval/TOU Meter charge $/month | AL43: Lakeland Power Distribution Ltd. | AM43: Innisfil Hydro Distribution Systems Limited | AO43: GENERAL SERVICE GREATER THAN 1,000 KW | AP43: kW
A44: GENERAL SERVICE INTERMEDIATE 1,000 TO 4,999 KW | I44: Rate Rider for Disposition of Deferral/Variance Accounts (2012) - effective until December 31, 2013 Applicable only in the former service area of West Perth Power | AA44: Overtime Locate | AL44: London Hydro Inc. | AM44: Kashechewan Power Corporation | AO44: GENERAL SERVICE INTERMEDIATE 1,000 TO 4,999 KW | AP44: kW
A45: GENERAL SERVICE INTERMEDIATE RATE CLASS 1,000 TO 4,999 KW (FORMERLY GENERAL SERVICE > 50 KW CUSTOMERS) | I45: Rate Rider for Disposition of Deferral/Variance Accounts (2012) - effective until December 31, 2015 | AA45: Owner Requested Disconnection/Reconnection – after regular hours | AL45: Midland Power Utility Corporation | AM45: Kenora Hydro Electric Corporation Ltd. | AO45: GENERAL SERVICE INTERMEDIATE RATE CLASS 1,000 TO 4,999 KW (FORMERLY GENERAL SERVICE > 50 KW CUSTOMERS) | AP45: kW
A46: GENERAL SERVICE INTERMEDIATE RATE CLASS 1,000 TO 4,999 KW (FORMERLY LARGE USE CUSTOMERS) | I46: Rate Rider for Disposition of Deferral/Variance Accounts (2012) - effective until December 31, 2016 Applicable only in the former service area of Clinton Power | AA46: Owner Requested Disconnection/Reconnection – during regular hours | AL46: Milton Hydro Distribution inc. | AM46: Kingston Hydro Corporation | AO46: GENERAL SERVICE INTERMEDIATE RATE CLASS 1,000 TO 4,999 KW (FORMERLY LARGE USE CUSTOMERS) | AP46: kW
A47: GENERAL SERVICE LESS THAN 50 KW - SINGLE PHASE ENERGY-BILLED [G1] | I47: Rate Rider for Disposition of Deferral/Variance Accounts (2012) - effective until February 28, 2013 | AA47: Returned cheque (plus bank charges) | AL47: Newmarket - Tay Power Distribution Ltd. | AM47: Kitchener-Wilmot Hydro Inc. | AO47: GENERAL SERVICE LESS THAN 50 KW - SINGLE PHASE ENERGY-BILLED [G1] | AP47: kWh
A48: GENERAL SERVICE LESS THAN 50 KW - THREE PHASE ENERGY-BILLED [G3] | I48: Rate Rider for Disposition of Deferral/Variance Accounts (2012) - effective until June 30, 2014 | AA48: Rural system expansion / line connection fee | AL48: Niagara Peninsula Energy Inc. | AM48: Lakefront Utilities Inc. | AO48: GENERAL SERVICE LESS THAN 50 KW - THREE PHASE ENERGY-BILLED [G3] | AP48: kWh
A49: GENERAL SERVICE LESS THAN 50 KW - TRANSMISSION CLASS ENERGY-BILLED [T] | I49: Rate Rider for Disposition of Deferral/Variance Accounts (2012) - effective until March 31, 2013 | AA49: Same Day Open Trench | AL49: Niagara-on-the-Lake Hydro Inc. | AM49: Lakeland Power Distribution Ltd. | AO49: GENERAL SERVICE LESS THAN 50 KW - TRANSMISSION CLASS ENERGY-BILLED [T] | AP49: kWh
A50: GENERAL SERVICE LESS THAN 50 KW - URBAN ENERGY-BILLED [UG] | I50: Rate Rider for Disposition of Deferral/Variance Accounts (2012) - effective until October 31, 2013 | AA50: Scheduled Day Open Trench | AL50: Norfolk Power Distribution Inc. | AM50: London Hydro Inc. | AO50: GENERAL SERVICE LESS THAN 50 KW - URBAN ENERGY-BILLED [UG] | AP50: kWh
A51: GENERAL SERVICE LESS THAN 50 KW | I51: Rate Rider for Disposition of Deferral/Variance Accounts (2013) - effective until April 30, 2014 | AA51: Service call – after regular hours | AL51: North Bay Hydro Distribution Limited | AM51: Midland Power Utility Corporation | AO51: GENERAL SERVICE LESS THAN 50 KW | AP51: kWh
A52: GENERAL SERVICE SINGLE PHASE - G1 | I52: Rate Rider for Disposition of Deferral/Variance Accounts (2013) - effective until April 30, 2015 | AA52: Service call – customer owned equipment | AL52: Northern Ontario Wires Inc. | AM52: Milton Hydro Distribution inc. | AO52: GENERAL SERVICE SINGLE PHASE - G1 | AP52: kW
A53: GENERAL SERVICE THREE PHASE - G3 | I53: Rate Rider for Disposition of Deferral/Variance Accounts (2013) - effective until April 30, 2017 | AA53: Service Call – Customer-owned Equipment – After Regular Hours | AL53: Oakville Hydro Electricity Distribution Inc. | AM53: Newmarket - Tay Power Distribution Ltd. - Newmarket | AO53: GENERAL SERVICE THREE PHASE - G3 | AP53: kW
A54: INTERMEDIATE USERS | I54: Rate Rider for Disposition of Deferral/Variance Accounts (2013) - effective until December 31, 2013 | AA54: Service Call – Customer-owned Equipment – During Regular Hours | AL54: Orangeville Hydro Limited | AM54: Newmarket - Tay Power Distribution Ltd. - Tay | AO54: INTERMEDIATE USERS | AP54: kW
A55: INTERMEDIATE WITH SELF GENERATION | I55: Rate Rider for Disposition of Deferred PILs Variance Account 1562 - effective until April 30, 2014 | AA55: Service Charge for onsite interrogation of interval meter due to customer phone line failure - required weekly until line repaired $ 6 | AL55: Orillia Power Distribution Corporation | AM55: Niagara Peninsula Energy Inc. - Niagara Falls | AO55: INTERMEDIATE WITH SELF GENERATION | AP55: kW
A56: LARGE USE - 3TS | I56: Rate Rider for Disposition of Deferred PILs Variance Account 1562 - effective until December 31, 2013 | AA56: Service Layout - Commercial | AL56: Oshawa PUC Networks Inc. | AM56: Niagara Peninsula Energy Inc. - Peninsula West | AO56: LARGE USE - 3TS | AP56: kW
A57: LARGE USE - FORD ANNEX | I57: Rate Rider for Disposition of Deferred PILs Variance Account 1562 - effective until March 31, 2016 | AA57: Service Layout - ResidentiaI | AL57: Ottawa River Power Corporation | AM57: Niagara-on-the-Lake Hydro Inc. | AO57: LARGE USE - FORD ANNEX | AP57: kW
A58: LARGE USE - REGULAR | I58: Rate Rider for Disposition of Deferred PILs Variance Account 1562 - effective until November 30, 2013 | AA58: Special Billing Service (sub-metering charge per meter) | AL58: Parry Sound Power Corporation | AM58: Norfolk Power Distribution Inc. | AO58: LARGE USE - REGULAR | AP58: kW
A59: LARGE USE > 5000 KW | I59: Rate Rider for Disposition of Deferred PILs Variance Account 1562 - effective until October 31, 2013 | AA59: Special meter reads | AL59: Peterborough Distribution Incorporated | AM59: North Bay Hydro Distribution Limited | AO59: LARGE USE > 5000 KW | AP59: kW
A60: LARGE USE | I60: Rate Rider for Disposition of Deferred PILs Variance Account 1562 (2012) - effective until April 30, 2015 | AA60: Specific Charge for Access to the Power Poles - $/pole/year | AL60: PowerStream Inc. | AM60: Northern Ontario Wires Inc. | AO60: LARGE USE | AP60: kW
A61: microFIT | I61: Rate Rider for Disposition of Deferred PILs Variance Account 1562 (per connection) (2012) - effective until April 30, 2015 | AA61: Specific Charge for Bell Canada Access to the Power Poles – per pole/year | AL61: PUC Distribution Inc. | AM61: Oakville Hydro Electricity Distribution Inc. | AO61: microFIT | AP61: $
A62: RESIDENTIAL - HENSALL | I62: Rate Rider for Disposition of Global Adjustment Sub-Account - effective until November 30, 2013 Applicable only for Non-RPP Customers | AA62: Switching for company maintenance – Charge based on Time and Materials | AL62: Renfrew Hydro Inc. | AM62: Orangeville Hydro Limited | AO62: RESIDENTIAL - HENSALL | AP62: kWh
A63: RESIDENTIAL - HIGH DENSITY [R1] | I63: Rate Rider for Disposition of Global Adjustment Sub-Account - effective until November 30, 2013 Applicable only for Non-RPP Customers | AA63: Temporary Service – Install & remove – overhead – no transformer | AL63: Rideau St. Lawrence Distribution Inc. | AM63: Orillia Power Distribution Corporation | AO63: RESIDENTIAL - HIGH DENSITY [R1] | AP63: kWh
A64: RESIDENTIAL - LOW DENSITY [R2] | I64: Rate Rider for Disposition of Global Adjustment Sub-Account (2010) - effective until April 30, 2014 Applicable only for Non-RPP Customers | AA64: Temporary Service – Install & remove – overhead – with transformer | AL64: Sioux Lookout Hydro Inc. | AM64: Oshawa PUC Networks Inc. | AO64: RESIDENTIAL - LOW DENSITY [R2] | AP64: kWh
A65: RESIDENTIAL - MEDIUM DENSITY [R1] | I65: Rate Rider for Disposition of Global Adjustment Sub-Account (2011) - effective until April 30, 2014 Applicable only for Non-RPP Customers | AA65: Temporary Service – Install & remove – underground – no transformer | AL65: St. Thomas Energy Inc. | AM65: Ottawa River Power Corporation | AO65: RESIDENTIAL - MEDIUM DENSITY [R1] | AP65: kWh
A66: RESIDENTIAL - NORMAL DENSITY [R2] | I66: Rate Rider for Disposition of Global Adjustment Sub-Account (2011) - effective until April 30, 2015 Applicable only for Non-RPP Customers | AA66: Temporary service install & remove – overhead – no transformer | AL66: Thunder Bay Hydro Electricity Distribution Inc. | AM66: Parry Sound Power Corporation | AO66: RESIDENTIAL - NORMAL DENSITY [R2] | AP66: kWh
A67: RESIDENTIAL - TIME OF USE | I67: Rate Rider for Disposition of Global Adjustment Sub-Account (2011) - effective until April 30, 2016 Applicable only for Non-RPP Customers | AA67: Temporary Service Install & Remove – Overhead – With Transformer | AL67: Tillsonburg Hydro Inc. | AM67: Peterborough Distribution Incorporated | AO67: RESIDENTIAL - TIME OF USE | AP67: kWh
A68: RESIDENTIAL - URBAN [UR] | I68: Rate Rider for Disposition of Global Adjustment Sub-Account (2012) - effective until April 30, 2014 Applicable only for Non-RPP Customers | AA68: Temporary Service Install & Remove – Underground – No Transformer | AL68: Toronto Hydro-Electric System Limited | AM68: PowerStream Inc. - Barrie | AO68: RESIDENTIAL - URBAN [UR] | AP68: kWh
A69: RESIDENTIAL REGULAR | I69: Rate Rider for Disposition of Global Adjustment Sub-Account (2012) - effective until April 30, 2015 Applicable only for Non-RPP Customers | AA69: Temporary service installation and removal – overhead – no transformer | AL69: Veridian Connections Inc. | AM69: PowerStream Inc. - South | AO69: RESIDENTIAL REGULAR | AP69: kWh
A70: RESIDENTIAL | I70: Rate Rider for Disposition of Global Adjustment Sub-Account (2012) - effective until April 30, 2015 Applicatble only for Non-RPP Customers | AA70: Temporary service installation and removal – overhead – with transformer | AL70: Wasaga Distribution Inc. | AM70: PUC Distribution Inc. | AO70: RESIDENTIAL | AP70: kWh
A71: RESIDENTIAL SUBURBAN SEASONAL | I71: Rate Rider for Disposition of Global Adjustment Sub-Account (2012) - effective until April 30, 2016 Applicable only for Non-RPP Customers | AA71: Temporary service installation and removal – underground – no transformer | AL71: Waterloo North Hydro Inc. | AM71: Renfrew Hydro Inc. | AO71: RESIDENTIAL SUBURBAN SEASONAL | AP71: kWh
A72: RESIDENTIAL SUBURBAN | I72: Rate Rider for Disposition of Global Adjustment Sub-Account (2012) - effective until December 31, 2013 Applicable only for Non-RPP Customers | AL72: Welland Hydro-Electric System Corp. | AM72: Rideau St. Lawrence Distribution Inc. | AO72: RESIDENTIAL SUBURBAN | AP72: kWh
A73: RESIDENTIAL SUBURBAN YEAR ROUND | I73: Rate Rider for Disposition of Global Adjustment Sub-Account (2012) - effective until December 31, 2013 Applicable only for Non-RPP Customers in the former service area of Clinton Power | AL73: Wellington North Power Inc. | AM73: Sioux Lookout Hydro Inc. | AO73: RESIDENTIAL SUBURBAN YEAR ROUND | AP73: kWh
A74: RESIDENTIAL URBAN | I74: Rate Rider for Disposition of Global Adjustment Sub-Account (2012) - effective until December 31, 2013 Applicable only for Non-RPP Customers in the former service area of West Perth Power | AL74: West Coast Huron Energy Inc. | AM74: St. Thomas Energy Inc. | AO74: RESIDENTIAL URBAN | AP74: kWh
A75: RESIDENTIAL URBAN YEAR-ROUND | I75: Rate Rider for Disposition of Global Adjustment Sub-Account (2012) - effective until December 31, 2013 Applicable only for Non-RPP Customers in the service area excluding the former service areas of Clinton Power and West Perth Power | AL75: West Perth Power Inc. | AM75: Thunder Bay Hydro Electricity Distribution Inc. | AO75: RESIDENTIAL URBAN YEAR-ROUND | AP75: kWh
A76: SEASONAL RESIDENTIAL - HIGH DENSITY [R3] | I76: Rate Rider for Disposition of Global Adjustment Sub-Account (2012) - effective until February 28, 2013 Applicable only for Non-RPP Customers | AL76: Westario Power Inc. | AM76: Tillsonburg Hydro Inc. | AO76: SEASONAL RESIDENTIAL - HIGH DENSITY [R3] | AP76: kWh
A77: SEASONAL RESIDENTIAL - NORMAL DENSITY [R4] | I77: Rate Rider for Disposition of Global Adjustment Sub-Account (2012) - effective until June 30, 2014 Applicable only for Non-RPP Customers | AL77: Whitby Hydro Electric Corporation | AM77: Toronto Hydro-Electric System Limited | AO77: SEASONAL RESIDENTIAL - NORMAL DENSITY [R4] | AP77: kWh
A78: SEASONAL RESIDENTIAL | I78: Rate Rider for Disposition of Global Adjustment Sub-Account (2012) - effective until March 31, 2013 Applicable only for Non-RPP Customers | AL78: Woodstock Hydro Services Inc. | AM78: Veridian Connections Inc. | AO78: SEASONAL RESIDENTIAL | AP78: kWh
A79: SENTINEL LIGHTING | I79: Rate Rider for Disposition of Global Adjustment Sub-Account (2012) - effective until October 31, 2013 Applicable only for Non-RPP Customers | AM79: Veridian Connections Inc. - Gravenhurst | AO79: SENTINEL LIGHTING | AP79: kW
A80: SMALL COMMERCIAL AND USL - PER CONNECTION | I80: Rate Rider for Disposition of Global Adjustment Sub-Account (2013) - effective until April 30, 2014 Applicable only for Non-RPP Customers | AM80: Wasaga Distribution Inc. | AO80: SMALL COMMERCIAL AND USL - PER CONNECTION | AP80: kW
A81: SMALL COMMERCIAL AND USL - PER METER | I81: Rate Rider for Disposition of Global Adjustment Sub-Account (2013) - effective until April 30, 2015 Applicable only for Non-RPP Customers | AM81: Waterloo North Hydro Inc. | AO81: SMALL COMMERCIAL AND USL - PER METER | AP81: kW
A82: STANDARD A GENERAL SERVICE AIR ACCESS | I82: Rate Rider for Disposition of Global Adjustment Sub-Account (2013) - effective until April 30, 2017 Applicable only for Non-RPP Customers | AM82: Welland Hydro-Electric System Corp. | AO82: STANDARD A GENERAL SERVICE AIR ACCESS | AP82: kW
A83: STANDARD A GENERAL SERVICE ROAD/RAIL | I83: Rate Rider for Disposition of Global Adjustment Sub-Account (2013) - effective until December 31, 2013 Applicable only for Non-RPP Customers | AM83: Wellington North Power Inc. | AO83: STANDARD A GENERAL SERVICE ROAD/RAIL | AP83: kW
A84: STANDARD A RESIDENTIAL AIR ACCESS | I84: Rate Rider for Disposition of Post Retirement Actuarial Gain - effective until March 31, 2025 | AM84: West Coast Huron Energy Inc. | AO84: STANDARD A RESIDENTIAL AIR ACCESS | AP84: kW
A85: STANDARD A RESIDENTIAL ROAD/RAIL | I85: Rate Rider for Disposition of Residual Hisotrical Smart Meter Costs - effective until April 30, 2015 | AM85: West Perth Power Inc. | AO85: STANDARD A RESIDENTIAL ROAD/RAIL | AP85: kW
A86: STANDBY - GENERAL SERVICE 1,000 - 5,000 KW | I86: Rate Rider for Disposition of Residual Historical Smart Meter Costs - effective until April 30, 2013 | AM86: Westario Power Inc. | AO86: STANDBY - GENERAL SERVICE 1,000 - 5,000 KW | AP86: kW
A87: STANDBY - GENERAL SERVICE 50 - 1,000 KW | I87: Rate Rider for Disposition of Residual Historical Smart Meter Costs - effective until April 30, 2014 | AM87: Whitby Hydro Electric Corporation | AO87: STANDBY - GENERAL SERVICE 50 - 1,000 KW | AP87: kW
A88: STANDBY - LARGE USE | I88: Rate Rider for Disposition of Residual Historical Smart Meter Costs - effective until April 30, 2016 | AM88: Woodstock Hydro Services Inc. | AO88: STANDBY - LARGE USE | AP88: kW
A89: STANDBY DISTRIBUTION SERVICE | I89: Rate Rider for Disposition of Residual Historical Smart Meter Costs - effective until August 31, 2013 | AO89: STANDBY DISTRIBUTION SERVICE | AP89: kW
A90: STANDBY POWER - APPROVED ON AN INTERIM BASIS | I90: Rate Rider for Disposition of Residual Historical Smart Meter Costs - effective until August 31, 2015 | AO90: STANDBY POWER - APPROVED ON AN INTERIM BASIS | AP90: kW
A91: STANDBY POWER GENERAL SERVICE 1,500 TO 4,999 KW | I91: Rate Rider for Disposition of Residual Historical Smart Meter Costs - effective until December 31, 2013 | AO91: STANDBY POWER GENERAL SERVICE 1,500 TO 4,999 KW | AP91: kW
A92: STANDBY POWER GENERAL SERVICE 50 TO 1,499 KW | I92: Rate Rider for Disposition of Residual Historical Smart Meter Costs - effective until December 31, 2014 | AO92: STANDBY POWER GENERAL SERVICE 50 TO 1,499 KW | AP92: kW
A93: STANDBY POWER GENERAL SERVICE LARGE USE | I93: Rate Rider for Disposition of Residual Historical Smart Meter Costs - effective until December 31, 2015 | AO93: STANDBY POWER GENERAL SERVICE LARGE USE | AP93: kW
A94: STANDBY POWER | I94: Rate Rider for Disposition of Residual Historical Smart Meter Costs - effective until March 31, 2013 | AO94: STANDBY POWER | AP94: kW
A95: STREET LIGHTING | I95: Rate Rider for Disposition of Residual Historical Smart Meter Costs - effective until November 30, 2013 | AO95: STREET LIGHTING | AP95: kW
A96: SUB TRANSMISSION [ST] | I96: Rate Rider for Disposition of Residual Historical Smart Meter Costs - effective until October 31, 2013 | AO96: SUB TRANSMISSION [ST] | AP96: kW
A97: UNMETERED SCATTERED LOAD | I97: Rate Rider for Disposition of Residual Historical Smart Meter Costs - effective until September 30, 2014 | AO97: UNMETERED SCATTERED LOAD | AP97: kWh
A98: URBAN GENERAL SERVICE DEMAND BILLED (50 KW AND ABOVE) [UGD] | I98: Rate Rider for Disposition of Residual Historical Smart Meter Costs - Non-Interval Metered - effective until April 30, 2014 | AO98: URBAN GENERAL SERVICE DEMAND BILLED (50 KW AND ABOVE) [UGD] | AP98: kW
A99: URBAN GENERAL SERVICE ENERGY BILLED (LESS THAN 50 KW) [UGE] | I99: Rate Rider for Disposition of Residual Historical Smart Meter Costs 2 - in effect until the effective date of the next cost of service-based rate order | AO99: URBAN GENERAL SERVICE ENERGY BILLED (LESS THAN 50 KW) [UGE] | AP99: kWh
A100: WESTPORT SEWAGE TREATMENT PLANT | I100: Rate Rider for Disposition of Residual Historical Smart Meter Costs 3 - in effect until the effective date of the next cost of service-based rate order | AO100: WESTPORT SEWAGE TREATMENT PLANT | AP100: kW
A101: YEAR-ROUND RESIDENTIAL - R2 | I101: Rate Rider for Disposition of Residual Incremental Historical Smart Meter Costs - effective until August 31, 2015 | AO101: YEAR-ROUND RESIDENTIAL - R2 | AP101: kWh
I102: Rate Rider for Disposition of Stranded Meter Costs - effective until April 30, 2016
I103: Rate Rider for Global Adjustment Sub Account Disposition - effective until April 30, 2016 Applicable only for Non RPP Customers
I104: Rate Rider for Incremental Capital (2012) - effective until April 30, 2015
I105: Rate Rider for Lost Revenue Adjustment (LRAM) Recovery/Shared Savings Mechanism Recovery (2011) - effective until April 30, 2014
I106: Rate Rider for Lost Revenue Adjustment Mechanism Variance Account (LRAMVA) (2011) – effective until April 30, 2014
I107: Rate Rider for Lost Revenue Adjustment Mechanism Variance Account (LRAMVA) Recovery (2011 CDM Activities) - effective until April 30, 2014
I108: Rate Rider for Recover of Residual Historical Smart Meter Costs - effective until June 30, 2014
I109: Rate Rider for Recovery of Deferred Revenue - effective until December 31, 2013
I110: Rate Rider for Recovery of Forgone Revenue - effective until April 30, 2014
I111: Rate Rider for Recovery of Green Energy Act related costs - effective until December 31, 2013
I112: Rate Rider for Recovery of Incremental Capital (2013) - in effect until the effective date of the next cost of service-based rate order
I113: Rate Rider for Recovery of Incremental Capital (2013) (per connection) - in effect until the effective date of the next cost of service-based rate order
I114: Rate Rider for Recovery of Incremental Capital Costs
I115: Rate Rider for Recovery of Incremental Capital Costs - effective until April 30, 2014
I116: Rate Rider for Recovery of Incremental Capital Costs - effective until April 30, 2015
I117: Rate Rider for Recovery of Lost Revenue Adjustment Mechanism (LRAM) - effective until April 30, 2014
I118: Rate Rider for Recovery of Lost Revenue Adjustment Mechanism (LRAM) - effective until April 30, 2016
I119: Rate Rider for Recovery of Lost Revenue Adjustment Mechanism (LRAM) - effective until August 31, 2013
I120: Rate Rider for Recovery of Lost Revenue Adjustment Mechanism (LRAM) - effective until December 31, 2013
I121: Rate Rider for Recovery of Lost Revenue Adjustment Mechanism (LRAM) - effective until June 30, 2013
I122: Rate Rider for Recovery of Lost Revenue Adjustment Mechanism (LRAM) - effective until November 30, 2013
I123: Rate Rider for Recovery of Lost Revenue Adjustment Mechanism (LRAM) (2012) - effective until April 30, 2014
I124: Rate Rider for Recovery of Lost Revenue Adjustment Mechanism (LRAM) (2012) - effective until February 28, 2013
I125: Rate Rider for Recovery of Lost Revenue Adjustment Mechanism (LRAM) (2013) - effective until December 31, 2013
I126: Rate Rider for Recovery of Lost Revenue Adjustment Mechanism (LRAM) (pre-2011 CDM Activities) - effective until April 30, 2014
I127: Rate Rider for Recovery of Lost Revenue Adjustment Mechanism (LRAM)/Shared Savings
I128: Rate Rider for Recovery of Lost Revenue Adjustment Mechanism (LRAM)/Shared Savings Mechanism (SSM) - effective until April 30, 2014
I129: Rate Rider for Recovery of Lost Revenue Adjustment Mechanism (LRAM)/Shared Savings Mechanism (SSM) - effective until December 31, 2014 and applicable in the service area excluding the former service area of Clinton Power
I130: Rate Rider for Recovery of Lost Revenue Adjustment Mechanism (LRAM)/Shared Savings Mechanism (SSM) - effective until December 31, 2014 and applicable in the service area excluding the former service areas of Clinton Power and West Perth Power
I131: Rate Rider for Recovery of Lost Revenue Adjustment Mechanism (LRAM)/Shared Savings Mechanism (SSM) - effective until December 31, 2014 and applicable only in the former service area of Clinton Power
I132: Rate Rider for Recovery of Lost Revenue Adjustment Mechanism (LRAM)/Shared Savings Mechanism (SSM) - effective until December 31, 2014 and applicable only in the former service area of West Perth Power
I133: Rate Rider for Recovery of Lost Revenue Adjustment Mechanism (LRAM)/Shared Savings Mechanism (SSM) - effective until March 31, 2016
I134: Rate Rider for Recovery of Lost Revenue Adjustment Mechanism (LRAM)/Shared Savings Mechanism (SSM) Recovery - effective until April 30, 2014
I135: Rate Rider for Recovery of Lost Revenue Adjustment Mechanism (LRAM)/Shared Savings Mechanism (SSM) Recovery - effective until April 30, 2015
I136: Rate Rider for Recovery of Lost Revenue Adjustment Mechanism (LRAM)/Shared Savings Mechanism (SSM) Recovery (2010) - effective until April 30, 2014
I137: Rate Rider for Recovery of Lost Revenue Adjustment Mechanism (LRAM)/Shared Savings Mechanism (SSM) Recovery (2012) - effective until April 30, 2014
I138: Rate Rider for Recovery of Lost Revenue Adjustment Mechanism (LRAM)/Shared Savings Mechanism (SSM) Recovery (2012) - effective until October 31, 2013
I139: Rate Rider for Recovery of Residual Historical Smart Meter Costs - effective July 1, 2012 - April 30, 2016
I140: Rate Rider for Recovery of Smart Meter Incremental Revenue Requirement - effective until the date of the next cost of service-based rate order
I141: Rate Rider for Recovery of Smart Meter Incremental Revenue Requirement - in effect until the effective date of the next cost of service-based rate order
I142: Rate Rider for Recovery of Smart Meter Incremental Revenue Requirement - Non-Interval Metered - in effect until the effective date of the next cost of service-based rate order
I143: Rate Rider for Recovery of Smart Meter Incremental Revenue Requirements - in effect until the effective date of the next cost of service application
I144: Rate Rider for Recovery of Smart Meter Stranded Assets - effective until April 30, 2016
I145: Rate Rider for Recovery of Stranded Assets - effective until April 30, 2016
I146: Rate Rider for Recovery of Stranded Meter Assets - effective July 1, 2012 - April 30, 2016
I147: Rate Rider for Recovery of Stranded Meter Assets - effective until April 30, 2014
I148: Rate Rider for Recovery of Stranded Meter Assets – effective until April 30, 2015
I149: Rate Rider for Recovery of Stranded Meter Assets - effective until April 30, 2016
I150: Rate Rider for Recovery of Stranded Meter Assets - effective until August 31, 2013
I151: Rate Rider for Recovery of Stranded Meter Assets - effective until August 31, 2015
I152: Rate Rider for Recovery of Stranded Meter Assets - effective until December 31, 2014
I153: Rate Rider for Recovery of Stranded Meter Assets - effective until December 31, 2015
I154: Rate Rider for Recovery of Stranded Meter Assets - effective until June 30, 2016
I155: Rate Rider for Recovery of Stranded Meter Assets - effective until March 31, 2016
I156: Rate Rider for Recovery of Stranded Meter Assets - effective until November 30, 2013
I157: Rate Rider for Reversal of Deferral/Variance Account Disposition (2011) - effective until April 30, 2015
I158: Rate Rider for Smart Meter Disposition - effective until October 31, 2013
I159: Rate Rider for Smart Meter Incremental Revenue Requirement - in effect until the effective date of the next cost of service-based rate order
I160: Rate Rider for Smart Metering Entity Charge - effective until October 31, 2018
I161: Rate Rider for the disposition of Deferral/Variance Accounts Disposition (2013) - effective on an interim basis until April 30, 2014
I162: Rate Rider for the disposition of Global Adjustment Sub-Account Disposition (2013) - effective on an interim basis until April 30, 2014 Applicable only for Non-RPP Customers
I163: Retail Transmission Rate - Line and Transformation Connection Service Rate
I164: Retail Transmission Rate - Line and Transformation Connection Service Rate - (less than 1,000 kW)
I165: Retail Transmission Rate - Line and Transformation Connection Service Rate - Interval Metered
I166: Retail Transmission Rate - Line and Transformation Connection Service Rate - Interval Metered (1,000 to 4,999 kW)
I167: Retail Transmission Rate - Line and Transformation Connection Service Rate - Interval Metered (less than 1,000 kW)
I168: Retail Transmission Rate - Line and Transformation Connection Service Rate - Interval Metered < 1,000 kW
I169: Retail Transmission Rate - Line and Transformation Connection Service Rate - Interval Metered > 1,000 kW
I170: Retail Transmission Rate - Line and Transformation Connection Service Rate FOR ALL SERVICE AREAS EXCEPT HENSALL
I171: Retail Transmission Rate - Line Connection Service Rate
I172: Retail Transmission Rate - Network Service Rate
I173: Retail Transmission Rate - Network Service Rate - (less than 1,000 kW)
I174: Retail Transmission Rate - Network Service Rate - Interval Metered
I175: Retail Transmission Rate - Network Service Rate - Interval Metered (1,000 to 4,999 kW)
I176: Retail Transmission Rate - Network Service Rate - Interval Metered (less than 1,000 kW)
I177: Retail Transmission Rate - Network Service Rate - Interval Metered > 1,000 kW
I178: Retail Transmission Rate - Transformation Connection Service Rate
I179: Rider for Global Adjustment Sub-Account Disposition (2012) - effective until April 30, 2016 Applicable only for Non-RPP Customers
I180: Rural Rate Protection Charge
I181: Sentinel lights (dusk-to-dawn) connected to unmetered wires will have a flat rate monthly energy charge added to the regular customer bill. Further servicing details are available in the distributor’s Conditions of Service.
I182: Service Charge
I183: Service Charge (per connection)
I184: Service Charge (per customer)
I185: Service Charge (per light)
I186: Standard Supply Service - Administrative Charge (if applicable)
I187: Standby Charge - for a month where standby power is not provided. The charge is applied to the amount of reserved load transfer capacity contracted or the amount of monthly peak load displaced by a generating facility
I188: Standby Charge - for a month where standby power is not provided. The charge is applied to the contracted amount (e.g. nameplate rating of the generation facility).
I189: Wholesale Market Service Rate
